Service Area,Service Division,Expense Type,Expense Code,Detailed Expense Type,Payment Date,Transaction Number,Amount Exc Vat,Supplier Name
Regeneration and Local Services,Culture & Sport,Supplies and Services,384956,Miscellaneous Expenses,19-Feb-2018,3400380-3544382,803.42,(PPL) PHONOGRAPHIC PERFORMANCE LTD.
Transformation and Partnerships,Partnerships & Community Engagement Div.,Transfer Payments,525030,Other,16-Feb-2018,3399958-VOUCHER17YF-GAMP001,"1,880.00",1407 (NEWTON AYCLIFFE) SQUADRON ATC.
Regeneration and Local Services,Culture & Sport,Third Party Payments,430100,Rendered by Private Contractors,08-Feb-2018,3396867-1LIFE19319,"36,180.00",1LIFE MANAGEMENT SOLUTIONS LTD.
Children and Young Peoples Services,Head of Education,Transport,230008,Contract Hire,21-Feb-2018,3401904-N20310118,"1,848.00",1ST AID COMMERCIALS LTD.
Adult and Health Services,Head of Adults,Transport,230005,Contract Hire,06-Feb-2018,3396101-11803,980.00,24/7 TAXI SERVICES LTD.
Adult and Health Services,Head of Adults,Transport,230005,Contract Hire,06-Feb-2018,3396101-11811,540.00,24/7 TAXI SERVICES LTD.
Children and Young Peoples Services,Head of Education,Transport,230006,Contract Hire,06-Feb-2018,3396101-11809,720.00,24/7 TAXI SERVICES LTD.
Children and Young Peoples Services,Head of Education,Transport,230008,Contract Hire,16-Feb-2018,3399974-11805,"1,910.00",24/7 TAXI SERVICES LTD.
Children and Young Peoples Services,Head of Education,Transport,230008,Contract Hire,16-Feb-2018,3399974-11808,886.90,24/7 TAXI SERVICES LTD.
Children and Young Peoples Services,Head of Education,Transport,230008,Contract Hire,19-Feb-2018,3400381-11807,"1,234.80",24/7 TAXI SERVICES LTD.
Adult and Health Services,Head of Adults,Third Party Payments,470101,Purchase of Care,20-Feb-2018,3401588-2420155,"6,031.16",3 RED ADMIRAL COURT.
Adult and Health Services,Head of Adults,Third Party Payments,470101,Purchase of Care,20-Feb-2018,3401588-2429681,"6,031.16",3 RED ADMIRAL COURT.
Children and Young Peoples Services,Head of Education,Transport,230006,Contract Hire,06-Feb-2018,3396103-68131,795.00,A & C TAXIS.
Regeneration and Local Services,Technical Services,Construction Work,908105,Construction work,22-Feb-2018,3403397-2569,550.00,A & J GUTHRIE.
Regeneration and Local Services,Direct Services,Supplies and Services,304221,Equipment and Materials,27-Feb-2018,3404879-2632,"1,178.98",A & J GUTHRIE.
Adult and Health Services,Head of Adults,Transport,230005,Contract Hire,07-Feb-2018,3396461-JANUARY03,720.00,A & P TAXIS.
Children and Young Peoples Services,Head of Education,Transport,230007,Contract Hire,21-Feb-2018,3401920-1JANUARY2018,"1,620.00",A & P TAXIS.
Children and Young Peoples Services,Head of Education,Transport,230009,Contract Hire,21-Feb-2018,3401920-JANUARY04,990.00,A & P TAXIS.
Children and Young Peoples Services,Head of Education,Transport,230006,Contract Hire,13-Feb-2018,3398830-JANUARY02A,680.00,A & P TAXIS.
Children and Young Peoples Services,Head of Education,Transport,230007,Contract Hire,06-Feb-2018,3396105-562-JAN,540.00,A BARKER.
Adult and Health Services,Head of Adults,Third Party Payments,470101,Purchase of Care,20-Feb-2018,3401589-2427485,"1,528.02",A CHARLES THOMAS (CARE) LTD.
Adult and Health Services,Head of Adults,Third Party Payments,470101,Purchase of Care,20-Feb-2018,3401589-2427487,"2,139.24",A CHARLES THOMAS (CARE) LTD.
Adult and Health Services,Head of Adults,Third Party Payments,470101,Purchase of Care,20-Feb-2018,3401589-2427488,"2,139.24",A CHARLES THOMAS (CARE) LTD.
Adult and Health Services,Head of Adults,Third Party Payments,470101,Purchase of Care,20-Feb-2018,3401589-2427489,"2,399.00",A CHARLES THOMAS (CARE) LTD.
Adult and Health Services,Head of Adults,Third Party Payments,470101,Purchase of Care,20-Feb-2018,3401589-2427491,"2,139.24",A CHARLES THOMAS (CARE) LTD.
Adult and Health Services,Head of Adults,Third Party Payments,470101,Purchase of Care,20-Feb-2018,3401589-2427492,"2,139.24",A CHARLES THOMAS (CARE) LTD.
Adult and Health Services,Head of Adults,Third Party Payments,470101,Purchase of Care,20-Feb-2018,3401589-2427493,"1,069.62",A CHARLES THOMAS (CARE) LTD.
Adult and Health Services,Head of Adults,Third Party Payments,470101,Purchase of Care,20-Feb-2018,3401589-2427494,"2,139.24",A CHARLES THOMAS (CARE) LTD.
Adult and Health Services,Head of Adults,Third Party Payments,470101,Purchase of Care,20-Feb-2018,3401589-2427495,"2,139.24",A CHARLES THOMAS (CARE) LTD.
Adult and Health Services,Head of Adults,Third Party Payments,470101,Purchase of Care,20-Feb-2018,3401589-2427496,"2,139.24",A CHARLES THOMAS (CARE) LTD.
Adult and Health Services,Head of Adults,Third Party Payments,470101,Purchase of Care,20-Feb-2018,3401589-2427497,"2,139.24",A CHARLES THOMAS (CARE) LTD.
Adult and Health Services,Head of Adults,Third Party Payments,470101,Purchase of Care,20-Feb-2018,3401589-2427498,"2,139.24",A CHARLES THOMAS (CARE) LTD.
Adult and Health Services,Head of Adults,Third Party Payments,470101,Purchase of Care,20-Feb-2018,3401589-2427499,"2,139.24",A CHARLES THOMAS (CARE) LTD.
Adult and Health Services,Head of Adults,Third Party Payments,470101,Purchase of Care,20-Feb-2018,3401589-2427500,"2,139.24",A CHARLES THOMAS (CARE) LTD.
Adult and Health Services,Head of Adults,Third Party Payments,470101,Purchase of Care,20-Feb-2018,3401589-2427501,"2,139.24",A CHARLES THOMAS (CARE) LTD.
Adult and Health Services,Head of Adults,Third Party Payments,470101,Purchase of Care,20-Feb-2018,3401589-2427502,"2,139.24",A CHARLES THOMAS (CARE) LTD.
Adult and Health Services,Head of Adults,Third Party Payments,470101,Purchase of Care,20-Feb-2018,3401589-2427503,"2,139.24",A CHARLES THOMAS (CARE) LTD.
Adult and Health Services,Head of Adults,Third Party Payments,470101,Purchase of Care,20-Feb-2018,3401589-2427504,"2,139.24",A CHARLES THOMAS (CARE) LTD.
Adult and Health Services,Head of Adults,Third Party Payments,470101,Purchase of Care,20-Feb-2018,3401589-2427505,"2,139.24",A CHARLES THOMAS (CARE) LTD.
Adult and Health Services,Head of Adults,Third Party Payments,470101,Purchase of Care,20-Feb-2018,3401589-2427506,"2,139.24",A CHARLES THOMAS (CARE) LTD.
Adult and Health Services,Head of Adults,Third Party Payments,470101,Purchase of Care,20-Feb-2018,3401589-2427507,"1,604.43",A CHARLES THOMAS (CARE) LTD.
Adult and Health Services,Head of Adults,Third Party Payments,470101,Purchase of Care,20-Feb-2018,3401589-2427508,"2,139.24",A CHARLES THOMAS (CARE) LTD.
Adult and Health Services,Head of Adults,Third Party Payments,470101,Purchase of Care,20-Feb-2018,3401589-2427509,611.21,A CHARLES THOMAS (CARE) LTD.
Adult and Health Services,Head of Adults,Third Party Payments,470101,Purchase of Care,20-Feb-2018,3401589-2427510,"2,139.24",A CHARLES THOMAS (CARE) LTD.
Adult and Health Services,Head of Adults,Third Party Payments,470101,Purchase of Care,20-Feb-2018,3401589-2427511,"2,139.24",A CHARLES THOMAS (CARE) LTD.
Adult and Health Services,Head of Adults,Third Party Payments,470101,Purchase of Care,20-Feb-2018,3401589-2427512,"2,139.24",A CHARLES THOMAS (CARE) LTD.
Adult and Health Services,Head of Adults,Third Party Payments,470101,Purchase of Care,20-Feb-2018,3401589-2427513,"2,139.24",A CHARLES THOMAS (CARE) LTD.
Adult and Health Services,Head of Adults,Third Party Payments,470101,Purchase of Care,20-Feb-2018,3401589-2427514,"2,139.24",A CHARLES THOMAS (CARE) LTD.
Adult and Health Services,Head of Adults,Third Party Payments,470101,Purchase of Care,20-Feb-2018,3401589-2431430,"1,298.82",A CHARLES THOMAS (CARE) LTD.
Children and Young Peoples Services,Head of Education,Transport,230006,Contract Hire,08-Feb-2018,3396868-31,602.00,A HJ JOBLING T/A CASTLE TAXIS.
Children and Young Peoples Services,Head of Education,Transport,230006,Contract Hire,07-Feb-2018,3396462-HA220796,841.50,A MURRAY TRAVEL.
Children and Young Peoples Services,Head of Education,Transport,230008,Contract Hire,07-Feb-2018,3396462-A220794,"1,139.00",A MURRAY TRAVEL.
Children and Young Peoples Services,Head of Education,Transport,230008,Contract Hire,08-Feb-2018,3396869-EA220790,"1,159.20",A MURRAY TRAVEL.
Children and Young Peoples Services,Head of Education,Transport,230008,Contract Hire,08-Feb-2018,3396869-GC004-JAN,831.60,A MURRAY TRAVEL.
Regeneration and Local Services,Economic Development and Housing,Cap Exp on Grants & Other Financial Assistance (REFCUS),918401,Capital grants,19-Feb-2018,3400383-RED-02-2018-112,"3,754.00",A OGILVIE BUILDING CONTRACTORS LTD.
Regeneration and Local Services,Culture & Sport,Supplies and Services,338047,Services,22-Feb-2018,3403399-30/11/17,650.00,A SHIP OF FOOLS THEATRE COMPANY.
Children and Young Peoples Services,Head of Looked After Provision Permanence and Care Leavers,Third Party Payments,425040,Rendered by Voluntary Organisations,21-Feb-2018,3402297-1782046H,"2,920.12",A1 FOSTER CARE
Children and Young Peoples Services,Head of Looked After Provision Permanence and Care Leavers,Third Party Payments,425040,Rendered by Voluntary Organisations,21-Feb-2018,3402297-1783027H,"2,920.12",A1 FOSTER CARE
Regeneration and Local Services,Direct Services,Third Party Payments,430100,Rendered by Private Contractors,01-Feb-2018,3394446-1277,"3,368.00",AA GARDENING & LANDSCAPING SERVICES.
Regeneration and Local Services,Direct Services,Third Party Payments,430100,Rendered by Private Contractors,21-Feb-2018,3401922-1287,656.00,AA GARDENING & LANDSCAPING SERVICES.
Adult and Health Services,Head of Adults,Transport,230005,Contract Hire,13-Feb-2018,3398831-AA1464,"1,067.40",AA MINIBUS HIRE.
Children and Young Peoples Services,Head of Education,Transport,230008,Contract Hire,13-Feb-2018,3398831-AA1460,"1,194.66",AA MINIBUS HIRE.
Children and Young Peoples Services,Head of Education,Transport,230008,Contract Hire,14-Feb-2018,3399211-AA1463,807.51,AA MINIBUS HIRE.
Children and Young Peoples Services,Head of Education,Transport,230008,Contract Hire,16-Feb-2018,3399989-AA1461,675.26,AA MINIBUS HIRE.
Adult and Health Services,Head of Adults,Transport,230005,Contract Hire,16-Feb-2018,3399991-P21/AC,665.00,AABAT TAXIS.
Adult and Health Services,Head of Adults,Transport,230005,Contract Hire,16-Feb-2018,3399991-P25/EC,784.00,AABAT TAXIS.
Children and Young Peoples Services,Head of Education,Transport,230007,Contract Hire,13-Feb-2018,3398832-P4/SD,"1,615.00",AABAT TAXIS.
Children and Young Peoples Services,Head of Education,Transport,230006,Contract Hire,13-Feb-2018,3398832-P16/STJAN18,"1,868.40",AABAT TAXIS.
Children and Young Peoples Services,Head of Education,Transport,230006,Contract Hire,16-Feb-2018,3399991-P18/SXJAN18,"1,596.00",AABAT TAXIS.
Children and Young Peoples Services,Head of Education,Transport,230012,Contract Hire,13-Feb-2018,3398832-P15/SS,"1,139.20",AABAT TAXIS.
Children and Young Peoples Services,Head of Education,Transport,230008,Contract Hire,13-Feb-2018,3398832-P1/SA,"2,112.00",AABAT TAXIS.
Children and Young Peoples Services,Head of Education,Transport,230008,Contract Hire,13-Feb-2018,3398832-P11/SN,"1,038.00",AABAT TAXIS.
Children and Young Peoples Services,Head of Education,Transport,230008,Contract Hire,13-Feb-2018,3398832-P12/SP,"2,016.00",AABAT TAXIS.
Children and Young Peoples Services,Head of Education,Transport,230008,Contract Hire,13-Feb-2018,3398832-P17/SVJAN18,847.70,AABAT TAXIS.
Children and Young Peoples Services,Head of Education,Transport,230008,Contract Hire,13-Feb-2018,3398832-P2/SB,"1,165.50",AABAT TAXIS.
Children and Young Peoples Services,Head of Education,Transport,230008,Contract Hire,13-Feb-2018,3398832-P3/SC,"1,643.50",AABAT TAXIS.
Children and Young Peoples Services,Head of Education,Transport,230008,Contract Hire,13-Feb-2018,3398832-P5/SG,991.20,AABAT TAXIS.
Children and Young Peoples Services,Head of Education,Transport,230008,Contract Hire,13-Feb-2018,3398832-P6/SH,"1,744.00",AABAT TAXIS.
Children and Young Peoples Services,Head of Education,Transport,230008,Contract Hire,13-Feb-2018,3398832-P8/SK,"1,297.50",AABAT TAXIS.
Children and Young Peoples Services,Head of Education,Transport,230008,Contract Hire,13-Feb-2018,3398832-P9/SL-W158,"1,691.00",AABAT TAXIS.
Children and Young Peoples Services,Head of Education,Transport,230008,Contract Hire,14-Feb-2018,3399212-P13/SQ,"1,653.00",AABAT TAXIS.
Children and Young Peoples Services,Head of Education,Transport,230008,Contract Hire,16-Feb-2018,3399991-P7/SJ,"1,673.20",AABAT TAXIS.
Children and Young Peoples Services,Head of Looked After Provision Permanence and Care Leavers,Transport,230005,Contract Hire,01-Feb-2018,3394448-R50/ZD,"1,400.00",AABAT TAXIS.
Children and Young Peoples Services,Head of Looked After Provision Permanence and Care Leavers,Transport,230005,Contract Hire,02-Feb-2018,3394765-Q49/ZD,950.00,AABAT TAXIS.
Children and Young Peoples Services,Head of Education,Transport,230008,Contract Hire,09-Feb-2018,3397191-1/1/18,"1,260.00",ABA TAXIS.
Adult and Health Services,Head of Adults,Third Party Payments,474101,Purchase of Care,20-Feb-2018,3401590-2429012,"2,848.00",ABBEYMOOR CLINIC.
Adult and Health Services,Head of Adults,Third Party Payments,474101,Purchase of Care,20-Feb-2018,3401590-2429014,"2,848.00",ABBEYMOOR CLINIC.
Adult and Health Services,Head of Adults,Third Party Payments,474101,Purchase of Care,20-Feb-2018,3401590-2429015,"2,303.28",ABBEYMOOR CLINIC.
Adult and Health Services,Head of Adults,Third Party Payments,470101,Purchase of Care,20-Feb-2018,3401590-2429013,"2,000.00",ABBEYMOOR CLINIC.
Adult and Health Services,Head of Adults,Third Party Payments,470101,Purchase of Care,20-Feb-2018,3401591-2430120,"2,024.68",ABBEYVALE CARE CENTRE.
Adult and Health Services,Head of Adults,Third Party Payments,470101,Purchase of Care,20-Feb-2018,3401591-2430122,"2,500.00",ABBEYVALE CARE CENTRE.
Adult and Health Services,Head of Adults,Third Party Payments,470101,Purchase of Care,20-Feb-2018,3401591-2430123,"2,139.24",ABBEYVALE CARE CENTRE.
Adult and Health Services,Head of Adults,Third Party Payments,470101,Purchase of Care,20-Feb-2018,3401591-2430124,"2,139.24",ABBEYVALE CARE CENTRE.
Adult and Health Services,Head of Adults,Third Party Payments,470101,Purchase of Care,20-Feb-2018,3401591-2430125,"2,139.24",ABBEYVALE CARE CENTRE.
Adult and Health Services,Head of Adults,Third Party Payments,470101,Purchase of Care,20-Feb-2018,3401591-2430126,"2,139.24",ABBEYVALE CARE CENTRE.
Adult and Health Services,Head of Adults,Third Party Payments,470101,Purchase of Care,20-Feb-2018,3401591-2430127,"5,653.71",ABBEYVALE CARE CENTRE.
Adult and Health Services,Head of Adults,Third Party Payments,470101,Purchase of Care,20-Feb-2018,3401591-2430130,"1,250.00",ABBEYVALE CARE CENTRE.
Adult and Health Services,Head of Adults,Third Party Payments,470101,Purchase of Care,20-Feb-2018,3401591-2430133,"1,250.00",ABBEYVALE CARE CENTRE.
Adult and Health Services,Head of Adults,Third Party Payments,470101,Purchase of Care,20-Feb-2018,3401591-2430136,840.41,ABBEYVALE CARE CENTRE.
Adult and Health Services,Head of Adults,Third Party Payments,470101,Purchase of Care,20-Feb-2018,3401591-2430137,"2,139.24",ABBEYVALE CARE CENTRE.
Adult and Health Services,Head of Adults,Third Party Payments,470101,Purchase of Care,20-Feb-2018,3401591-2430138,"2,139.24",ABBEYVALE CARE CENTRE.
Adult and Health Services,Head of Adults,Third Party Payments,470101,Purchase of Care,20-Feb-2018,3401591-2430139,"2,139.24",ABBEYVALE CARE CENTRE.
Adult and Health Services,Head of Adults,Third Party Payments,470101,Purchase of Care,20-Feb-2018,3401591-2430140,"2,139.24",ABBEYVALE CARE CENTRE.
Adult and Health Services,Head of Adults,Third Party Payments,470101,Purchase of Care,20-Feb-2018,3401591-2430142,"1,390.00",ABBEYVALE CARE CENTRE.
Adult and Health Services,Head of Adults,Third Party Payments,470101,Purchase of Care,20-Feb-2018,3401591-2430143,"2,139.24",ABBEYVALE CARE CENTRE.
Adult and Health Services,Head of Adults,Third Party Payments,470101,Purchase of Care,20-Feb-2018,3401591-2430146,"2,500.00",ABBEYVALE CARE CENTRE.
Adult and Health Services,Head of Adults,Third Party Payments,470101,Purchase of Care,20-Feb-2018,3401591-2430149,"2,139.24",ABBEYVALE CARE CENTRE.
Adult and Health Services,Head of Adults,Third Party Payments,470101,Purchase of Care,20-Feb-2018,3401591-2431474,"1,146.02",ABBEYVALE CARE CENTRE.
Adult and Health Services,Head of Adults,Third Party Payments,471101,Purchase of Care,20-Feb-2018,3401591-2430128,"2,218.20",ABBEYVALE CARE CENTRE.
Adult and Health Services,Head of Adults,Third Party Payments,471101,Purchase of Care,20-Feb-2018,3401591-2430129,"1,109.12",ABBEYVALE CARE CENTRE.
Adult and Health Services,Head of Adults,Third Party Payments,471101,Purchase of Care,20-Feb-2018,3401591-2430131,"2,218.20",ABBEYVALE CARE CENTRE.
Adult and Health Services,Head of Adults,Third Party Payments,471101,Purchase of Care,20-Feb-2018,3401591-2430132,554.55,ABBEYVALE CARE CENTRE.
Adult and Health Services,Head of Adults,Third Party Payments,471101,Purchase of Care,20-Feb-2018,3401591-2430135,"2,218.20",ABBEYVALE CARE CENTRE.
Adult and Health Services,Head of Adults,Third Party Payments,471101,Purchase of Care,20-Feb-2018,3401591-2430141,"2,218.20",ABBEYVALE CARE CENTRE.
Adult and Health Services,Head of Adults,Third Party Payments,471101,Purchase of Care,20-Feb-2018,3401591-2430144,"2,218.20",ABBEYVALE CARE CENTRE.
Adult and Health Services,Head of Adults,Third Party Payments,471101,Purchase of Care,20-Feb-2018,3401591-2430145,"1,109.12",ABBEYVALE CARE CENTRE.
Adult and Health Services,Head of Adults,Third Party Payments,471101,Purchase of Care,20-Feb-2018,3401591-2430147,"2,218.20",ABBEYVALE CARE CENTRE.
Adult and Health Services,Head of Adults,Third Party Payments,471101,Purchase of Care,20-Feb-2018,3401591-2430148,"2,218.20",ABBEYVALE CARE CENTRE.
Children and Young Peoples Services,Head of Education,Transport,230012,Contract Hire,13-Feb-2018,3398833-O374,"1,566.40",ABC & OUSTON CABS.
Children and Young Peoples Services,Head of Education,Transport,230008,Contract Hire,07-Feb-2018,3396464-0372,"1,206.00",ABC & OUSTON CABS.
Children and Young Peoples Services,Head of Education,Transport,230008,Contract Hire,13-Feb-2018,3398833-O373,"1,390.40",ABC & OUSTON CABS.
Adult and Health Services,Head of Adults,Third Party Payments,472101,Purchase of Care,21-Feb-2018,3402300-1736414H,706.16,ABSOLUTE CARE AT HOME.
Adult and Health Services,Head of Adults,Third Party Payments,472101,Purchase of Care,21-Feb-2018,3402300-1778002H,699.37,ABSOLUTE CARE AT HOME.
Regeneration and Local Services,Economic Development and Housing,Supplies and Services,384700,Miscellaneous Expenses,07-Feb-2018,3396463-RED-02-2018-034,500.00,A-BYTE COMPUTER SOLUTIONS LTD.
Children and Young Peoples Services,Head of Education,Transport,230007,Contract Hire,09-Feb-2018,3397192-617,"1,137.50",AC TAXIS.
Regeneration and Local Services,Culture & Sport,Construction Work,908105,Construction work,08-Feb-2018,3396871-5648,"2,310.00",ACADEMY GEOMATICS LTD.
Adult and Health Services,Head of Adults,Third Party Payments,478101,Purchase of Care,21-Feb-2018,3402301-1777129H,"3,104.64",ACCEPT CARE LTD.
Adult and Health Services,Head of Adults,Third Party Payments,478101,Purchase of Care,21-Feb-2018,3402301-1777231H,"3,304.60",ACCEPT CARE LTD.
Adult and Health Services,Head of Adults,Third Party Payments,478101,Purchase of Care,21-Feb-2018,3402301-1777290H,"4,431.92",ACCEPT CARE LTD.
Adult and Health Services,Head of Adults,Third Party Payments,478101,Purchase of Care,21-Feb-2018,3402301-1777404H,"3,198.72",ACCEPT CARE LTD.
Adult and Health Services,Head of Adults,Third Party Payments,478101,Purchase of Care,21-Feb-2018,3402301-1777643H,877.56,ACCEPT CARE LTD.
Adult and Health Services,Head of Adults,Third Party Payments,478101,Purchase of Care,21-Feb-2018,3402301-1777705H,"4,987.04",ACCEPT CARE LTD.
Adult and Health Services,Head of Adults,Third Party Payments,478101,Purchase of Care,21-Feb-2018,3402301-1777735H,877.56,ACCEPT CARE LTD.
Adult and Health Services,Head of Adults,Third Party Payments,478101,Purchase of Care,21-Feb-2018,3402301-1777744H,877.56,ACCEPT CARE LTD.
Adult and Health Services,Head of Adults,Third Party Payments,478101,Purchase of Care,21-Feb-2018,3402301-1777830H,877.56,ACCEPT CARE LTD.
Adult and Health Services,Head of Adults,Third Party Payments,478101,Purchase of Care,21-Feb-2018,3402301-1777867H,"4,396.12",ACCEPT CARE LTD.
Adult and Health Services,Head of Adults,Third Party Payments,478101,Purchase of Care,21-Feb-2018,3402301-1777868H,982.76,ACCEPT CARE LTD.
Adult and Health Services,Head of Adults,Third Party Payments,478101,Purchase of Care,21-Feb-2018,3402301-1777874H,"3,357.52",ACCEPT CARE LTD.
Adult and Health Services,Head of Adults,Third Party Payments,478101,Purchase of Care,21-Feb-2018,3402301-1777946H,877.56,ACCEPT CARE LTD.
Adult and Health Services,Head of Adults,Third Party Payments,478101,Purchase of Care,21-Feb-2018,3402301-1777952H,"4,458.80",ACCEPT CARE LTD.
Adult and Health Services,Head of Adults,Third Party Payments,478101,Purchase of Care,21-Feb-2018,3402301-1777956H,877.56,ACCEPT CARE LTD.
Adult and Health Services,Head of Adults,Third Party Payments,478101,Purchase of Care,21-Feb-2018,3402301-1778164H,"6,204.68",ACCEPT CARE LTD.
Adult and Health Services,Head of Adults,Third Party Payments,478101,Purchase of Care,21-Feb-2018,3402301-1778367H,"5,813.40",ACCEPT CARE LTD.
Adult and Health Services,Head of Adults,Third Party Payments,478101,Purchase of Care,21-Feb-2018,3402301-1778390H,"2,444.28",ACCEPT CARE LTD.
Adult and Health Services,Head of Adults,Third Party Payments,478101,Purchase of Care,21-Feb-2018,3402301-1778450H,"6,096.80",ACCEPT CARE LTD.
Adult and Health Services,Head of Adults,Third Party Payments,478101,Purchase of Care,21-Feb-2018,3402301-1778470H,"4,637.84",ACCEPT CARE LTD.
Adult and Health Services,Head of Adults,Third Party Payments,478101,Purchase of Care,21-Feb-2018,3402301-1778573H,"2,675.88",ACCEPT CARE LTD.
Adult and Health Services,Head of Adults,Third Party Payments,478101,Purchase of Care,21-Feb-2018,3402301-1778591H,"4,969.12",ACCEPT CARE LTD.
Adult and Health Services,Head of Adults,Third Party Payments,478101,Purchase of Care,21-Feb-2018,3402301-1778615H,877.56,ACCEPT CARE LTD.
Adult and Health Services,Head of Adults,Third Party Payments,478101,Purchase of Care,21-Feb-2018,3402301-1778630H,"3,939.48",ACCEPT CARE LTD.
Adult and Health Services,Head of Adults,Third Party Payments,478101,Purchase of Care,21-Feb-2018,3402301-1778696H,"2,267.88",ACCEPT CARE LTD.
Adult and Health Services,Head of Adults,Third Party Payments,478101,Purchase of Care,21-Feb-2018,3402301-1778700H,"3,239.04",ACCEPT CARE LTD.
Adult and Health Services,Head of Adults,Third Party Payments,478101,Purchase of Care,21-Feb-2018,3402301-1778796H,"6,473.28",ACCEPT CARE LTD.
Adult and Health Services,Head of Adults,Third Party Payments,478101,Purchase of Care,21-Feb-2018,3402301-1778801H,"11,782.60",ACCEPT CARE LTD.
Adult and Health Services,Head of Adults,Third Party Payments,478101,Purchase of Care,21-Feb-2018,3402301-1778814H,"3,395.84",ACCEPT CARE LTD.
Adult and Health Services,Head of Adults,Third Party Payments,478101,Purchase of Care,21-Feb-2018,3402301-1778888H,"3,632.16",ACCEPT CARE LTD.
Adult and Health Services,Head of Adults,Third Party Payments,478101,Purchase of Care,21-Feb-2018,3402301-1778894H,"6,473.28",ACCEPT CARE LTD.
Adult and Health Services,Head of Adults,Third Party Payments,478101,Purchase of Care,21-Feb-2018,3402301-1779003H,"2,654.40",ACCEPT CARE LTD.
Adult and Health Services,Head of Adults,Third Party Payments,478101,Purchase of Care,21-Feb-2018,3402301-1779077H,"1,715.48",ACCEPT CARE LTD.
Adult and Health Services,Head of Adults,Third Party Payments,478101,Purchase of Care,21-Feb-2018,3402301-1779486H,"4,421.76",ACCEPT CARE LTD.
Adult and Health Services,Head of Adults,Third Party Payments,478101,Purchase of Care,21-Feb-2018,3402301-1779569H,"1,730.68",ACCEPT CARE LTD.
Adult and Health Services,Head of Adults,Third Party Payments,478101,Purchase of Care,21-Feb-2018,3402301-1779732H,877.56,ACCEPT CARE LTD.
Adult and Health Services,Head of Adults,Third Party Payments,478101,Purchase of Care,21-Feb-2018,3402301-1779734H,877.56,ACCEPT CARE LTD.
Adult and Health Services,Head of Adults,Third Party Payments,478101,Purchase of Care,21-Feb-2018,3402301-1780143H,"5,094.48",ACCEPT CARE LTD.
Adult and Health Services,Head of Adults,Third Party Payments,478101,Purchase of Care,21-Feb-2018,3402301-1780203H,"1,377.28",ACCEPT CARE LTD.
Adult and Health Services,Head of Adults,Third Party Payments,478101,Purchase of Care,21-Feb-2018,3402301-1780236H,"6,259.40",ACCEPT CARE LTD.
Adult and Health Services,Head of Adults,Third Party Payments,478101,Purchase of Care,21-Feb-2018,3402301-1780543H,"1,158.52",ACCEPT CARE LTD.
Adult and Health Services,Head of Adults,Third Party Payments,478101,Purchase of Care,21-Feb-2018,3402301-1780613H,"3,384.40",ACCEPT CARE LTD.
Adult and Health Services,Head of Adults,Third Party Payments,478101,Purchase of Care,21-Feb-2018,3402301-1781603H,877.56,ACCEPT CARE LTD.
Adult and Health Services,Head of Adults,Third Party Payments,478101,Purchase of Care,21-Feb-2018,3402301-1781824H,"1,515.80",ACCEPT CARE LTD.
Adult and Health Services,Head of Adults,Third Party Payments,478101,Purchase of Care,21-Feb-2018,3402301-1781956H,877.56,ACCEPT CARE LTD.
Adult and Health Services,Head of Adults,Third Party Payments,478101,Purchase of Care,21-Feb-2018,3402301-1782288H,"3,010.56",ACCEPT CARE LTD.
Adult and Health Services,Head of Adults,Third Party Payments,478101,Purchase of Care,21-Feb-2018,3402301-1782339H,"1,185.40",ACCEPT CARE LTD.
Adult and Health Services,Head of Adults,Third Party Payments,478101,Purchase of Care,21-Feb-2018,3402301-1782358H,877.56,ACCEPT CARE LTD.
Adult and Health Services,Head of Adults,Third Party Payments,478101,Purchase of Care,21-Feb-2018,3402301-1782831H,877.56,ACCEPT CARE LTD.
Adult and Health Services,Head of Adults,Third Party Payments,478101,Purchase of Care,21-Feb-2018,3402301-1782976H,"1,939.28",ACCEPT CARE LTD.
Adult and Health Services,Head of Adults,Third Party Payments,478101,Purchase of Care,21-Feb-2018,3402301-1783127H,"1,730.68",ACCEPT CARE LTD.
Adult and Health Services,Head of Adults,Third Party Payments,478101,Purchase of Care,21-Feb-2018,3402301-1783480H,877.56,ACCEPT CARE LTD.
Adult and Health Services,Head of Adults,Transfer Payments,515201,Social Services Clients,21-Feb-2018,3402302-1779703H,788.48,ACCOUNTABILITY CLIENT ACCOUNT NO 1.
Adult and Health Services,Head of Adults,Transfer Payments,515201,Social Services Clients,21-Feb-2018,3402305-1783932H,"2,642.68",ACCOUNTABILITY CLIENT ACCOUNT NO 1.
Adult and Health Services,Head of Adults,Transfer Payments,515201,Social Services Clients,21-Feb-2018,3402306-1782888H,"2,307.24",ACCOUNTABILITY CLIENT ACCOUNT NO 1.
Adult and Health Services,Head of Adults,Transfer Payments,515201,Social Services Clients,21-Feb-2018,3402307-1782791H,691.28,ACCOUNTABILITY CLIENT ACCOUNT NO 1.
Adult and Health Services,Head of Adults,Transfer Payments,515201,Social Services Clients,21-Feb-2018,3402308-1777481H,595.68,ACCOUNTABILITY CLIENT ACCOUNT NO 1.
Adult and Health Services,Head of Adults,Transfer Payments,515201,Social Services Clients,21-Feb-2018,3402309-1780750H,562.08,ACCOUNTABILITY CLIENT ACCOUNT NO 1.
Adult and Health Services,Head of Adults,Transfer Payments,515201,Social Services Clients,21-Feb-2018,3402311-1777796H,"1,616.52",ACCOUNTABILITY CLIENT ACCOUNT NO 1.
Adult and Health Services,Head of Adults,Transfer Payments,515201,Social Services Clients,21-Feb-2018,3402312-1777558H,588.12,ACCOUNTABILITY CLIENT ACCOUNT NO 1.
Adult and Health Services,Head of Adults,Transfer Payments,515201,Social Services Clients,21-Feb-2018,3402318-1780746H,"3,132.00",ACCOUNTABILITY CLIENT ACCOUNT NO 1.
Adult and Health Services,Head of Adults,Transfer Payments,515201,Social Services Clients,21-Feb-2018,3402319-1778293H,800.00,ACCOUNTABILITY CLIENT ACCOUNT NO 1.
Adult and Health Services,Head of Adults,Transfer Payments,515201,Social Services Clients,21-Feb-2018,3402320-1778570H,"1,229.16",ACCOUNTABILITY CLIENT ACCOUNT NO 1.
Adult and Health Services,Head of Adults,Transfer Payments,515201,Social Services Clients,21-Feb-2018,3402321-1777545H,901.68,ACCOUNTABILITY CLIENT ACCOUNT NO 1.
Adult and Health Services,Head of Adults,Transfer Payments,515201,Social Services Clients,21-Feb-2018,3402323-1780354H,701.04,ACCOUNTABILITY CLIENT ACCOUNT NO 1.
Adult and Health Services,Head of Adults,Transfer Payments,515201,Social Services Clients,21-Feb-2018,3402325-1779081H,687.44,ACCOUNTABILITY CLIENT ACCOUNT NO 1.
Adult and Health Services,Head of Adults,Transfer Payments,515201,Social Services Clients,21-Feb-2018,3402326-1778951H,863.32,ACCOUNTABILITY CLIENT ACCOUNT NO 1.
Adult and Health Services,Head of Adults,Transfer Payments,515201,Social Services Clients,21-Feb-2018,3402328-1783151H,"1,108.40",ACCOUNTABILITY CLIENT ACCOUNT NO 1.
Adult and Health Services,Head of Adults,Transfer Payments,515201,Social Services Clients,21-Feb-2018,3402329-1782566H,723.84,ACCOUNTABILITY CLIENT ACCOUNT NO 1.
Adult and Health Services,Head of Adults,Transfer Payments,515201,Social Services Clients,21-Feb-2018,3402334-1781792H,950.04,ACCOUNTABILITY CLIENT ACCOUNT NO 1.
Adult and Health Services,Head of Adults,Transfer Payments,515201,Social Services Clients,21-Feb-2018,3402336-1779920H,791.72,ACCOUNTABILITY CLIENT ACCOUNT NO 1.
Adult and Health Services,Head of Adults,Transfer Payments,515201,Social Services Clients,21-Feb-2018,3402337-1778426H,874.64,ACCOUNTABILITY CLIENT ACCOUNT NO 1.
Adult and Health Services,Head of Adults,Transfer Payments,515201,Social Services Clients,21-Feb-2018,3402338-1778127H,"1,877.28",ACCOUNTABILITY CLIENT ACCOUNT NO 1.
Adult and Health Services,Head of Adults,Transfer Payments,515201,Social Services Clients,21-Feb-2018,3402342-1780553H,"1,006.60",ACCOUNTABILITY CLIENT ACCOUNT NO 1.
Adult and Health Services,Head of Adults,Transfer Payments,515201,Social Services Clients,21-Feb-2018,3402343-1779029H,"1,288.12",ACCOUNTABILITY CLIENT ACCOUNT NO 1.
Adult and Health Services,Head of Adults,Transfer Payments,515201,Social Services Clients,21-Feb-2018,3402344-1780199H,733.32,ACCOUNTABILITY CLIENT ACCOUNT NO 1.
Adult and Health Services,Head of Adults,Transfer Payments,515201,Social Services Clients,21-Feb-2018,3402345-1780502H,759.60,ACCOUNTABILITY CLIENT ACCOUNT NO 1.
Adult and Health Services,Head of Adults,Transfer Payments,515201,Social Services Clients,21-Feb-2018,3402348-1782100H,"1,115.92",ACCOUNTABILITY CLIENT ACCOUNT NO 1.
Adult and Health Services,Head of Adults,Transfer Payments,515201,Social Services Clients,21-Feb-2018,3402356-1781935H,506.40,ACCOUNTABILITY CLIENT ACCOUNT NO 1.
Adult and Health Services,Head of Adults,Transfer Payments,515201,Social Services Clients,21-Feb-2018,3402363-1778009H,"1,220.00",ACCOUNTABILITY CLIENT ACCOUNT NO 1.
Adult and Health Services,Head of Adults,Transfer Payments,515201,Social Services Clients,21-Feb-2018,3402365-1778028H,800.00,ACCOUNTABILITY CLIENT ACCOUNT NO 1.
Adult and Health Services,Head of Adults,Transfer Payments,515201,Social Services Clients,21-Feb-2018,3402366-1782822H,633.36,ACCOUNTABILITY CLIENT ACCOUNT NO 1.
Adult and Health Services,Head of Adults,Transfer Payments,515201,Social Services Clients,21-Feb-2018,3402367-1783224H,"2,482.52",ACCOUNTABILITY CLIENT ACCOUNT NO 1.
Adult and Health Services,Head of Adults,Transfer Payments,515201,Social Services Clients,21-Feb-2018,3402368-1778829H,"1,048.40",ACCOUNTABILITY CLIENT ACCOUNT NO 1.
Adult and Health Services,Head of Adults,Transfer Payments,515210,Social Services Clients,21-Feb-2018,3402333-1779698H,"3,178.12",ACCOUNTABILITY CLIENT ACCOUNT NO 1.
Adult and Health Services,Head of Adults,Transfer Payments,515210,Social Services Clients,21-Feb-2018,3402347-1782886H,"4,071.60",ACCOUNTABILITY CLIENT ACCOUNT NO 1.
Adult and Health Services,Head of Adults,Transfer Payments,515210,Social Services Clients,21-Feb-2018,3402351-1779311H,"1,402.44",ACCOUNTABILITY CLIENT ACCOUNT NO 1.
Adult and Health Services,Head of Adults,Transfer Payments,515210,Social Services Clients,21-Feb-2018,3402355-1780108H,"2,060.96",ACCOUNTABILITY CLIENT ACCOUNT NO 1.
Adult and Health Services,Head of Adults,Transfer Payments,515211,Social Services Clients,21-Feb-2018,3402316-1777096H,656.00,ACCOUNTABILITY CLIENT ACCOUNT NO 1.
Adult and Health Services,Head of Adults,Transfer Payments,515211,Social Services Clients,21-Feb-2018,3402340-1778305H,"3,829.92",ACCOUNTABILITY CLIENT ACCOUNT NO 1.
Adult and Health Services,Head of Adults,Transfer Payments,515211,Social Services Clients,21-Feb-2018,3402349-1778745H,522.00,ACCOUNTABILITY CLIENT ACCOUNT NO 1.
Adult and Health Services,Head of Adults,Transfer Payments,515211,Social Services Clients,21-Feb-2018,3402350-1778756H,"2,214.40",ACCOUNTABILITY CLIENT ACCOUNT NO 1.
Adult and Health Services,Head of Adults,Transfer Payments,515211,Social Services Clients,21-Feb-2018,3402353-1778285H,964.00,ACCOUNTABILITY CLIENT ACCOUNT NO 1.
Adult and Health Services,Head of Adults,Transfer Payments,515211,Social Services Clients,21-Feb-2018,3402354-1777859H,"1,662.52",ACCOUNTABILITY CLIENT ACCOUNT NO 1.
Adult and Health Services,Head of Adults,Transfer Payments,515211,Social Services Clients,21-Feb-2018,3402362-1778717H,749.10,ACCOUNTABILITY CLIENT ACCOUNT NO 1.
Adult and Health Services,Head of Adults,Transfer Payments,515211,Social Services Clients,21-Feb-2018,3402364-1778045H,975.88,ACCOUNTABILITY CLIENT ACCOUNT NO 1.
Adult and Health Services,Head of Adults,Transfer Payments,515209,Social Services Clients,21-Feb-2018,3402364-1778045D,"1,255.80",ACCOUNTABILITY CLIENT ACCOUNT NO 1.
Children and Young Peoples Services,Head of Early Help Assessment and Safeguarding,Transfer Payments,515201,Social Services Clients,21-Feb-2018,3402303-1782418H,960.00,ACCOUNTABILITY CLIENT ACCOUNT NO 1.
Children and Young Peoples Services,Head of Early Help Assessment and Safeguarding,Transfer Payments,515201,Social Services Clients,21-Feb-2018,3402304-1782581H,600.00,ACCOUNTABILITY CLIENT ACCOUNT NO 1.
Children and Young Peoples Services,Head of Early Help Assessment and Safeguarding,Transfer Payments,515201,Social Services Clients,21-Feb-2018,3402314-1781782H,540.00,ACCOUNTABILITY CLIENT ACCOUNT NO 1.
Children and Young Peoples Services,Head of Early Help Assessment and Safeguarding,Transfer Payments,515201,Social Services Clients,21-Feb-2018,3402331-1782020H,844.00,ACCOUNTABILITY CLIENT ACCOUNT NO 1.
Children and Young Peoples Services,Head of Early Help Assessment and Safeguarding,Transfer Payments,515201,Social Services Clients,21-Feb-2018,3402335-1783109H,"1,146.48",ACCOUNTABILITY CLIENT ACCOUNT NO 1.
Adult and Health Services,Head of Adults,Transfer Payments,515201,Social Services Clients,21-Feb-2018,3402370-1779905H,"3,635.96",ACCOUNTABILITY CLIENT ACCOUNT NO 2.
Adult and Health Services,Head of Adults,Transfer Payments,515201,Social Services Clients,21-Feb-2018,3402371-1783089H,655.76,ACCOUNTABILITY CLIENT ACCOUNT NO 2.
Adult and Health Services,Head of Adults,Transfer Payments,515201,Social Services Clients,21-Feb-2018,3402372-1777880H,"1,241.28",ACCOUNTABILITY CLIENT ACCOUNT NO 2.
Adult and Health Services,Head of Adults,Transfer Payments,515201,Social Services Clients,21-Feb-2018,3402374-1782496H,749.44,ACCOUNTABILITY CLIENT ACCOUNT NO 2.
Adult and Health Services,Head of Adults,Transfer Payments,515201,Social Services Clients,21-Feb-2018,3402375-1780563H,644.04,ACCOUNTABILITY CLIENT ACCOUNT NO 2.
Adult and Health Services,Head of Adults,Transfer Payments,515201,Social Services Clients,21-Feb-2018,3402376-1779694H,702.60,ACCOUNTABILITY CLIENT ACCOUNT NO 2.
Adult and Health Services,Head of Adults,Transfer Payments,515201,Social Services Clients,21-Feb-2018,3402378-1782550H,562.08,ACCOUNTABILITY CLIENT ACCOUNT NO 2.
Adult and Health Services,Head of Adults,Transfer Payments,515201,Social Services Clients,21-Feb-2018,3402379-1779965H,726.04,ACCOUNTABILITY CLIENT ACCOUNT NO 2.
Adult and Health Services,Head of Adults,Transfer Payments,515201,Social Services Clients,21-Feb-2018,3402383-1780005H,"1,767.04",ACCOUNTABILITY CLIENT ACCOUNT NO 2.
Adult and Health Services,Head of Adults,Transfer Payments,515201,Social Services Clients,21-Feb-2018,3402384-1782699H,515.24,ACCOUNTABILITY CLIENT ACCOUNT NO 2.
Adult and Health Services,Head of Adults,Transfer Payments,515201,Social Services Clients,21-Feb-2018,3402386-1780586H,608.92,ACCOUNTABILITY CLIENT ACCOUNT NO 2.
Adult and Health Services,Head of Adults,Transfer Payments,515201,Social Services Clients,21-Feb-2018,3402390-1779085H,"6,720.00",ACCOUNTABILITY CLIENT ACCOUNT NO 2.
Adult and Health Services,Head of Adults,Transfer Payments,515201,Social Services Clients,21-Feb-2018,3402391-1780483H,"1,227.60",ACCOUNTABILITY CLIENT ACCOUNT NO 2.
Adult and Health Services,Head of Adults,Transfer Payments,515210,Social Services Clients,21-Feb-2018,3402377-1777809H,"1,498.88",ACCOUNTABILITY CLIENT ACCOUNT NO 2.
Adult and Health Services,Head of Adults,Transfer Payments,515209,Social Services Clients,21-Feb-2018,3402378-1782550D,"1,800.00",ACCOUNTABILITY CLIENT ACCOUNT NO 2.
Children and Young Peoples Services,Head of Early Help Assessment and Safeguarding,Transfer Payments,515201,Social Services Clients,21-Feb-2018,3402388-1782362H,660.00,ACCOUNTABILITY CLIENT ACCOUNT NO 2.
Children and Young Peoples Services,Head of Education,Transport,230007,Contract Hire,21-Feb-2018,3401927-515,"1,176.00",ACE TAXIS (WINSTON).
Children and Young Peoples Services,Head of Education,Transport,230007,Contract Hire,22-Feb-2018,3403404-514,"1,246.00",ACE TAXIS (WINSTON).
Children and Young Peoples Services,Head of Looked After Provision Permanence and Care Leavers,Third Party Payments,425040,Rendered by Voluntary Organisations,21-Feb-2018,3402630-1781770H,"3,299.80",ACORN CARE (NE) LTD T/A ACORN FOSTERING SERVICES.
Children and Young Peoples Services,Head of Looked After Provision Permanence and Care Leavers,Third Party Payments,425040,Rendered by Voluntary Organisations,21-Feb-2018,3402630-1781922H,"3,300.08",ACORN CARE (NE) LTD T/A ACORN FOSTERING SERVICES.
Children and Young Peoples Services,Head of Looked After Provision Permanence and Care Leavers,Third Party Payments,425040,Rendered by Voluntary Organisations,21-Feb-2018,3402630-1782393H,"3,500.00",ACORN CARE (NE) LTD T/A ACORN FOSTERING SERVICES.
Children and Young Peoples Services,Head of Looked After Provision Permanence and Care Leavers,Third Party Payments,425040,Rendered by Voluntary Organisations,21-Feb-2018,3402630-1782845H,"3,139.92",ACORN CARE (NE) LTD T/A ACORN FOSTERING SERVICES.
Children and Young Peoples Services,Head of Looked After Provision Permanence and Care Leavers,Third Party Payments,425040,Rendered by Voluntary Organisations,21-Feb-2018,3402630-1782859H,"3,500.00",ACORN CARE (NE) LTD T/A ACORN FOSTERING SERVICES.
Adult and Health Services,Head of Adults,Third Party Payments,470101,Purchase of Care,20-Feb-2018,3401592-2428072,"2,024.64",ACORN GRANGE NURSING HOME.
Adult and Health Services,Head of Adults,Third Party Payments,470101,Purchase of Care,20-Feb-2018,3401592-2428073,506.16,ACORN GRANGE NURSING HOME.
Adult and Health Services,Head of Adults,Third Party Payments,470101,Purchase of Care,20-Feb-2018,3401592-2428078,506.16,ACORN GRANGE NURSING HOME.
Adult and Health Services,Head of Adults,Third Party Payments,470101,Purchase of Care,20-Feb-2018,3401592-2428079,"2,024.64",ACORN GRANGE NURSING HOME.
Adult and Health Services,Head of Adults,Third Party Payments,470101,Purchase of Care,20-Feb-2018,3401592-2428080,"2,024.64",ACORN GRANGE NURSING HOME.
Adult and Health Services,Head of Adults,Third Party Payments,470101,Purchase of Care,20-Feb-2018,3401592-2428087,"2,024.64",ACORN GRANGE NURSING HOME.
Adult and Health Services,Head of Adults,Third Party Payments,470101,Purchase of Care,20-Feb-2018,3401592-2428088,"2,024.64",ACORN GRANGE NURSING HOME.
Adult and Health Services,Head of Adults,Third Party Payments,470101,Purchase of Care,20-Feb-2018,3401592-2428092,"2,024.64",ACORN GRANGE NURSING HOME.
Adult and Health Services,Head of Adults,Third Party Payments,470101,Purchase of Care,20-Feb-2018,3401592-2428097,"2,024.64",ACORN GRANGE NURSING HOME.
Adult and Health Services,Head of Adults,Third Party Payments,470101,Purchase of Care,20-Feb-2018,3401592-2428098,"2,024.64",ACORN GRANGE NURSING HOME.
Adult and Health Services,Head of Adults,Third Party Payments,470101,Purchase of Care,20-Feb-2018,3401592-2428099,"2,024.64",ACORN GRANGE NURSING HOME.
Adult and Health Services,Head of Adults,Third Party Payments,470101,Purchase of Care,20-Feb-2018,3401592-2431564,"1,084.62",ACORN GRANGE NURSING HOME.
Adult and Health Services,Head of Adults,Third Party Payments,471101,Purchase of Care,20-Feb-2018,3401592-2428075,"2,104.76",ACORN GRANGE NURSING HOME.
Adult and Health Services,Head of Adults,Third Party Payments,471101,Purchase of Care,20-Feb-2018,3401592-2428076,"2,104.76",ACORN GRANGE NURSING HOME.
Adult and Health Services,Head of Adults,Third Party Payments,471101,Purchase of Care,20-Feb-2018,3401592-2428077,"2,104.76",ACORN GRANGE NURSING HOME.
Adult and Health Services,Head of Adults,Third Party Payments,471101,Purchase of Care,20-Feb-2018,3401592-2428081,"2,104.76",ACORN GRANGE NURSING HOME.
Adult and Health Services,Head of Adults,Third Party Payments,471101,Purchase of Care,20-Feb-2018,3401592-2428082,"1,052.36",ACORN GRANGE NURSING HOME.
Adult and Health Services,Head of Adults,Third Party Payments,471101,Purchase of Care,20-Feb-2018,3401592-2428083,"2,104.76",ACORN GRANGE NURSING HOME.
Adult and Health Services,Head of Adults,Third Party Payments,471101,Purchase of Care,20-Feb-2018,3401592-2428084,"1,503.40",ACORN GRANGE NURSING HOME.
Adult and Health Services,Head of Adults,Third Party Payments,471101,Purchase of Care,20-Feb-2018,3401592-2428085,"2,104.76",ACORN GRANGE NURSING HOME.
Adult and Health Services,Head of Adults,Third Party Payments,471101,Purchase of Care,20-Feb-2018,3401592-2428086,"2,104.76",ACORN GRANGE NURSING HOME.
Adult and Health Services,Head of Adults,Third Party Payments,471101,Purchase of Care,20-Feb-2018,3401592-2428090,"2,104.76",ACORN GRANGE NURSING HOME.
Adult and Health Services,Head of Adults,Third Party Payments,471101,Purchase of Care,20-Feb-2018,3401592-2428091,"2,104.76",ACORN GRANGE NURSING HOME.
Adult and Health Services,Head of Adults,Third Party Payments,471101,Purchase of Care,20-Feb-2018,3401592-2428093,"2,104.76",ACORN GRANGE NURSING HOME.
Adult and Health Services,Head of Adults,Third Party Payments,471101,Purchase of Care,20-Feb-2018,3401592-2428094,"2,104.76",ACORN GRANGE NURSING HOME.
Adult and Health Services,Head of Adults,Third Party Payments,471101,Purchase of Care,20-Feb-2018,3401592-2428095,"2,104.76",ACORN GRANGE NURSING HOME.
Adult and Health Services,Head of Adults,Third Party Payments,471101,Purchase of Care,20-Feb-2018,3401592-2428096,"1,804.08",ACORN GRANGE NURSING HOME.
Adult and Health Services,Head of Adults,Third Party Payments,471101,Purchase of Care,20-Feb-2018,3401592-2431509,"1,992.04",ACORN GRANGE NURSING HOME.
Adult and Health Services,Head of Adults,Third Party Payments,471101,Purchase of Care,20-Feb-2018,3401592-2431565,977.21,ACORN GRANGE NURSING HOME.
Children and Young Peoples Services,Head of Looked After Provision Permanence and Care Leavers,Third Party Payments,425040,Rendered by Voluntary Organisations,21-Feb-2018,3402632-1783382H,"2,920.12",ACORN HOUSE (FOSTERING SERVICES) LTD.
Transformation and Partnerships,Comms & Information Management,Supplies and Services,384540,Miscellaneous Expenses,09-Feb-2018,3397193-59762,"12,668.92",ACORN WEB OFFSET LTD.
Children and Young Peoples Services,Head of Looked After Provision Permanence and Care Leavers,Third Party Payments,425040,Rendered by Voluntary Organisations,21-Feb-2018,3402633-1782283H,"2,920.12",ACTION FOR CHILDREN.
Children and Young Peoples Services,Head of Early Help Assessment and Safeguarding,Third Party Payments,486032,Service Level Agreements,23-Feb-2018,3403994-R81IN2/00007643,"1,812.51",ACTION FOR CHILDREN.
Adult and Health Services,Head of Adults,Third Party Payments,472101,Purchase of Care,21-Feb-2018,3402634-1777654H,600.95,ACTION ON HEARING LOSS.
Children and Young Peoples Services,Head of Education,Transport,230006,Contract Hire,09-Feb-2018,3397196-571,680.00,ADAMSONS TAXIS.
Resources,Legal & Democratic Services,Supplies and Services,332029,Printing Stationery and Gen Off Exps,22-Feb-2018,3403405-PSI0042763,950.00,ADARE INSPIRED COMMUNICATIONS.
Resources,Legal & Democratic Services,Supplies and Services,332029,Printing Stationery and Gen Off Exps,23-Feb-2018,3403995-PSI0038833,986.83,ADARE INSPIRED COMMUNICATIONS.
Resources,Legal & Democratic Services,Supplies and Services,332029,Printing Stationery and Gen Off Exps,23-Feb-2018,3403995-PSI0043177,"1,458.28",ADARE INSPIRED COMMUNICATIONS.
Resources,Legal & Democratic Services,Supplies and Services,332029,Printing Stationery and Gen Off Exps,23-Feb-2018,3403995-PSI0043186,"6,986.35",ADARE INSPIRED COMMUNICATIONS.
Adult and Health Services,Public Health,Premises,108099,Service Repairs and Maintenance,23-Feb-2018,3403997-37764420-61,"2,686.49",ADT FIRE & SECURITY PLC.
Children and Young Peoples Services,Head of Looked After Provision Permanence and Care Leavers,Premises,108251,Service Repairs and Maintenance,14-Feb-2018,3399215-37519701-61,"10,897.87",ADT FIRE & SECURITY PLC.
Regeneration and Local Services,Direct Services,Third Party Payments,430100,Rendered by Private Contractors,08-Feb-2018,3396874-37517036-61,565.00,ADT FIRE & SECURITY PLC.
Regeneration and Local Services,Direct Services,Third Party Payments,430100,Rendered by Private Contractors,21-Feb-2018,3401930-37535546-61,720.00,ADT FIRE & SECURITY PLC.
Children and Young Peoples Services,Head of Education,Transport,230008,Contract Hire,19-Feb-2018,3400385-1/18A,"2,232.00",ADVANCE TRAVEL.
Adult and Health Services,Head of Adults,Supplies and Services,304259,Equipment and Materials,21-Feb-2018,3401931-29JAN18,"1,515.00",ADVANCED DECORATING.
Adult and Health Services,Head of Adults,Supplies and Services,304259,Equipment and Materials,23-Feb-2018,3403998-14012018,"2,150.00",ADVANCED DECORATING.
Adult and Health Services,Head of Adults,Supplies and Services,304259,Equipment and Materials,27-Feb-2018,3404881-FLAT3FLAT6,"1,544.00",ADVANCED DECORATING.
Adult and Health Services,Head of Adults,Supplies and Services,304259,Equipment and Materials,27-Feb-2018,3404881-FLAT4FLAT9,"1,544.00",ADVANCED DECORATING.
Adult and Health Services,Head of Adults,Supplies and Services,304259,Equipment and Materials,27-Feb-2018,3404881-FLAT7FLAT1,"1,298.00",ADVANCED DECORATING.
Regeneration and Local Services,Technical Services,Fees,901002,Professional fees,19-Feb-2018,3400387-28336017,"4,001.68",AECOM LTD.
Children and Young Peoples Services,Head of Looked After Provision Permanence and Care Leavers,Supplies and Services,384199,Miscellaneous Expenses,26-Feb-2018,3404536-6756,"2,000.00",AFTER ADOPTION.
Resources,Digital and Customer Services,Supplies and Services,332029,Printing Stationery and Gen Off Exps,23-Feb-2018,3404000-107842,"1,158.60",AGNE LTD T/A ALPHAGRAPHICS.
Resources,Digital and Customer Services,Supplies and Services,332029,Printing Stationery and Gen Off Exps,23-Feb-2018,3404000-107844,"1,165.35",AGNE LTD T/A ALPHAGRAPHICS.
Resources,Digital and Customer Services,Supplies and Services,332029,Printing Stationery and Gen Off Exps,23-Feb-2018,3404000-107845,"1,103.28",AGNE LTD T/A ALPHAGRAPHICS.
Adult and Health Services,Head of Adults,Supplies and Services,308011,Furniture,27-Feb-2018,3404883-10531,532.00,AH & D CUTHBERTSON LTD.
Regeneration and Local Services,Culture & Sport,Supplies and Services,338047,Services,07-Feb-2018,3396470-27599,"1,035.00",AHA TALENT LTD.
Regeneration and Local Services,Technical Services,Employees,040149,Recruitment Instruction and Training,14-Feb-2018,3399216-381,843.15,AIRLIE BUSINESS SOLUTIONS LTD (ABSL).
Regeneration and Local Services,Technical Services,Employees,040149,Recruitment Instruction and Training,21-Feb-2018,3401933-387,843.15,AIRLIE BUSINESS SOLUTIONS LTD (ABSL).
Children and Young Peoples Services,Head of Education,Transport,230007,Contract Hire,14-Feb-2018,3399217-ESH0118,537.00,AIRPORT CARS DURHAM
Children and Young Peoples Services,Head of Education,Transport,230006,Contract Hire,14-Feb-2018,3399217-F677-JAN18,"1,081.60",AIRPORT CARS DURHAM
Dedicated Schools Grant,Dedicated Schools Grant,Transport,230010,Contract Hire,16-Feb-2018,3399994-B016-JAN,"1,209.60",AIRPORT CARS DURHAM
Adult and Health Services,Head of Adults,Transport,230005,Contract Hire,06-Feb-2018,3396108-0005,"1,470.00",AIRPORT TAXIS 4U.
Children and Young Peoples Services,Head of Education,Transport,230008,Contract Hire,14-Feb-2018,3399219-0025,840.00,AJ`S TAXIS.
Adult and Health Services,Central/Other,Debtors,930024,Debtor-free nursing care,20-Feb-2018,3401593-2430235,620.20,AKARI CARE LTD T/A AYCLIFFE CARE HOME.
Adult and Health Services,Central/Other,Debtors,930024,Debtor-free nursing care,20-Feb-2018,3401593-2430237,620.20,AKARI CARE LTD T/A AYCLIFFE CARE HOME.
Adult and Health Services,Central/Other,Debtors,930024,Debtor-free nursing care,20-Feb-2018,3401593-2430252,620.20,AKARI CARE LTD T/A AYCLIFFE CARE HOME.
Adult and Health Services,Central/Other,Debtors,930024,Debtor-free nursing care,20-Feb-2018,3401593-2430255,620.20,AKARI CARE LTD T/A AYCLIFFE CARE HOME.
Adult and Health Services,Central/Other,Debtors,930024,Debtor-free nursing care,20-Feb-2018,3401593-2430261,620.20,AKARI CARE LTD T/A AYCLIFFE CARE HOME.
Adult and Health Services,Central/Other,Debtors,930024,Debtor-free nursing care,20-Feb-2018,3401593-2430267,620.20,AKARI CARE LTD T/A AYCLIFFE CARE HOME.
Adult and Health Services,Central/Other,Debtors,930024,Debtor-free nursing care,20-Feb-2018,3401593-2430275,620.20,AKARI CARE LTD T/A AYCLIFFE CARE HOME.
Adult and Health Services,Head of Adults,Third Party Payments,474101,Purchase of Care,20-Feb-2018,3401593-2430231,"1,040.18",AKARI CARE LTD T/A AYCLIFFE CARE HOME.
Adult and Health Services,Head of Adults,Third Party Payments,474101,Purchase of Care,20-Feb-2018,3401593-2430234,"2,240.40",AKARI CARE LTD T/A AYCLIFFE CARE HOME.
Adult and Health Services,Head of Adults,Third Party Payments,474101,Purchase of Care,20-Feb-2018,3401593-2430236,"2,240.40",AKARI CARE LTD T/A AYCLIFFE CARE HOME.
Adult and Health Services,Head of Adults,Third Party Payments,474101,Purchase of Care,20-Feb-2018,3401593-2430242,"1,120.20",AKARI CARE LTD T/A AYCLIFFE CARE HOME.
Adult and Health Services,Head of Adults,Third Party Payments,474101,Purchase of Care,20-Feb-2018,3401593-2430245,"1,023.28",AKARI CARE LTD T/A AYCLIFFE CARE HOME.
Adult and Health Services,Head of Adults,Third Party Payments,474101,Purchase of Care,20-Feb-2018,3401593-2430251,"2,240.40",AKARI CARE LTD T/A AYCLIFFE CARE HOME.
Adult and Health Services,Head of Adults,Third Party Payments,474101,Purchase of Care,20-Feb-2018,3401593-2430253,"1,023.28",AKARI CARE LTD T/A AYCLIFFE CARE HOME.
Adult and Health Services,Head of Adults,Third Party Payments,474101,Purchase of Care,20-Feb-2018,3401593-2430260,"2,240.40",AKARI CARE LTD T/A AYCLIFFE CARE HOME.
Adult and Health Services,Head of Adults,Third Party Payments,474101,Purchase of Care,20-Feb-2018,3401593-2430262,"1,023.32",AKARI CARE LTD T/A AYCLIFFE CARE HOME.
Adult and Health Services,Head of Adults,Third Party Payments,474101,Purchase of Care,20-Feb-2018,3401593-2430266,"2,240.40",AKARI CARE LTD T/A AYCLIFFE CARE HOME.
Adult and Health Services,Head of Adults,Third Party Payments,474101,Purchase of Care,20-Feb-2018,3401593-2430274,"2,240.40",AKARI CARE LTD T/A AYCLIFFE CARE HOME.
Adult and Health Services,Head of Adults,Third Party Payments,474101,Purchase of Care,20-Feb-2018,3401593-2430279,"1,120.20",AKARI CARE LTD T/A AYCLIFFE CARE HOME.
Adult and Health Services,Head of Adults,Third Party Payments,470101,Purchase of Care,20-Feb-2018,3401593-2430230,"1,069.62",AKARI CARE LTD T/A AYCLIFFE CARE HOME.
Adult and Health Services,Head of Adults,Third Party Payments,470101,Purchase of Care,20-Feb-2018,3401593-2430233,"1,146.02",AKARI CARE LTD T/A AYCLIFFE CARE HOME.
Adult and Health Services,Head of Adults,Third Party Payments,470101,Purchase of Care,20-Feb-2018,3401593-2430240,"2,139.24",AKARI CARE LTD T/A AYCLIFFE CARE HOME.
Adult and Health Services,Head of Adults,Third Party Payments,470101,Purchase of Care,20-Feb-2018,3401593-2430241,"2,139.24",AKARI CARE LTD T/A AYCLIFFE CARE HOME.
Adult and Health Services,Head of Adults,Third Party Payments,470101,Purchase of Care,20-Feb-2018,3401593-2430244,"2,139.24",AKARI CARE LTD T/A AYCLIFFE CARE HOME.
Adult and Health Services,Head of Adults,Third Party Payments,470101,Purchase of Care,20-Feb-2018,3401593-2430250,687.61,AKARI CARE LTD T/A AYCLIFFE CARE HOME.
Adult and Health Services,Head of Adults,Third Party Payments,470101,Purchase of Care,20-Feb-2018,3401593-2430264,"2,139.24",AKARI CARE LTD T/A AYCLIFFE CARE HOME.
Adult and Health Services,Head of Adults,Third Party Payments,470101,Purchase of Care,20-Feb-2018,3401593-2430276,"2,139.24",AKARI CARE LTD T/A AYCLIFFE CARE HOME.
Adult and Health Services,Head of Adults,Third Party Payments,470101,Purchase of Care,20-Feb-2018,3401593-2430278,"2,139.24",AKARI CARE LTD T/A AYCLIFFE CARE HOME.
Adult and Health Services,Head of Adults,Third Party Payments,470101,Purchase of Care,20-Feb-2018,3401593-2430281,"2,139.24",AKARI CARE LTD T/A AYCLIFFE CARE HOME.
Adult and Health Services,Head of Adults,Third Party Payments,471101,Purchase of Care,20-Feb-2018,3401593-2430226,"1,029.87",AKARI CARE LTD T/A AYCLIFFE CARE HOME.
Adult and Health Services,Head of Adults,Third Party Payments,471101,Purchase of Care,20-Feb-2018,3401593-2430227,"1,109.10",AKARI CARE LTD T/A AYCLIFFE CARE HOME.
Adult and Health Services,Head of Adults,Third Party Payments,471101,Purchase of Care,20-Feb-2018,3401593-2430228,"2,218.20",AKARI CARE LTD T/A AYCLIFFE CARE HOME.
Adult and Health Services,Head of Adults,Third Party Payments,471101,Purchase of Care,20-Feb-2018,3401593-2430247,"2,138.97",AKARI CARE LTD T/A AYCLIFFE CARE HOME.
Adult and Health Services,Head of Adults,Third Party Payments,471101,Purchase of Care,20-Feb-2018,3401593-2430248,"2,218.20",AKARI CARE LTD T/A AYCLIFFE CARE HOME.
Adult and Health Services,Head of Adults,Third Party Payments,471101,Purchase of Care,20-Feb-2018,3401593-2430249,"2,218.20",AKARI CARE LTD T/A AYCLIFFE CARE HOME.
Adult and Health Services,Head of Adults,Third Party Payments,471101,Purchase of Care,20-Feb-2018,3401593-2430256,"2,218.20",AKARI CARE LTD T/A AYCLIFFE CARE HOME.
Adult and Health Services,Head of Adults,Third Party Payments,471101,Purchase of Care,20-Feb-2018,3401593-2430257,"2,218.20",AKARI CARE LTD T/A AYCLIFFE CARE HOME.
Adult and Health Services,Head of Adults,Third Party Payments,471101,Purchase of Care,20-Feb-2018,3401593-2430258,"2,218.20",AKARI CARE LTD T/A AYCLIFFE CARE HOME.
Adult and Health Services,Head of Adults,Third Party Payments,471101,Purchase of Care,20-Feb-2018,3401593-2430259,"2,218.20",AKARI CARE LTD T/A AYCLIFFE CARE HOME.
Adult and Health Services,Head of Adults,Third Party Payments,471101,Purchase of Care,20-Feb-2018,3401593-2430265,"2,218.20",AKARI CARE LTD T/A AYCLIFFE CARE HOME.
Adult and Health Services,Head of Adults,Third Party Payments,471101,Purchase of Care,20-Feb-2018,3401593-2430268,"2,218.20",AKARI CARE LTD T/A AYCLIFFE CARE HOME.
Adult and Health Services,Head of Adults,Third Party Payments,471101,Purchase of Care,20-Feb-2018,3401593-2430269,"2,218.20",AKARI CARE LTD T/A AYCLIFFE CARE HOME.
Adult and Health Services,Head of Adults,Third Party Payments,471101,Purchase of Care,20-Feb-2018,3401593-2430270,"2,218.20",AKARI CARE LTD T/A AYCLIFFE CARE HOME.
Adult and Health Services,Head of Adults,Third Party Payments,471101,Purchase of Care,20-Feb-2018,3401593-2430271,"2,218.20",AKARI CARE LTD T/A AYCLIFFE CARE HOME.
Adult and Health Services,Head of Adults,Third Party Payments,471101,Purchase of Care,20-Feb-2018,3401593-2430272,"2,218.20",AKARI CARE LTD T/A AYCLIFFE CARE HOME.
Adult and Health Services,Head of Adults,Third Party Payments,471101,Purchase of Care,20-Feb-2018,3401593-2430273,"2,218.20",AKARI CARE LTD T/A AYCLIFFE CARE HOME.
Adult and Health Services,Head of Adults,Third Party Payments,471101,Purchase of Care,20-Feb-2018,3401593-2430277,"2,218.20",AKARI CARE LTD T/A AYCLIFFE CARE HOME.
Adult and Health Services,Head of Adults,Third Party Payments,471101,Purchase of Care,20-Feb-2018,3401593-2430282,"2,218.20",AKARI CARE LTD T/A AYCLIFFE CARE HOME.
Adult and Health Services,Head of Adults,Third Party Payments,471101,Purchase of Care,20-Feb-2018,3401593-2430283,"2,218.20",AKARI CARE LTD T/A AYCLIFFE CARE HOME.
Adult and Health Services,Head of Adults,Third Party Payments,471101,Purchase of Care,20-Feb-2018,3401593-2431076,"1,029.88",AKARI CARE LTD T/A AYCLIFFE CARE HOME.
Adult and Health Services,Head of Adults,Third Party Payments,471101,Purchase of Care,20-Feb-2018,3401593-2431195,"2,535.09",AKARI CARE LTD T/A AYCLIFFE CARE HOME.
Adult and Health Services,Head of Adults,Third Party Payments,474101,Purchase of Care,20-Feb-2018,3401594-2430801,"2,244.48",AKARI CARE LTD T/A PAVILION COURT CARE HOME.
Adult and Health Services,Head of Adults,Third Party Payments,474101,Purchase of Care,20-Feb-2018,3401595-2429071,"1,500.00",AKARI CARE LTD T/A PHILIPS COURT.
Adult and Health Services,Head of Adults,Third Party Payments,474101,Purchase of Care,20-Feb-2018,3401595-2429072,"1,140.00",AKARI CARE LTD T/A PHILIPS COURT.
Adult and Health Services,Head of Adults,Third Party Payments,474101,Purchase of Care,20-Feb-2018,3401595-2429073,"1,596.00",AKARI CARE LTD T/A PHILIPS COURT.
Adult and Health Services,Head of Adults,Third Party Payments,474101,Purchase of Care,20-Feb-2018,3401595-2429075,"2,000.00",AKARI CARE LTD T/A PHILIPS COURT.
Adult and Health Services,Head of Adults,Third Party Payments,474101,Purchase of Care,20-Feb-2018,3401595-2429076,"3,360.00",AKARI CARE LTD T/A PHILIPS COURT.
Adult and Health Services,Head of Adults,Third Party Payments,474101,Purchase of Care,20-Feb-2018,3401595-2429077,"1,140.00",AKARI CARE LTD T/A PHILIPS COURT.
Adult and Health Services,Head of Adults,Third Party Payments,470101,Purchase of Care,20-Feb-2018,3401595-2429074,"1,102.00",AKARI CARE LTD T/A PHILIPS COURT.
Adult and Health Services,Head of Adults,Third Party Payments,470101,Purchase of Care,20-Feb-2018,3401596-2428769,"2,139.24",AKARI CARE LTD T/A WESTERLEIGH NURSING HOME.
Adult and Health Services,Head of Adults,Third Party Payments,470101,Purchase of Care,20-Feb-2018,3401596-2428773,"2,139.24",AKARI CARE LTD T/A WESTERLEIGH NURSING HOME.
Adult and Health Services,Head of Adults,Third Party Payments,470101,Purchase of Care,20-Feb-2018,3401596-2428774,"2,139.24",AKARI CARE LTD T/A WESTERLEIGH NURSING HOME.
Adult and Health Services,Head of Adults,Third Party Payments,470101,Purchase of Care,20-Feb-2018,3401596-2428775,"2,139.24",AKARI CARE LTD T/A WESTERLEIGH NURSING HOME.
Adult and Health Services,Head of Adults,Third Party Payments,470101,Purchase of Care,20-Feb-2018,3401596-2428776,"2,139.24",AKARI CARE LTD T/A WESTERLEIGH NURSING HOME.
Adult and Health Services,Head of Adults,Third Party Payments,470101,Purchase of Care,20-Feb-2018,3401596-2428777,"2,139.24",AKARI CARE LTD T/A WESTERLEIGH NURSING HOME.
Adult and Health Services,Head of Adults,Third Party Payments,470101,Purchase of Care,20-Feb-2018,3401596-2428778,611.21,AKARI CARE LTD T/A WESTERLEIGH NURSING HOME.
Adult and Health Services,Head of Adults,Third Party Payments,470101,Purchase of Care,20-Feb-2018,3401596-2428779,"2,139.24",AKARI CARE LTD T/A WESTERLEIGH NURSING HOME.
Adult and Health Services,Head of Adults,Third Party Payments,470101,Purchase of Care,20-Feb-2018,3401596-2428780,"2,139.24",AKARI CARE LTD T/A WESTERLEIGH NURSING HOME.
Adult and Health Services,Head of Adults,Third Party Payments,470101,Purchase of Care,20-Feb-2018,3401596-2428782,"2,139.24",AKARI CARE LTD T/A WESTERLEIGH NURSING HOME.
Adult and Health Services,Head of Adults,Third Party Payments,470101,Purchase of Care,20-Feb-2018,3401596-2428785,"2,139.24",AKARI CARE LTD T/A WESTERLEIGH NURSING HOME.
Adult and Health Services,Head of Adults,Third Party Payments,470101,Purchase of Care,20-Feb-2018,3401596-2428786,"2,139.24",AKARI CARE LTD T/A WESTERLEIGH NURSING HOME.
Adult and Health Services,Head of Adults,Third Party Payments,470101,Purchase of Care,20-Feb-2018,3401596-2428791,687.61,AKARI CARE LTD T/A WESTERLEIGH NURSING HOME.
Adult and Health Services,Head of Adults,Third Party Payments,470101,Purchase of Care,20-Feb-2018,3401596-2428792,"2,139.24",AKARI CARE LTD T/A WESTERLEIGH NURSING HOME.
Adult and Health Services,Head of Adults,Third Party Payments,470101,Purchase of Care,20-Feb-2018,3401596-2428793,"2,139.24",AKARI CARE LTD T/A WESTERLEIGH NURSING HOME.
Adult and Health Services,Head of Adults,Third Party Payments,470101,Purchase of Care,20-Feb-2018,3401596-2428796,"2,139.24",AKARI CARE LTD T/A WESTERLEIGH NURSING HOME.
Adult and Health Services,Head of Adults,Third Party Payments,470101,Purchase of Care,20-Feb-2018,3401596-2428798,"2,139.24",AKARI CARE LTD T/A WESTERLEIGH NURSING HOME.
Adult and Health Services,Head of Adults,Third Party Payments,470101,Purchase of Care,20-Feb-2018,3401596-2428799,"2,139.24",AKARI CARE LTD T/A WESTERLEIGH NURSING HOME.
Adult and Health Services,Head of Adults,Third Party Payments,470101,Purchase of Care,20-Feb-2018,3401596-2428800,"2,139.24",AKARI CARE LTD T/A WESTERLEIGH NURSING HOME.
Adult and Health Services,Head of Adults,Third Party Payments,470101,Purchase of Care,20-Feb-2018,3401596-2428801,"2,139.24",AKARI CARE LTD T/A WESTERLEIGH NURSING HOME.
Adult and Health Services,Head of Adults,Third Party Payments,470101,Purchase of Care,20-Feb-2018,3401596-2428802,"2,139.24",AKARI CARE LTD T/A WESTERLEIGH NURSING HOME.
Adult and Health Services,Head of Adults,Third Party Payments,470101,Purchase of Care,20-Feb-2018,3401596-2428803,"2,139.24",AKARI CARE LTD T/A WESTERLEIGH NURSING HOME.
Adult and Health Services,Head of Adults,Third Party Payments,470101,Purchase of Care,20-Feb-2018,3401596-2428804,"2,139.24",AKARI CARE LTD T/A WESTERLEIGH NURSING HOME.
Adult and Health Services,Head of Adults,Third Party Payments,470101,Purchase of Care,20-Feb-2018,3401596-2428805,951.32,AKARI CARE LTD T/A WESTERLEIGH NURSING HOME.
Adult and Health Services,Head of Adults,Third Party Payments,470101,Purchase of Care,20-Feb-2018,3401596-2428806,"2,139.24",AKARI CARE LTD T/A WESTERLEIGH NURSING HOME.
Adult and Health Services,Head of Adults,Third Party Payments,470101,Purchase of Care,20-Feb-2018,3401596-2428808,"2,139.24",AKARI CARE LTD T/A WESTERLEIGH NURSING HOME.
Adult and Health Services,Head of Adults,Third Party Payments,470101,Purchase of Care,20-Feb-2018,3401596-2428809,"2,139.24",AKARI CARE LTD T/A WESTERLEIGH NURSING HOME.
Adult and Health Services,Head of Adults,Third Party Payments,470101,Purchase of Care,20-Feb-2018,3401596-2428810,"2,139.24",AKARI CARE LTD T/A WESTERLEIGH NURSING HOME.
Adult and Health Services,Head of Adults,Third Party Payments,470101,Purchase of Care,20-Feb-2018,3401596-2428811,"2,139.24",AKARI CARE LTD T/A WESTERLEIGH NURSING HOME.
Adult and Health Services,Head of Adults,Third Party Payments,470101,Purchase of Care,20-Feb-2018,3401596-2428812,"2,139.24",AKARI CARE LTD T/A WESTERLEIGH NURSING HOME.
Adult and Health Services,Head of Adults,Third Party Payments,470101,Purchase of Care,20-Feb-2018,3401596-2431404,"5,653.71",AKARI CARE LTD T/A WESTERLEIGH NURSING HOME.
Adult and Health Services,Head of Adults,Third Party Payments,470101,Purchase of Care,20-Feb-2018,3401596-2431407,993.21,AKARI CARE LTD T/A WESTERLEIGH NURSING HOME.
Adult and Health Services,Head of Adults,Third Party Payments,470101,Purchase of Care,20-Feb-2018,3401596-2431408,"1,757.23",AKARI CARE LTD T/A WESTERLEIGH NURSING HOME.
Adult and Health Services,Head of Adults,Third Party Payments,470101,Purchase of Care,20-Feb-2018,3401596-2431630,840.41,AKARI CARE LTD T/A WESTERLEIGH NURSING HOME.
Adult and Health Services,Head of Adults,Third Party Payments,470101,Purchase of Care,20-Feb-2018,3401596-2431690,"1,757.23",AKARI CARE LTD T/A WESTERLEIGH NURSING HOME.
Adult and Health Services,Head of Adults,Third Party Payments,471101,Purchase of Care,20-Feb-2018,3401596-2428767,"4,911.73",AKARI CARE LTD T/A WESTERLEIGH NURSING HOME.
Adult and Health Services,Head of Adults,Third Party Payments,471101,Purchase of Care,20-Feb-2018,3401596-2428768,"4,674.06",AKARI CARE LTD T/A WESTERLEIGH NURSING HOME.
Adult and Health Services,Head of Adults,Third Party Payments,471101,Purchase of Care,20-Feb-2018,3401596-2428771,"2,218.20",AKARI CARE LTD T/A WESTERLEIGH NURSING HOME.
Adult and Health Services,Head of Adults,Third Party Payments,471101,Purchase of Care,20-Feb-2018,3401596-2428772,"2,218.20",AKARI CARE LTD T/A WESTERLEIGH NURSING HOME.
Adult and Health Services,Head of Adults,Third Party Payments,471101,Purchase of Care,20-Feb-2018,3401596-2428783,"2,218.20",AKARI CARE LTD T/A WESTERLEIGH NURSING HOME.
Adult and Health Services,Head of Adults,Third Party Payments,471101,Purchase of Care,20-Feb-2018,3401596-2428784,"2,218.20",AKARI CARE LTD T/A WESTERLEIGH NURSING HOME.
Adult and Health Services,Head of Adults,Third Party Payments,471101,Purchase of Care,20-Feb-2018,3401596-2428787,"2,218.20",AKARI CARE LTD T/A WESTERLEIGH NURSING HOME.
Adult and Health Services,Head of Adults,Third Party Payments,471101,Purchase of Care,20-Feb-2018,3401596-2428788,"2,218.20",AKARI CARE LTD T/A WESTERLEIGH NURSING HOME.
Adult and Health Services,Head of Adults,Third Party Payments,471101,Purchase of Care,20-Feb-2018,3401596-2428789,"2,218.20",AKARI CARE LTD T/A WESTERLEIGH NURSING HOME.
Adult and Health Services,Head of Adults,Third Party Payments,471101,Purchase of Care,20-Feb-2018,3401596-2428790,"2,218.20",AKARI CARE LTD T/A WESTERLEIGH NURSING HOME.
Adult and Health Services,Head of Adults,Third Party Payments,471101,Purchase of Care,20-Feb-2018,3401596-2428794,"2,218.20",AKARI CARE LTD T/A WESTERLEIGH NURSING HOME.
Adult and Health Services,Head of Adults,Third Party Payments,471101,Purchase of Care,20-Feb-2018,3401596-2428797,"1,013.20",AKARI CARE LTD T/A WESTERLEIGH NURSING HOME.
Adult and Health Services,Head of Adults,Third Party Payments,471101,Purchase of Care,20-Feb-2018,3401596-2431100,"1,109.10",AKARI CARE LTD T/A WESTERLEIGH NURSING HOME.
Adult and Health Services,Head of Adults,Third Party Payments,474101,Purchase of Care,20-Feb-2018,3401597-2429110,"2,155.44",AKARI CARE LTD T/A WORDSWORTH HOUSE NURSING HOME.
Regeneration and Local Services,Direct Services,Third Party Payments,430100,Rendered by Private Contractors,20-Feb-2018,3401398-69280,"1,807.50",ALAN SEWELL LTD.
Regeneration and Local Services,Spatial Policy Planning Assets & Environment,Supplies and Services,338066,Services,19-Feb-2018,3400389-AS/AONB/250118,"1,038.32",ALAN SMITH (BUILDER).
Children and Young Peoples Services,Head of Education,Transport,230008,Contract Hire,06-Feb-2018,3396110-153955,"1,437.50",ALAN SOUTHERN T/A ALANS TAXIS PELTON FELL.
Children and Young Peoples Services,Head of Education,Transport,230008,Contract Hire,06-Feb-2018,3396110-388955,"1,305.00",ALAN SOUTHERN T/A ALANS TAXIS PELTON FELL.
Children and Young Peoples Services,Head of Looked After Provision Permanence and Care Leavers,Premises,108251,Service Repairs and Maintenance,01-Feb-2018,3394452-49377,536.00,ALARM RADIO MONITORING LTD.
Regeneration and Local Services,Direct Services,Vehicles Equipment Furniture and Fittings,912521,Purchase-furniture and fittings,27-Feb-2018,3404884-161295,"24,739.73",ALBANY OFFICE EQUIPMENT (WHOLESALE) LTD.
Resources,Corporate Finance & Commercial Services,Supplies and Services,304259,Equipment and Materials,23-Feb-2018,3404001-Y00002164-INV,"1,040.00",ALCUMUS SYPOL LTD.
Adult and Health Services,Head of Adults,Third Party Payments,474101,Purchase of Care,20-Feb-2018,3401598-2430916,"3,152.00",ALDBOURNE NURSING HOME.
Resources,Legal & Democratic Services,Supplies and Services,338057,Services,12-Feb-2018,3397705-0000029359,990.00,ALERE FORENSICS.
Resources,Legal & Democratic Services,Supplies and Services,338057,Services,15-Feb-2018,3399635-0000029570,"2,155.00",ALERE FORENSICS.
Resources,Legal & Democratic Services,Supplies and Services,338057,Services,16-Feb-2018,3399995-0000029378,"1,030.00",ALERE FORENSICS.
Resources,Legal & Democratic Services,Supplies and Services,338057,Services,23-Feb-2018,3404002-0000029464,"1,955.00",ALERE FORENSICS.
Children and Young Peoples Services,Head of Looked After Provision Permanence and Care Leavers,Supplies and Services,338078,Services,02-Feb-2018,3394768-07313,"1,503.60",ALL EVENTS SECURITY LTD (AES).
Children and Young Peoples Services,Head of Looked After Provision Permanence and Care Leavers,Supplies and Services,338078,Services,02-Feb-2018,3394768-07317,"1,503.60",ALL EVENTS SECURITY LTD (AES).
Children and Young Peoples Services,Head of Looked After Provision Permanence and Care Leavers,Supplies and Services,338078,Services,02-Feb-2018,3394768-07331,"1,503.60",ALL EVENTS SECURITY LTD (AES).
Children and Young Peoples Services,Head of Looked After Provision Permanence and Care Leavers,Supplies and Services,338078,Services,23-Feb-2018,3404003-07339,"1,503.60",ALL EVENTS SECURITY LTD (AES).
Children and Young Peoples Services,Head of Looked After Provision Permanence and Care Leavers,Supplies and Services,338078,Services,23-Feb-2018,3404003-07347,"1,503.60",ALL EVENTS SECURITY LTD (AES).
Children and Young Peoples Services,Head of Looked After Provision Permanence and Care Leavers,Supplies and Services,338078,Services,23-Feb-2018,3404003-07354,"1,503.60",ALL EVENTS SECURITY LTD (AES).
Adult and Health Services,Commissioning inc Supporting People,Debtors,930138,Debtor IC+ Residential Care Voids - CCG,02-Feb-2018,3394769-BROVOID14012018,840.40,ALLIANCE CARE.
Adult and Health Services,Commissioning inc Supporting People,Debtors,930138,Debtor IC+ Residential Care Voids - CCG,20-Feb-2018,3401401-BROVOID11022018,"4,507.60",ALLIANCE CARE.
Adult and Health Services,Commissioning inc Supporting People,Debtors,930138,Debtor IC+ Residential Care Voids - CCG,26-Feb-2018,3404538-BROVOID17122017,687.60,ALLIANCE CARE.
Adult and Health Services,Head of Adults,Debtors,930136,Debtor Nursing Care - IC+ Nursing,20-Feb-2018,3401599-2431500,"2,800.50",ALLIANCE CARE.
Adult and Health Services,Head of Adults,Debtors,930135,Debtor Residential Care - IC+ Rehabilitation,20-Feb-2018,3401599-2428632,"2,139.24",ALLIANCE CARE.
Adult and Health Services,Head of Adults,Debtors,930135,Debtor Residential Care - IC+ Rehabilitation,20-Feb-2018,3401599-2428633,687.61,ALLIANCE CARE.
Adult and Health Services,Head of Adults,Debtors,930135,Debtor Residential Care - IC+ Rehabilitation,20-Feb-2018,3401599-2431344,840.41,ALLIANCE CARE.
Adult and Health Services,Head of Adults,Debtors,930135,Debtor Residential Care - IC+ Rehabilitation,20-Feb-2018,3401599-2431345,"1,375.22",ALLIANCE CARE.
Adult and Health Services,Head of Adults,Debtors,930135,Debtor Residential Care - IC+ Rehabilitation,20-Feb-2018,3401599-2431348,764.01,ALLIANCE CARE.
Adult and Health Services,Head of Adults,Debtors,930135,Debtor Residential Care - IC+ Rehabilitation,20-Feb-2018,3401599-2431349,764.01,ALLIANCE CARE.
Adult and Health Services,Head of Adults,Debtors,930135,Debtor Residential Care - IC+ Rehabilitation,20-Feb-2018,3401599-2431350,687.61,ALLIANCE CARE.
Adult and Health Services,Head of Adults,Debtors,930135,Debtor Residential Care - IC+ Rehabilitation,20-Feb-2018,3401599-2431352,534.81,ALLIANCE CARE.
Adult and Health Services,Head of Adults,Debtors,930135,Debtor Residential Care - IC+ Rehabilitation,20-Feb-2018,3401599-2431354,"1,604.43",ALLIANCE CARE.
Adult and Health Services,Head of Adults,Debtors,930135,Debtor Residential Care - IC+ Rehabilitation,20-Feb-2018,3401599-2431505,687.61,ALLIANCE CARE.
Adult and Health Services,Central/Other,Debtors,930024,Debtor-free nursing care,20-Feb-2018,3401599-2428637,"7,021.55",ALLIANCE CARE.
Adult and Health Services,Central/Other,Debtors,930024,Debtor-free nursing care,20-Feb-2018,3401599-2428646,620.20,ALLIANCE CARE.
Adult and Health Services,Central/Other,Debtors,930024,Debtor-free nursing care,20-Feb-2018,3401599-2428653,620.20,ALLIANCE CARE.
Adult and Health Services,Central/Other,Debtors,930024,Debtor-free nursing care,20-Feb-2018,3401599-2428655,620.20,ALLIANCE CARE.
Adult and Health Services,Central/Other,Debtors,930024,Debtor-free nursing care,20-Feb-2018,3401599-2428659,620.20,ALLIANCE CARE.
Adult and Health Services,Central/Other,Debtors,930024,Debtor-free nursing care,20-Feb-2018,3401599-2428664,620.20,ALLIANCE CARE.
Adult and Health Services,Central/Other,Debtors,930024,Debtor-free nursing care,20-Feb-2018,3401599-2428670,620.20,ALLIANCE CARE.
Adult and Health Services,Central/Other,Debtors,930024,Debtor-free nursing care,20-Feb-2018,3401599-2428680,620.20,ALLIANCE CARE.
Adult and Health Services,Central/Other,Debtors,930024,Debtor-free nursing care,20-Feb-2018,3401599-2428687,620.20,ALLIANCE CARE.
Adult and Health Services,Central/Other,Debtors,930024,Debtor-free nursing care,20-Feb-2018,3401599-2431501,775.25,ALLIANCE CARE.
Adult and Health Services,Head of Adults,Third Party Payments,474101,Purchase of Care,20-Feb-2018,3401599-2428645,"2,240.40",ALLIANCE CARE.
Adult and Health Services,Head of Adults,Third Party Payments,474101,Purchase of Care,20-Feb-2018,3401599-2428652,"2,240.40",ALLIANCE CARE.
Adult and Health Services,Head of Adults,Third Party Payments,474101,Purchase of Care,20-Feb-2018,3401599-2428654,"2,240.40",ALLIANCE CARE.
Adult and Health Services,Head of Adults,Third Party Payments,474101,Purchase of Care,20-Feb-2018,3401599-2428658,"2,240.40",ALLIANCE CARE.
Adult and Health Services,Head of Adults,Third Party Payments,474101,Purchase of Care,20-Feb-2018,3401599-2428663,"2,240.40",ALLIANCE CARE.
Adult and Health Services,Head of Adults,Third Party Payments,474101,Purchase of Care,20-Feb-2018,3401599-2428669,"2,240.40",ALLIANCE CARE.
Adult and Health Services,Head of Adults,Third Party Payments,474101,Purchase of Care,20-Feb-2018,3401599-2428679,"2,240.40",ALLIANCE CARE.
Adult and Health Services,Head of Adults,Third Party Payments,474101,Purchase of Care,20-Feb-2018,3401599-2428686,"2,240.40",ALLIANCE CARE.
Adult and Health Services,Head of Adults,Third Party Payments,470102,Purchase of Care,20-Feb-2018,3401599-2428648,"2,062.83",ALLIANCE CARE.
Adult and Health Services,Head of Adults,Third Party Payments,470101,Purchase of Care,20-Feb-2018,3401599-2428634,"1,451.62",ALLIANCE CARE.
Adult and Health Services,Head of Adults,Third Party Payments,470101,Purchase of Care,20-Feb-2018,3401599-2428636,"2,139.24",ALLIANCE CARE.
Adult and Health Services,Head of Adults,Third Party Payments,470101,Purchase of Care,20-Feb-2018,3401599-2428639,"2,139.24",ALLIANCE CARE.
Adult and Health Services,Head of Adults,Third Party Payments,470101,Purchase of Care,20-Feb-2018,3401599-2428640,"2,139.24",ALLIANCE CARE.
Adult and Health Services,Head of Adults,Third Party Payments,470101,Purchase of Care,20-Feb-2018,3401599-2428642,"2,139.24",ALLIANCE CARE.
Adult and Health Services,Head of Adults,Third Party Payments,470101,Purchase of Care,20-Feb-2018,3401599-2428644,"2,399.00",ALLIANCE CARE.
Adult and Health Services,Head of Adults,Third Party Payments,470101,Purchase of Care,20-Feb-2018,3401599-2428649,"2,139.24",ALLIANCE CARE.
Adult and Health Services,Head of Adults,Third Party Payments,470101,Purchase of Care,20-Feb-2018,3401599-2428650,"2,139.24",ALLIANCE CARE.
Adult and Health Services,Head of Adults,Third Party Payments,470101,Purchase of Care,20-Feb-2018,3401599-2428657,"1,069.64",ALLIANCE CARE.
Adult and Health Services,Head of Adults,Third Party Payments,470101,Purchase of Care,20-Feb-2018,3401599-2428660,"2,139.24",ALLIANCE CARE.
Adult and Health Services,Head of Adults,Third Party Payments,470101,Purchase of Care,20-Feb-2018,3401599-2428667,"2,139.24",ALLIANCE CARE.
Adult and Health Services,Head of Adults,Third Party Payments,470101,Purchase of Care,20-Feb-2018,3401599-2428673,"2,399.00",ALLIANCE CARE.
Adult and Health Services,Head of Adults,Third Party Payments,470101,Purchase of Care,20-Feb-2018,3401599-2428674,"2,139.24",ALLIANCE CARE.
Adult and Health Services,Head of Adults,Third Party Payments,470101,Purchase of Care,20-Feb-2018,3401599-2428675,"2,139.24",ALLIANCE CARE.
Adult and Health Services,Head of Adults,Third Party Payments,470101,Purchase of Care,20-Feb-2018,3401599-2428676,"2,139.24",ALLIANCE CARE.
Adult and Health Services,Head of Adults,Third Party Payments,470101,Purchase of Care,20-Feb-2018,3401599-2428677,"2,139.24",ALLIANCE CARE.
Adult and Health Services,Head of Adults,Third Party Payments,470101,Purchase of Care,20-Feb-2018,3401599-2428683,"2,139.24",ALLIANCE CARE.
Adult and Health Services,Head of Adults,Third Party Payments,470101,Purchase of Care,20-Feb-2018,3401599-2428688,"2,139.24",ALLIANCE CARE.
Adult and Health Services,Head of Adults,Third Party Payments,470101,Purchase of Care,20-Feb-2018,3401599-2428689,"2,139.24",ALLIANCE CARE.
Adult and Health Services,Head of Adults,Third Party Payments,470101,Purchase of Care,20-Feb-2018,3401599-2428690,"2,399.00",ALLIANCE CARE.
Adult and Health Services,Head of Adults,Third Party Payments,470101,Purchase of Care,20-Feb-2018,3401599-2431346,764.01,ALLIANCE CARE.
Adult and Health Services,Head of Adults,Third Party Payments,470101,Purchase of Care,20-Feb-2018,3401599-2431502,"1,833.63",ALLIANCE CARE.
Adult and Health Services,Head of Adults,Third Party Payments,471101,Purchase of Care,20-Feb-2018,3401599-2428641,"1,109.08",ALLIANCE CARE.
Adult and Health Services,Head of Adults,Third Party Payments,471101,Purchase of Care,20-Feb-2018,3401599-2428647,"2,218.20",ALLIANCE CARE.
Adult and Health Services,Head of Adults,Third Party Payments,471101,Purchase of Care,20-Feb-2018,3401599-2428651,"2,218.20",ALLIANCE CARE.
Adult and Health Services,Head of Adults,Third Party Payments,471101,Purchase of Care,20-Feb-2018,3401599-2428661,"2,218.20",ALLIANCE CARE.
Adult and Health Services,Head of Adults,Third Party Payments,471101,Purchase of Care,20-Feb-2018,3401599-2428662,"2,218.20",ALLIANCE CARE.
Adult and Health Services,Head of Adults,Third Party Payments,471101,Purchase of Care,20-Feb-2018,3401599-2428665,"2,218.20",ALLIANCE CARE.
Adult and Health Services,Head of Adults,Third Party Payments,471101,Purchase of Care,20-Feb-2018,3401599-2428666,"2,218.20",ALLIANCE CARE.
Adult and Health Services,Head of Adults,Third Party Payments,471101,Purchase of Care,20-Feb-2018,3401599-2428668,"2,218.20",ALLIANCE CARE.
Adult and Health Services,Head of Adults,Third Party Payments,471101,Purchase of Care,20-Feb-2018,3401599-2428678,"2,218.20",ALLIANCE CARE.
Adult and Health Services,Head of Adults,Third Party Payments,471101,Purchase of Care,20-Feb-2018,3401599-2428681,"2,218.20",ALLIANCE CARE.
Adult and Health Services,Head of Adults,Third Party Payments,471101,Purchase of Care,20-Feb-2018,3401599-2428682,"1,109.08",ALLIANCE CARE.
Adult and Health Services,Head of Adults,Third Party Payments,471101,Purchase of Care,20-Feb-2018,3401599-2428684,"2,218.20",ALLIANCE CARE.
Adult and Health Services,Head of Adults,Third Party Payments,471101,Purchase of Care,20-Feb-2018,3401599-2428685,"2,218.20",ALLIANCE CARE.
Adult and Health Services,Head of Adults,Third Party Payments,471101,Purchase of Care,20-Feb-2018,3401599-2431353,"1,742.87",ALLIANCE CARE.
Adult and Health Services,Head of Adults,Third Party Payments,471101,Purchase of Care,20-Feb-2018,3401599-2431744,"1,901.31",ALLIANCE CARE.
Adult and Health Services,Head of Adults,Third Party Payments,470101,Purchase of Care,20-Feb-2018,3401600-2429808,"1,984.00",ALLINGTON HOUSE CARE HOME.
Adult and Health Services,Head of Adults,Third Party Payments,474101,Purchase of Care,20-Feb-2018,3401601-2399524,"1,056.00",ALLISON HOUSE.
Adult and Health Services,Head of Adults,Third Party Payments,474101,Purchase of Care,20-Feb-2018,3401601-2430287,"1,056.00",ALLISON HOUSE.
Children and Young Peoples Services,Head of Early Help Assessment and Safeguarding,Supplies and Services,338044,Services,08-Feb-2018,3396880-19008,925.00,ALPHA BIOLABORATORIES LTD.
Regeneration and Local Services,Technical Services,Supplies and Services,304221,Equipment and Materials,23-Feb-2018,3404006-12519,"1,976.40",ALSTON NATURAL STONE LTD.
Children and Young Peoples Services,Head of Education,Transport,230007,Contract Hire,16-Feb-2018,3399998-DCC016-3030,566.13,ALSTON ROAD GARAGE.
Children and Young Peoples Services,Head of Education,Transport,230007,Contract Hire,16-Feb-2018,3399998-DCC016-3035,888.22,ALSTON ROAD GARAGE.
Children and Young Peoples Services,Head of Education,Transport,230007,Contract Hire,16-Feb-2018,3399998-DCC016-3037,"2,147.75",ALSTON ROAD GARAGE.
Children and Young Peoples Services,Head of Education,Transport,230007,Contract Hire,16-Feb-2018,3399998-DCC016-3273,"1,066.22",ALSTON ROAD GARAGE.
Children and Young Peoples Services,Head of Education,Transport,230007,Contract Hire,16-Feb-2018,3399998-DCC016-6014,"2,382.30",ALSTON ROAD GARAGE.
Adult and Health Services,Commissioning inc Supporting People,Supplies and Services,338091,Services,23-Feb-2018,3404007-4100606732,"1,152.00",ALYSON CORKISH T/A BODY SHAPE MATTERS.
Regeneration and Local Services,Culture & Sport,Supplies and Services,384199,Miscellaneous Expenses,26-Feb-2018,3404539-FEB232018,750.00,AMANDA WOODS.
Regeneration and Local Services,Culture & Sport,Supplies and Services,384199,Miscellaneous Expenses,26-Feb-2018,3404539-FEB232018B,750.00,AMANDA WOODS.
Children and Young Peoples Services,Head of Education,Transport,230007,Contract Hire,08-Feb-2018,3396881-179AT,890.00,AMBER TRAVEL.
Regeneration and Local Services,Direct Services,Supplies and Services,304221,Equipment and Materials,12-Feb-2018,3397708-16597,700.00,AMBIC LTD.
Regeneration and Local Services,Direct Services,Supplies and Services,304221,Equipment and Materials,16-Feb-2018,3399999-16611,"1,650.00",AMBIC LTD.
Regeneration and Local Services,Direct Services,Third Party Payments,430100,Rendered by Private Contractors,12-Feb-2018,3397708-16600,"4,875.00",AMBIC LTD.
Regeneration and Local Services,Direct Services,Third Party Payments,430100,Rendered by Private Contractors,12-Feb-2018,3397708-16621,"1,075.00",AMBIC LTD.
Regeneration and Local Services,Direct Services,Third Party Payments,430100,Rendered by Private Contractors,14-Feb-2018,3399222-16580,"4,950.00",AMBIC LTD.
Regeneration and Local Services,Culture & Sport,Supplies and Services,312013,Newspapers Books and Periodicals,14-Feb-2018,3399224-2018-045-141-001141,"2,604.73",AMERICAN EXPRESS SERVICES EUROPE LTD.
Regeneration and Local Services,Culture & Sport,Supplies and Services,312013,Newspapers Books and Periodicals,22-Feb-2018,3403412-2018-053-141-007012,"6,803.21",AMERICAN EXPRESS SERVICES EUROPE LTD.
Regeneration and Local Services,Spatial Policy Planning Assets & Environment,Supplies and Services,384899,Miscellaneous Expenses,23-Feb-2018,3404008-2018-053-141-007687,"3,685.62",AMERICAN EXPRESS SERVICES EUROPE LTD.
Regeneration and Local Services,Economic Development and Housing,Payments In Advance,932001,Payments in advance,14-Feb-2018,3399224-2018-045-141-001155,"2,037.98",AMERICAN EXPRESS SERVICES EUROPE LTD.
Resources,Digital and Customer Services,Supplies and Services,342051,Computers and Communications,23-Feb-2018,3404008-2018-053-141-007679,"3,772.00",AMERICAN EXPRESS SERVICES EUROPE LTD.
Adult and Health Services,Head of Adults,Third Party Payments,471101,Purchase of Care,20-Feb-2018,3401602-2430803,"2,187.48",AMERIND GROVE NURSING HOME.
Adult and Health Services,Head of Adults,Third Party Payments,470101,Purchase of Care,20-Feb-2018,3401603-2429988,"2,156.00",ANCHOR CAREHOMES LTD T/A WYNYARD WOODS GRANGE RESIDENTIAL CARE HOME.
Adult and Health Services,Head of Adults,Third Party Payments,470101,Purchase of Care,20-Feb-2018,3401603-2429989,"2,156.00",ANCHOR CAREHOMES LTD T/A WYNYARD WOODS GRANGE RESIDENTIAL CARE HOME.
Adult and Health Services,Head of Adults,Third Party Payments,470101,Purchase of Care,20-Feb-2018,3401603-2429990,"2,156.00",ANCHOR CAREHOMES LTD T/A WYNYARD WOODS GRANGE RESIDENTIAL CARE HOME.
Adult and Health Services,Head of Adults,Third Party Payments,470101,Purchase of Care,20-Feb-2018,3401603-2429991,"2,156.00",ANCHOR CAREHOMES LTD T/A WYNYARD WOODS GRANGE RESIDENTIAL CARE HOME.
Regeneration and Local Services,Economic Development and Housing,Supplies and Services,342053,Computers and Communications,19-Feb-2018,3400393-9940200,826.30,ANCHOR COMPUTER SYSTEMS LTD.
Adult and Health Services,Head of Adults,Third Party Payments,470101,Purchase of Care,20-Feb-2018,3401604-2428159,"2,016.00",ANCHOR HOUSING ASSOCIATION.
Adult and Health Services,Head of Adults,Third Party Payments,470101,Purchase of Care,20-Feb-2018,3401604-2428160,"2,016.00",ANCHOR HOUSING ASSOCIATION.
Adult and Health Services,Head of Adults,Third Party Payments,470101,Purchase of Care,20-Feb-2018,3401605-2430999,"2,204.00",ANCHOR TRUST T/A NORTHBOURNE CARE HOME.
Children and Young Peoples Services,Head of Education,Transport,230006,Contract Hire,09-Feb-2018,3397202-0044,"1,180.00",ANDREW SIMPSON T/A ANDY`S CABS.
Children and Young Peoples Services,Head of Education,Transport,230008,Contract Hire,09-Feb-2018,3397203-136,"1,260.00",ANDY CABS.
Regeneration and Local Services,Economic Development and Housing,Cap Exp on Grants & Other Financial Assistance (REFCUS),918401,Capital grants,09-Feb-2018,3397204-RED-01-2018-220,510.00,ANGEL PROPZ LTD.
Regeneration and Local Services,Economic Development and Housing,Cap Exp on Grants & Other Financial Assistance (REFCUS),918401,Capital grants,09-Feb-2018,3397204-RED-01-2018-221,"1,500.00",ANGEL PROPZ LTD.
Regeneration and Local Services,Economic Development and Housing,Cap Exp on Grants & Other Financial Assistance (REFCUS),918401,Capital grants,13-Feb-2018,3398842-RED-02-2018-081,"1,136.00",ANGEL PROPZ LTD.
Children and Young Peoples Services,Head of Early Help Assessment and Safeguarding,Supplies and Services,304083,Equipment and Materials,23-Feb-2018,3404011-3403872,820.61,ANGEL SPRINGS LTD T/A WATERLOGIC.*
Children and Young Peoples Services,Head of Early Help Assessment and Safeguarding,Supplies and Services,304259,Equipment and Materials,05-Feb-2018,3395134-4049821,882.94,ANGEL SPRINGS LTD T/A WATERLOGIC.*
Regeneration and Local Services,Economic Development and Housing,Supplies and Services,304259,Equipment and Materials,23-Feb-2018,3404011-4118824,792.00,ANGEL SPRINGS LTD T/A WATERLOGIC.*
Regeneration and Local Services,Economic Development and Housing,Supplies and Services,304259,Equipment and Materials,23-Feb-2018,3404011-4118825,663.12,ANGEL SPRINGS LTD T/A WATERLOGIC.*
Adult and Health Services,Commissioning inc Supporting People,Premises,145050,Cleaning and Domestic Supplies,05-Feb-2018,3395135-67039,"11,744.16",ANLABY OFFICE CLEANING SERVICES LTD.
Adult and Health Services,Head of Adults,Third Party Payments,474101,Purchase of Care,20-Feb-2018,3401606-2428755,"1,620.48",ANN CHARLTON LODGE.
Resources,Digital and Customer Services,Supplies and Services,304245,Equipment and Materials,12-Feb-2018,3397709-7447705,521.25,ANTALIS LTD.
Regeneration and Local Services,Direct Services,Construction Work,908105,Construction work,12-Feb-2018,3397710-64571895,840.00,APEX ACOUSTICS LTD.
Regeneration and Local Services,Culture & Sport,Supplies and Services,304259,Equipment and Materials,01-Feb-2018,3394459-211155,"1,158.99",APEX RADIO SYSTEMS LTD.
Children and Young Peoples Services,Head of Early Help Assessment and Safeguarding,Premises,108099,Service Repairs and Maintenance,02-Feb-2018,3394778-29028,"1,120.00",AQUAJET DRAIN CLEANING LTD.
Regeneration and Local Services,Direct Services,Premises,108099,Service Repairs and Maintenance,23-Feb-2018,3404014-29438,516.26,AQUAJET DRAIN CLEANING LTD.
Regeneration and Local Services,Technical Services,Supplies and Services,304358,Equipment and Materials,02-Feb-2018,3394778-29251,"2,587.50",AQUAJET DRAIN CLEANING LTD.
Regeneration and Local Services,Technical Services,Supplies and Services,304358,Equipment and Materials,02-Feb-2018,3394778-29252,"2,587.50",AQUAJET DRAIN CLEANING LTD.
Regeneration and Local Services,Technical Services,Supplies and Services,304358,Equipment and Materials,12-Feb-2018,3397711-29266,"2,587.50",AQUAJET DRAIN CLEANING LTD.
Regeneration and Local Services,Technical Services,Supplies and Services,304358,Equipment and Materials,12-Feb-2018,3397711-29267,"2,587.50",AQUAJET DRAIN CLEANING LTD.
Regeneration and Local Services,Technical Services,Supplies and Services,304358,Equipment and Materials,21-Feb-2018,3401942-29319,"2,070.00",AQUAJET DRAIN CLEANING LTD.
Regeneration and Local Services,Technical Services,Supplies and Services,304358,Equipment and Materials,21-Feb-2018,3401942-29320,"2,587.50",AQUAJET DRAIN CLEANING LTD.
Regeneration and Local Services,Technical Services,Supplies and Services,304358,Equipment and Materials,26-Feb-2018,3404544-29364,"2,587.50",AQUAJET DRAIN CLEANING LTD.
Regeneration and Local Services,Technical Services,Supplies and Services,304358,Equipment and Materials,26-Feb-2018,3404544-29365,"2,587.50",AQUAJET DRAIN CLEANING LTD.
Regeneration and Local Services,Culture & Sport,Premises,106082,Centrally Controlled Rep and Maint,02-Feb-2018,3394778-29109,905.00,AQUAJET DRAIN CLEANING LTD.
Regeneration and Local Services,Culture & Sport,Premises,106082,Centrally Controlled Rep and Maint,02-Feb-2018,3394778-29304,"2,400.00",AQUAJET DRAIN CLEANING LTD.
Regeneration and Local Services,Direct Services,Premises,106082,Centrally Controlled Rep and Maint,09-Feb-2018,3397207-29315,837.22,AQUAJET DRAIN CLEANING LTD.
Regeneration and Local Services,Culture & Sport,Premises,106082,Centrally Controlled Rep and Maint,19-Feb-2018,3400395-29174,695.00,AQUAJET DRAIN CLEANING LTD.
Regeneration and Local Services,Technical Services,Third Party Payments,460351,Contract Payments,16-Feb-2018,3400006-29299,765.00,AQUAJET DRAIN CLEANING LTD.
Regeneration and Local Services,Technical Services,Third Party Payments,460351,Contract Payments,19-Feb-2018,3400395-29300,"1,275.00",AQUAJET DRAIN CLEANING LTD.
Transformation and Partnerships,Partnerships & Community Engagement Div.,Premises,106082,Centrally Controlled Rep and Maint,23-Feb-2018,3404014-29366,510.00,AQUAJET DRAIN CLEANING LTD.
Resources,Corporate Finance & Commercial Services,Employees,040149,Recruitment Instruction and Training,05-Feb-2018,3395141-1174,795.00,ARMSTRONG WILSON ASSOCIATES LTD.
Children and Young Peoples Services,Head of Education,Transport,230012,Contract Hire,13-Feb-2018,3398845-JAN2018-1,997.64,ARMSTRONG`S TAXIS.
Children and Young Peoples Services,Head of Education,Transport,230008,Contract Hire,06-Feb-2018,3396119-JAN2018-3,"1,620.00",ARMSTRONG`S TAXIS.
Children and Young Peoples Services,Head of Early Help Assessment and Safeguarding,Transport,235073,Public Transport,07-Feb-2018,3396483-113446,600.00,ARRIVA NORTH EAST LTD.
Children and Young Peoples Services,Head of Early Help Assessment and Safeguarding,Transport,235073,Public Transport,07-Feb-2018,3396483-113447,898.50,ARRIVA NORTH EAST LTD.
Regeneration and Local Services,Transport and Contracted Services,Third Party Payments,430106,Rendered by Private Contractors,13-Feb-2018,3398846-113454,"32,108.77",ARRIVA NORTH EAST LTD.
Children and Young Peoples Services,Head of Education,Transport,230008,Contract Hire,16-Feb-2018,3400010-1067,"1,907.66",ARRON GILBRAITH T/A BYRON TRAVEL.
Children and Young Peoples Services,Head of Looked After Provision Permanence and Care Leavers,Third Party Payments,425021,Rendered by Voluntary Organisations,26-Feb-2018,3404546-INV-0847,"11,600.00",ARTEMIS SUPPORT LTD.
Regeneration and Local Services,Culture & Sport,Supplies and Services,304337,Equipment and Materials,22-Feb-2018,3403429-SWINV000720,772.00,ASA AWARDS.
Adult and Health Services,Head of Adults,Third Party Payments,470101,Purchase of Care,20-Feb-2018,3401607-2427689,"5,118.90",ASCOT CARE NORTHEAST LTD T/A SPRINGFIELD LODGE CARE HOME.
Adult and Health Services,Head of Adults,Third Party Payments,470101,Purchase of Care,20-Feb-2018,3401607-2427692,"1,233.16",ASCOT CARE NORTHEAST LTD T/A SPRINGFIELD LODGE CARE HOME.
Adult and Health Services,Head of Adults,Third Party Payments,470101,Purchase of Care,20-Feb-2018,3401607-2427693,"2,139.24",ASCOT CARE NORTHEAST LTD T/A SPRINGFIELD LODGE CARE HOME.
Adult and Health Services,Head of Adults,Third Party Payments,470101,Purchase of Care,20-Feb-2018,3401607-2427694,"1,535.08",ASCOT CARE NORTHEAST LTD T/A SPRINGFIELD LODGE CARE HOME.
Adult and Health Services,Head of Adults,Third Party Payments,470101,Purchase of Care,20-Feb-2018,3401607-2427695,"1,605.44",ASCOT CARE NORTHEAST LTD T/A SPRINGFIELD LODGE CARE HOME.
Adult and Health Services,Head of Adults,Third Party Payments,470101,Purchase of Care,20-Feb-2018,3401607-2427697,"2,139.24",ASCOT CARE NORTHEAST LTD T/A SPRINGFIELD LODGE CARE HOME.
Adult and Health Services,Head of Adults,Third Party Payments,470101,Purchase of Care,20-Feb-2018,3401607-2427698,949.56,ASCOT CARE NORTHEAST LTD T/A SPRINGFIELD LODGE CARE HOME.
Adult and Health Services,Head of Adults,Third Party Payments,470101,Purchase of Care,20-Feb-2018,3401607-2427699,"2,139.24",ASCOT CARE NORTHEAST LTD T/A SPRINGFIELD LODGE CARE HOME.
Adult and Health Services,Head of Adults,Third Party Payments,470101,Purchase of Care,20-Feb-2018,3401607-2427700,"2,139.24",ASCOT CARE NORTHEAST LTD T/A SPRINGFIELD LODGE CARE HOME.
Adult and Health Services,Head of Adults,Third Party Payments,470101,Purchase of Care,20-Feb-2018,3401607-2427701,"1,145.68",ASCOT CARE NORTHEAST LTD T/A SPRINGFIELD LODGE CARE HOME.
Adult and Health Services,Head of Adults,Third Party Payments,470101,Purchase of Care,20-Feb-2018,3401607-2427702,"1,309.52",ASCOT CARE NORTHEAST LTD T/A SPRINGFIELD LODGE CARE HOME.
Adult and Health Services,Head of Adults,Third Party Payments,470101,Purchase of Care,20-Feb-2018,3401607-2427703,"2,139.24",ASCOT CARE NORTHEAST LTD T/A SPRINGFIELD LODGE CARE HOME.
Adult and Health Services,Head of Adults,Third Party Payments,470101,Purchase of Care,20-Feb-2018,3401607-2427704,"1,567.08",ASCOT CARE NORTHEAST LTD T/A SPRINGFIELD LODGE CARE HOME.
Adult and Health Services,Head of Adults,Third Party Payments,470101,Purchase of Care,20-Feb-2018,3401607-2427705,"1,601.44",ASCOT CARE NORTHEAST LTD T/A SPRINGFIELD LODGE CARE HOME.
Adult and Health Services,Head of Adults,Third Party Payments,470101,Purchase of Care,20-Feb-2018,3401607-2427707,"1,601.44",ASCOT CARE NORTHEAST LTD T/A SPRINGFIELD LODGE CARE HOME.
Adult and Health Services,Head of Adults,Third Party Payments,470101,Purchase of Care,20-Feb-2018,3401607-2427708,"1,583.92",ASCOT CARE NORTHEAST LTD T/A SPRINGFIELD LODGE CARE HOME.
Adult and Health Services,Head of Adults,Third Party Payments,470101,Purchase of Care,20-Feb-2018,3401607-2427709,"1,554.12",ASCOT CARE NORTHEAST LTD T/A SPRINGFIELD LODGE CARE HOME.
Adult and Health Services,Head of Adults,Third Party Payments,470101,Purchase of Care,20-Feb-2018,3401607-2427711,"1,601.44",ASCOT CARE NORTHEAST LTD T/A SPRINGFIELD LODGE CARE HOME.
Adult and Health Services,Head of Adults,Third Party Payments,470101,Purchase of Care,20-Feb-2018,3401607-2427712,"1,601.44",ASCOT CARE NORTHEAST LTD T/A SPRINGFIELD LODGE CARE HOME.
Adult and Health Services,Head of Adults,Third Party Payments,470101,Purchase of Care,20-Feb-2018,3401607-2427713,"2,139.24",ASCOT CARE NORTHEAST LTD T/A SPRINGFIELD LODGE CARE HOME.
Adult and Health Services,Head of Adults,Third Party Payments,470101,Purchase of Care,20-Feb-2018,3401607-2427715,"1,317.60",ASCOT CARE NORTHEAST LTD T/A SPRINGFIELD LODGE CARE HOME.
Adult and Health Services,Head of Adults,Third Party Payments,470101,Purchase of Care,20-Feb-2018,3401607-2427716,"2,139.24",ASCOT CARE NORTHEAST LTD T/A SPRINGFIELD LODGE CARE HOME.
Adult and Health Services,Head of Adults,Third Party Payments,470101,Purchase of Care,20-Feb-2018,3401607-2431419,"1,375.22",ASCOT CARE NORTHEAST LTD T/A SPRINGFIELD LODGE CARE HOME.
Adult and Health Services,Head of Adults,Third Party Payments,470101,Purchase of Care,20-Feb-2018,3401607-2431420,534.81,ASCOT CARE NORTHEAST LTD T/A SPRINGFIELD LODGE CARE HOME.
Adult and Health Services,Head of Adults,Third Party Payments,470101,Purchase of Care,20-Feb-2018,3401607-2431553,"1,185.92",ASCOT CARE NORTHEAST LTD T/A SPRINGFIELD LODGE CARE HOME.
Adult and Health Services,Head of Adults,Third Party Payments,470101,Purchase of Care,20-Feb-2018,3401607-2431598,"1,986.43",ASCOT CARE NORTHEAST LTD T/A SPRINGFIELD LODGE CARE HOME.
Adult and Health Services,Head of Adults,Third Party Payments,471101,Purchase of Care,20-Feb-2018,3401607-2427687,"1,346.76",ASCOT CARE NORTHEAST LTD T/A SPRINGFIELD LODGE CARE HOME.
Adult and Health Services,Head of Adults,Third Party Payments,471101,Purchase of Care,20-Feb-2018,3401607-2427688,"1,680.40",ASCOT CARE NORTHEAST LTD T/A SPRINGFIELD LODGE CARE HOME.
Adult and Health Services,Head of Adults,Third Party Payments,471101,Purchase of Care,20-Feb-2018,3401607-2427710,"1,186.24",ASCOT CARE NORTHEAST LTD T/A SPRINGFIELD LODGE CARE HOME.
Adult and Health Services,Head of Adults,Third Party Payments,471101,Purchase of Care,20-Feb-2018,3401607-2427714,"1,808.92",ASCOT CARE NORTHEAST LTD T/A SPRINGFIELD LODGE CARE HOME.
Adult and Health Services,Head of Adults,Third Party Payments,470101,Purchase of Care,20-Feb-2018,3401608-2428368,"2,016.00",ASCOT CARE T/A THE GARDENS CARE HOME.
Adult and Health Services,Head of Adults,Third Party Payments,470101,Purchase of Care,20-Feb-2018,3401608-2428369,"2,016.00",ASCOT CARE T/A THE GARDENS CARE HOME.
Adult and Health Services,Public Health,Third Party Payments,460803,Contract Payments,23-Feb-2018,3404020-DTPB/00000123SC,662.00,ASDA PHARMACY.*
Adult and Health Services,Public Health,Third Party Payments,460803,Contract Payments,23-Feb-2018,3404023-DPQX/00000132SC,684.00,ASDA PHARMACY.*
Adult and Health Services,Head of Adults,Third Party Payments,470101,Purchase of Care,20-Feb-2018,3401609-2430558,"2,700.00",ASHFIELD NURSING HOME LTD.
Regeneration and Local Services,Culture & Sport,Supplies and Services,312013,Newspapers Books and Periodicals,12-Feb-2018,3397714-5640162,659.09,ASKEWS & HOLTS LIBRARY SERVICES LTD.
Regeneration and Local Services,Culture & Sport,Supplies and Services,312013,Newspapers Books and Periodicals,12-Feb-2018,3397714-5640170,535.21,ASKEWS & HOLTS LIBRARY SERVICES LTD.
Regeneration and Local Services,Culture & Sport,Supplies and Services,312013,Newspapers Books and Periodicals,19-Feb-2018,3400397-5637353,517.60,ASKEWS & HOLTS LIBRARY SERVICES LTD.
Regeneration and Local Services,Culture & Sport,Supplies and Services,312013,Newspapers Books and Periodicals,19-Feb-2018,3400397-5643414,526.66,ASKEWS & HOLTS LIBRARY SERVICES LTD.
Regeneration and Local Services,Culture & Sport,Supplies and Services,312013,Newspapers Books and Periodicals,22-Feb-2018,3403432-5650082,755.45,ASKEWS & HOLTS LIBRARY SERVICES LTD.
Adult and Health Services,Head of Adults,Third Party Payments,470101,Purchase of Care,20-Feb-2018,3401610-2429683,"1,750.00",ASPIRE CARE GROUP.
Adult and Health Services,Head of Adults,Third Party Payments,470101,Purchase of Care,20-Feb-2018,3401610-2429684,"2,695.00",ASPIRE CARE GROUP.
Adult and Health Services,Head of Adults,Third Party Payments,470101,Purchase of Care,20-Feb-2018,3401610-2429685,"3,500.00",ASPIRE CARE GROUP.
Adult and Health Services,Head of Adults,Third Party Payments,470101,Purchase of Care,20-Feb-2018,3401610-2429686,"1,750.00",ASPIRE CARE GROUP.
Adult and Health Services,Head of Adults,Third Party Payments,470101,Purchase of Care,20-Feb-2018,3401610-2429687,668.64,ASPIRE CARE GROUP.
Adult and Health Services,Head of Adults,Third Party Payments,470101,Purchase of Care,20-Feb-2018,3401610-2429688,"1,964.56",ASPIRE CARE GROUP.
Adult and Health Services,Head of Adults,Third Party Payments,470101,Purchase of Care,20-Feb-2018,3401611-2430601,953.88,ASPIRE CARE GROUP.
Adult and Health Services,Head of Adults,Third Party Payments,470101,Purchase of Care,20-Feb-2018,3401611-2430602,"1,964.56",ASPIRE CARE GROUP.
Adult and Health Services,Head of Adults,Third Party Payments,470101,Purchase of Care,20-Feb-2018,3401611-2430603,"1,964.56",ASPIRE CARE GROUP.
Adult and Health Services,Head of Adults,Third Party Payments,470101,Purchase of Care,20-Feb-2018,3401611-2430604,"1,561.96",ASPIRE CARE GROUP.
Adult and Health Services,Head of Adults,Third Party Payments,470101,Purchase of Care,20-Feb-2018,3401611-2430605,"1,574.84",ASPIRE CARE GROUP.
Adult and Health Services,Head of Adults,Third Party Payments,470101,Purchase of Care,20-Feb-2018,3401611-2430606,"1,426.76",ASPIRE CARE GROUP.
Adult and Health Services,Head of Adults,Third Party Payments,470101,Purchase of Care,20-Feb-2018,3401611-2430607,"1,426.68",ASPIRE CARE GROUP.
Adult and Health Services,Head of Adults,Third Party Payments,470101,Purchase of Care,20-Feb-2018,3401612-2428360,"1,964.56",ASPIRE CARE GROUP.
Adult and Health Services,Head of Adults,Third Party Payments,470101,Purchase of Care,20-Feb-2018,3401612-2428361,"1,964.56",ASPIRE CARE GROUP.
Adult and Health Services,Head of Adults,Third Party Payments,470101,Purchase of Care,20-Feb-2018,3401612-2428362,"1,964.56",ASPIRE CARE GROUP.
Adult and Health Services,Commissioning inc Supporting People,Third Party Payments,479111,Purchase of Care,08-Feb-2018,3396889-5040,"13,496.00",ASPIRE LEARNING SUPPORT & WELLBEING CIC.
Children and Young Peoples Services,Head of Education,Supplies and Services,352001,Conference Expenses,23-Feb-2018,3404024-0000002787,"1,325.00",ASPIRE-IGEN GROUP LTD.
Children and Young Peoples Services,Head of Education,Supplies and Services,338035,Services,14-Feb-2018,3399235-A18/1354703,"2,092.00",ASSOCIATED BOARD OF THE SCHOOL OF MUSIC (ABRSM).
Adult and Health Services,Head of Adults,Third Party Payments,474101,Purchase of Care,20-Feb-2018,3401613-2430791,"2,071.76",ASTONBROOK CARE HOMES LTD T/A MOORLANDS CARE HOME.
Regeneration and Local Services,Culture & Sport,Premises,106082,Centrally Controlled Rep and Maint,02-Feb-2018,3394786-12718,528.74,ASTRAL CONTROL SERVICES LTD.
Regeneration and Local Services,Culture & Sport,Premises,106082,Centrally Controlled Rep and Maint,02-Feb-2018,3394786-12799,"3,870.00",ASTRAL CONTROL SERVICES LTD.
Children and Young Peoples Services,Head of Education,Transport,230007,Contract Hire,07-Feb-2018,3396484-632,806.85,AT TAXIS LTD.
Children and Young Peoples Services,Head of Education,Transport,230008,Contract Hire,07-Feb-2018,3396484-631,"1,521.90",AT TAXIS LTD.
Children and Young Peoples Services,Head of Education,Transport,230008,Contract Hire,07-Feb-2018,3396484-634,872.00,AT TAXIS LTD.
Children and Young Peoples Services,Head of Education,Transport,230008,Contract Hire,08-Feb-2018,3396890-633-JAN,"1,744.40",AT TAXIS LTD.
Children and Young Peoples Services,Head of Education,Supplies and Services,338001,Services,21-Feb-2018,3401947-18001780,"26,700.00",ATKINS GLOBAL.
Children and Young Peoples Services,Head of Education,Construction Work,908105,Construction work,23-Feb-2018,3404028-18004273,"1,587.88",ATKINS GLOBAL.
Children and Young Peoples Services,Head of Education,Fees,901002,Professional fees,23-Feb-2018,3404028-18004217,"1,095.68",ATKINS GLOBAL.
Regeneration and Local Services,Economic Development and Housing,Construction Work,908105,Construction work,16-Feb-2018,3400013-17035697,"3,079.00",ATKINS GLOBAL.
Regeneration and Local Services,Technical Services,Supplies and Services,338027,Services,23-Feb-2018,3404028-18002122,"30,000.00",ATKINS GLOBAL.
Regeneration and Local Services,Technical Services,Supplies and Services,338027,Services,23-Feb-2018,3404028-18004219,"3,047.59",ATKINS GLOBAL.
Regeneration and Local Services,Technical Services,Supplies and Services,338027,Services,23-Feb-2018,3404028-18004221,"1,512.94",ATKINS GLOBAL.
Regeneration and Local Services,Technical Services,Supplies and Services,338027,Services,23-Feb-2018,3404028-18004262,"1,447.16",ATKINS GLOBAL.
Regeneration and Local Services,Technical Services,Supplies and Services,338027,Services,23-Feb-2018,3404028-18004266,997.46,ATKINS GLOBAL.
Regeneration and Local Services,Technical Services,Supplies and Services,338027,Services,23-Feb-2018,3404028-18004275,"1,710.28",ATKINS GLOBAL.
Regeneration and Local Services,Technical Services,Supplies and Services,338027,Services,23-Feb-2018,3404028-18004276,"1,644.50",ATKINS GLOBAL.
Regeneration and Local Services,Economic Development and Housing,Supplies and Services,338002,Services,07-Feb-2018,3396485-18000478,"30,000.00",ATKINS GLOBAL.
Adult and Health Services,Head of Adults,Third Party Payments,474101,Purchase of Care,20-Feb-2018,3401614-2430554,"2,204.00",ATLAS CARE HOMES LTD T/A ASPEN COURT CARE HOME.
Adult and Health Services,Head of Adults,Third Party Payments,474101,Purchase of Care,20-Feb-2018,3401614-2430555,"1,140.00",ATLAS CARE HOMES LTD T/A ASPEN COURT CARE HOME.
Adult and Health Services,Head of Adults,Third Party Payments,470101,Purchase of Care,20-Feb-2018,3401615-2429186,"1,956.00",ATLAS CARE HOMES LTD T/A ASTER CARE NURSING HOME..
Adult and Health Services,Head of Adults,Transport,230005,Contract Hire,09-Feb-2018,3397211-DCC11JANUARY18,"1,080.00",ATLAS TAXIS BISHOP AUCKLAND.
Adult and Health Services,Head of Adults,Transport,230005,Contract Hire,09-Feb-2018,3397211-DCC2JAN18,"1,320.00",ATLAS TAXIS BISHOP AUCKLAND.
Adult and Health Services,Head of Adults,Transport,230005,Contract Hire,09-Feb-2018,3397211-DCC3JANUARY18,650.00,ATLAS TAXIS BISHOP AUCKLAND.
Children and Young Peoples Services,Head of Education,Transport,230008,Contract Hire,09-Feb-2018,3397211-DCC1JAN18,"1,985.75",ATLAS TAXIS BISHOP AUCKLAND.
Children and Young Peoples Services,Head of Education,Transport,230008,Contract Hire,16-Feb-2018,3400014-DCC05JAN18,"1,663.20",ATLAS TAXIS BISHOP AUCKLAND.
Children and Young Peoples Services,Head of Education,Transport,230008,Contract Hire,16-Feb-2018,3400014-DCC10JAN18,"1,408.00",ATLAS TAXIS BISHOP AUCKLAND.
Children and Young Peoples Services,Head of Education,Transport,230008,Contract Hire,16-Feb-2018,3400014-DCC12JAN18,"1,424.00",ATLAS TAXIS BISHOP AUCKLAND.
Children and Young Peoples Services,Head of Education,Transport,230008,Contract Hire,16-Feb-2018,3400014-DCC4JAN18,"1,566.40",ATLAS TAXIS BISHOP AUCKLAND.
Children and Young Peoples Services,Head of Education,Transport,230008,Contract Hire,16-Feb-2018,3400014-DCC6JAN18,"2,376.00",ATLAS TAXIS BISHOP AUCKLAND.
Children and Young Peoples Services,Head of Education,Transport,230008,Contract Hire,16-Feb-2018,3400014-DCC7JAN18,"1,584.00",ATLAS TAXIS BISHOP AUCKLAND.
Adult and Health Services,Head of Adults,Transport,230005,Contract Hire,09-Feb-2018,3397212-03697,510.00,ATLAS TAXIS CONSETT.
Children and Young Peoples Services,Head of Education,Transport,230007,Contract Hire,08-Feb-2018,3396891-03693,658.60,ATLAS TAXIS CONSETT.
Children and Young Peoples Services,Head of Education,Transport,230007,Contract Hire,08-Feb-2018,3396891-03695/JAN,"1,415.35",ATLAS TAXIS CONSETT.
Children and Young Peoples Services,Head of Education,Transport,230007,Contract Hire,09-Feb-2018,3397212-03701,796.20,ATLAS TAXIS CONSETT.
Children and Young Peoples Services,Head of Education,Transport,230009,Contract Hire,08-Feb-2018,3396891-03700,809.60,ATLAS TAXIS CONSETT.
Children and Young Peoples Services,Head of Education,Transport,230004,Contract Hire,08-Feb-2018,3396891-03698,754.40,ATLAS TAXIS CONSETT.
Children and Young Peoples Services,Head of Education,Transport,230006,Contract Hire,08-Feb-2018,3396891-03699,686.40,ATLAS TAXIS CONSETT.
Regeneration and Local Services,Direct Services,Supplies and Services,304221,Equipment and Materials,02-Feb-2018,3394788-6190,"1,000.00",ATLAS WASHROOM SYSTEMS LTD.
Adult and Health Services,Head of Adults,Supplies and Services,384504,Miscellaneous Expenses,26-Feb-2018,3404547-AHS01753,"1,098.64",AUCKLAND HOME SOLUTIONS CIC.
Adult and Health Services,Public Health,Third Party Payments,460802,Contract Payments,09-Feb-2018,3397213-A83021IUCDQ3/1718,"6,630.17",AUCKLAND MEDICAL GROUP.
Adult and Health Services,Head of Adults,Third Party Payments,470101,Purchase of Care,20-Feb-2018,3401616-2429980,"3,200.00",AUTISM CARE UK (4) LTD.
Adult and Health Services,Head of Adults,Third Party Payments,470101,Purchase of Care,20-Feb-2018,3401616-2429981,"1,964.56",AUTISM CARE UK (4) LTD.
Adult and Health Services,Head of Adults,Third Party Payments,470101,Purchase of Care,20-Feb-2018,3401616-2429982,"9,047.44",AUTISM CARE UK (4) LTD.
Adult and Health Services,Head of Adults,Third Party Payments,470101,Purchase of Care,20-Feb-2018,3401616-2429983,"4,244.80",AUTISM CARE UK (4) LTD.
Adult and Health Services,Head of Adults,Third Party Payments,470101,Purchase of Care,20-Feb-2018,3401616-2429984,"1,742.44",AUTISM CARE UK (4) LTD.
Adult and Health Services,Head of Adults,Third Party Payments,470101,Purchase of Care,20-Feb-2018,3401616-2429985,568.96,AUTISM CARE UK (4) LTD.
Adult and Health Services,Head of Adults,Third Party Payments,470101,Purchase of Care,20-Feb-2018,3401616-2429986,"3,030.60",AUTISM CARE UK (4) LTD.
Adult and Health Services,Head of Adults,Third Party Payments,478101,Purchase of Care,21-Feb-2018,3402687-1777139H,"6,434.72",AUTISM CARE UK (4) LTD.
Adult and Health Services,Head of Adults,Third Party Payments,478101,Purchase of Care,21-Feb-2018,3402687-1777528H,"3,872.24",AUTISM CARE UK (4) LTD.
Adult and Health Services,Head of Adults,Third Party Payments,478101,Purchase of Care,21-Feb-2018,3402687-1778316H,"2,988.64",AUTISM CARE UK (4) LTD.
Adult and Health Services,Head of Adults,Third Party Payments,478101,Purchase of Care,21-Feb-2018,3402687-1778517H,"4,608.64",AUTISM CARE UK (4) LTD.
Adult and Health Services,Head of Adults,Third Party Payments,478101,Purchase of Care,21-Feb-2018,3402687-1778563H,"3,872.24",AUTISM CARE UK (4) LTD.
Adult and Health Services,Head of Adults,Third Party Payments,478101,Purchase of Care,21-Feb-2018,3402687-1778685H,"2,456.52",AUTISM CARE UK (4) LTD.
Adult and Health Services,Head of Adults,Third Party Payments,478101,Purchase of Care,21-Feb-2018,3402687-1778784H,"3,872.24",AUTISM CARE UK (4) LTD.
Adult and Health Services,Head of Adults,Third Party Payments,478101,Purchase of Care,21-Feb-2018,3402687-1778792H,"3,872.24",AUTISM CARE UK (4) LTD.
Adult and Health Services,Head of Adults,Third Party Payments,478101,Purchase of Care,21-Feb-2018,3402687-1778961H,"2,456.52",AUTISM CARE UK (4) LTD.
Adult and Health Services,Head of Adults,Third Party Payments,478101,Purchase of Care,21-Feb-2018,3402687-1779488H,"7,090.48",AUTISM CARE UK (4) LTD.
Adult and Health Services,Head of Adults,Third Party Payments,478101,Purchase of Care,21-Feb-2018,3402687-1780388H,"6,248.68",AUTISM CARE UK (4) LTD.
Adult and Health Services,Head of Adults,Third Party Payments,470101,Purchase of Care,20-Feb-2018,3401617-2430562,"10,280.00",AUTISM NORTH.
Adult and Health Services,Head of Adults,Third Party Payments,470101,Purchase of Care,20-Feb-2018,3401617-2430563,"4,560.00",AUTISM NORTH.
Adult and Health Services,Head of Adults,Third Party Payments,470101,Purchase of Care,20-Feb-2018,3401617-2430564,"2,610.72",AUTISM NORTH.
Adult and Health Services,Head of Adults,Third Party Payments,470101,Purchase of Care,20-Feb-2018,3401617-2430565,"9,318.00",AUTISM NORTH.
Adult and Health Services,Head of Adults,Third Party Payments,470101,Purchase of Care,20-Feb-2018,3401618-2429987,"6,478.68",AUTISM NORTH.
Regeneration and Local Services,Culture & Sport,Supplies and Services,338047,Services,23-Feb-2018,3404029-SIN018593,"5,000.00",AVALON PROMOTIONS LTD.
Regeneration and Local Services,Culture & Sport,Supplies and Services,338047,Services,23-Feb-2018,3404029-SIN018906,"2,500.00",AVALON PROMOTIONS LTD.
Children and Young Peoples Services,Head of Education,Transport,230008,Contract Hire,06-Feb-2018,3396123-310118,"1,056.00",AVALON TAXIS.
Children and Young Peoples Services,Head of Education,Transport,230008,Contract Hire,06-Feb-2018,3396123-31118,"1,445.00",AVALON TAXIS.
Children and Young Peoples Services,Head of Education,Transport,230006,Contract Hire,08-Feb-2018,3396892-1JAN18,882.00,AXLE TAXIS.
Regeneration and Local Services,Economic Development and Housing,Supplies and Services,368008,Incentives to Industrialists,13-Feb-2018,3398848-RED-02-2018-059,"6,000.00",AYCLIFFE BUSINESS PARK COMMUNITY LTD.
Regeneration and Local Services,Direct Services,Supplies and Services,304221,Equipment and Materials,08-Feb-2018,3396893-30983,556.00,AYCLIFFE FABRICATIONS LTD.
Regeneration and Local Services,Technical Services,Stock,926900,Stock in hand-Inventory system,12-Feb-2018,3397717-INV119834,556.50,AZTEC CHEMICALS LTD.
Children and Young Peoples Services,Head of Education,Transport,230006,Contract Hire,09-Feb-2018,3397216-5/JAN,"1,037.20",B&C YELLOWCAB TAXI`S.
Children and Young Peoples Services,Head of Education,Supplies and Services,384199,Miscellaneous Expenses,14-Feb-2018,3399237-0000000125,877.00,BALANCEABILITY LTD.
Regeneration and Local Services,Technical Services,Third Party Payments,430100,Rendered by Private Contractors,21-Feb-2018,3401952-IN32776,733.48,BALFOUR BEATTY LIVING PLACES LTD.*
Regeneration and Local Services,Technical Services,Third Party Payments,430100,Rendered by Private Contractors,21-Feb-2018,3401952-IN32778,"2,660.96",BALFOUR BEATTY LIVING PLACES LTD.*
Regeneration and Local Services,Technical Services,Third Party Payments,430100,Rendered by Private Contractors,21-Feb-2018,3401952-IN32779,"1,169.46",BALFOUR BEATTY LIVING PLACES LTD.*
Regeneration and Local Services,Technical Services,Third Party Payments,430100,Rendered by Private Contractors,22-Feb-2018,3403439-IN32808,"12,804.91",BALFOUR BEATTY LIVING PLACES LTD.*
Regeneration and Local Services,Technical Services,Third Party Payments,430100,Rendered by Private Contractors,22-Feb-2018,3403439-IN32812,"7,211.44",BALFOUR BEATTY LIVING PLACES LTD.*
Regeneration and Local Services,Direct Services,Supplies and Services,304221,Equipment and Materials,26-Feb-2018,3404552-96907437,"2,765.71",BALL COLEGRAVE LTD.
Dedicated Schools Grant,Dedicated Schools Grant,Third Party Payments,410037,Rendered by Other Local Authorities,06-Feb-2018,3396124-BPSI142,"4,873.00",BARBARA PRIESTMAN ACADEMY.
Dedicated Schools Grant,Dedicated Schools Grant,Third Party Payments,410037,Rendered by Other Local Authorities,06-Feb-2018,3396124-BPSI143,"7,365.52",BARBARA PRIESTMAN ACADEMY.
Adult and Health Services,Central/Other,Debtors,930024,Debtor-free nursing care,20-Feb-2018,3401623-2428228,620.20,BARCHESTER HEALTHCARE HOMES LTD.
Adult and Health Services,Central/Other,Debtors,930024,Debtor-free nursing care,20-Feb-2018,3401623-2428230,620.20,BARCHESTER HEALTHCARE HOMES LTD.
Adult and Health Services,Central/Other,Debtors,930024,Debtor-free nursing care,20-Feb-2018,3401623-2428233,620.20,BARCHESTER HEALTHCARE HOMES LTD.
Adult and Health Services,Central/Other,Debtors,930024,Debtor-free nursing care,20-Feb-2018,3401623-2428235,620.20,BARCHESTER HEALTHCARE HOMES LTD.
Adult and Health Services,Central/Other,Debtors,930024,Debtor-free nursing care,20-Feb-2018,3401623-2428237,620.20,BARCHESTER HEALTHCARE HOMES LTD.
Adult and Health Services,Central/Other,Debtors,930024,Debtor-free nursing care,20-Feb-2018,3401623-2428238,620.20,BARCHESTER HEALTHCARE HOMES LTD.
Adult and Health Services,Central/Other,Debtors,930024,Debtor-free nursing care,20-Feb-2018,3401623-2428240,620.20,BARCHESTER HEALTHCARE HOMES LTD.
Adult and Health Services,Central/Other,Debtors,930024,Debtor-free nursing care,20-Feb-2018,3401623-2428241,620.20,BARCHESTER HEALTHCARE HOMES LTD.
Adult and Health Services,Central/Other,Debtors,930024,Debtor-free nursing care,20-Feb-2018,3401623-2428243,620.20,BARCHESTER HEALTHCARE HOMES LTD.
Adult and Health Services,Central/Other,Debtors,930024,Debtor-free nursing care,20-Feb-2018,3401623-2428246,620.20,BARCHESTER HEALTHCARE HOMES LTD.
Adult and Health Services,Central/Other,Debtors,930024,Debtor-free nursing care,20-Feb-2018,3401623-2428249,620.20,BARCHESTER HEALTHCARE HOMES LTD.
Adult and Health Services,Central/Other,Debtors,930024,Debtor-free nursing care,20-Feb-2018,3401623-2428254,620.20,BARCHESTER HEALTHCARE HOMES LTD.
Adult and Health Services,Central/Other,Debtors,930024,Debtor-free nursing care,20-Feb-2018,3401623-2428256,620.20,BARCHESTER HEALTHCARE HOMES LTD.
Adult and Health Services,Central/Other,Debtors,930024,Debtor-free nursing care,20-Feb-2018,3401623-2428261,620.20,BARCHESTER HEALTHCARE HOMES LTD.
Adult and Health Services,Central/Other,Debtors,930024,Debtor-free nursing care,20-Feb-2018,3401623-2428264,620.20,BARCHESTER HEALTHCARE HOMES LTD.
Adult and Health Services,Central/Other,Debtors,930024,Debtor-free nursing care,20-Feb-2018,3401623-2428267,620.20,BARCHESTER HEALTHCARE HOMES LTD.
Adult and Health Services,Central/Other,Debtors,930024,Debtor-free nursing care,20-Feb-2018,3401623-2428270,620.20,BARCHESTER HEALTHCARE HOMES LTD.
Adult and Health Services,Central/Other,Debtors,930024,Debtor-free nursing care,20-Feb-2018,3401623-2428273,620.20,BARCHESTER HEALTHCARE HOMES LTD.
Adult and Health Services,Central/Other,Debtors,930024,Debtor-free nursing care,20-Feb-2018,3401623-2428275,620.20,BARCHESTER HEALTHCARE HOMES LTD.
Adult and Health Services,Central/Other,Debtors,930024,Debtor-free nursing care,20-Feb-2018,3401623-2428277,620.20,BARCHESTER HEALTHCARE HOMES LTD.
Adult and Health Services,Central/Other,Debtors,930024,Debtor-free nursing care,20-Feb-2018,3401623-2428280,620.20,BARCHESTER HEALTHCARE HOMES LTD.
Adult and Health Services,Head of Adults,Third Party Payments,474101,Purchase of Care,20-Feb-2018,3401620-2430800,"2,220.00",BARCHESTER HEALTHCARE HOMES LTD.
Adult and Health Services,Head of Adults,Third Party Payments,474101,Purchase of Care,20-Feb-2018,3401623-2428229,"2,125.76",BARCHESTER HEALTHCARE HOMES LTD.
Adult and Health Services,Head of Adults,Third Party Payments,474101,Purchase of Care,20-Feb-2018,3401623-2428231,"1,594.32",BARCHESTER HEALTHCARE HOMES LTD.
Adult and Health Services,Head of Adults,Third Party Payments,474101,Purchase of Care,20-Feb-2018,3401623-2428234,"2,125.76",BARCHESTER HEALTHCARE HOMES LTD.
Adult and Health Services,Head of Adults,Third Party Payments,474101,Purchase of Care,20-Feb-2018,3401623-2428236,"2,125.76",BARCHESTER HEALTHCARE HOMES LTD.
Adult and Health Services,Head of Adults,Third Party Payments,474101,Purchase of Care,20-Feb-2018,3401623-2428239,"2,125.76",BARCHESTER HEALTHCARE HOMES LTD.
Adult and Health Services,Head of Adults,Third Party Payments,474101,Purchase of Care,20-Feb-2018,3401623-2428242,"2,125.76",BARCHESTER HEALTHCARE HOMES LTD.
Adult and Health Services,Head of Adults,Third Party Payments,474101,Purchase of Care,20-Feb-2018,3401623-2428245,"2,125.76",BARCHESTER HEALTHCARE HOMES LTD.
Adult and Health Services,Head of Adults,Third Party Payments,474101,Purchase of Care,20-Feb-2018,3401623-2428248,"2,125.76",BARCHESTER HEALTHCARE HOMES LTD.
Adult and Health Services,Head of Adults,Third Party Payments,474101,Purchase of Care,20-Feb-2018,3401623-2428251,"1,062.88",BARCHESTER HEALTHCARE HOMES LTD.
Adult and Health Services,Head of Adults,Third Party Payments,474101,Purchase of Care,20-Feb-2018,3401623-2428252,"1,093.12",BARCHESTER HEALTHCARE HOMES LTD.
Adult and Health Services,Head of Adults,Third Party Payments,474101,Purchase of Care,20-Feb-2018,3401623-2428255,"2,125.76",BARCHESTER HEALTHCARE HOMES LTD.
Adult and Health Services,Head of Adults,Third Party Payments,474101,Purchase of Care,20-Feb-2018,3401623-2428258,"1,062.88",BARCHESTER HEALTHCARE HOMES LTD.
Adult and Health Services,Head of Adults,Third Party Payments,474101,Purchase of Care,20-Feb-2018,3401623-2428260,"2,125.76",BARCHESTER HEALTHCARE HOMES LTD.
Adult and Health Services,Head of Adults,Third Party Payments,474101,Purchase of Care,20-Feb-2018,3401623-2428263,"2,318.44",BARCHESTER HEALTHCARE HOMES LTD.
Adult and Health Services,Head of Adults,Third Party Payments,474101,Purchase of Care,20-Feb-2018,3401623-2428266,"2,125.76",BARCHESTER HEALTHCARE HOMES LTD.
Adult and Health Services,Head of Adults,Third Party Payments,474101,Purchase of Care,20-Feb-2018,3401623-2428269,"2,125.76",BARCHESTER HEALTHCARE HOMES LTD.
Adult and Health Services,Head of Adults,Third Party Payments,474101,Purchase of Care,20-Feb-2018,3401623-2428272,"2,125.76",BARCHESTER HEALTHCARE HOMES LTD.
Adult and Health Services,Head of Adults,Third Party Payments,474101,Purchase of Care,20-Feb-2018,3401623-2428276,"2,125.76",BARCHESTER HEALTHCARE HOMES LTD.
Adult and Health Services,Head of Adults,Third Party Payments,474101,Purchase of Care,20-Feb-2018,3401623-2428279,"2,318.44",BARCHESTER HEALTHCARE HOMES LTD.
Adult and Health Services,Head of Adults,Third Party Payments,474101,Purchase of Care,20-Feb-2018,3401623-2431096,911.04,BARCHESTER HEALTHCARE HOMES LTD.
Adult and Health Services,Head of Adults,Third Party Payments,470101,Purchase of Care,20-Feb-2018,3401622-2429183,"2,204.00",BARCHESTER HEALTHCARE HOMES LTD.
Adult and Health Services,Head of Adults,Third Party Payments,470101,Purchase of Care,20-Feb-2018,3401622-2429184,"2,204.00",BARCHESTER HEALTHCARE HOMES LTD.
Adult and Health Services,Head of Adults,Third Party Payments,471101,Purchase of Care,20-Feb-2018,3401619-2430746,"1,967.56",BARCHESTER HEALTHCARE HOMES LTD.
Adult and Health Services,Head of Adults,Third Party Payments,471101,Purchase of Care,20-Feb-2018,3401621-2430796,"1,237.84",BARCHESTER HEALTHCARE HOMES LTD.
Adult and Health Services,Head of Adults,Third Party Payments,471101,Purchase of Care,20-Feb-2018,3401622-2429182,"1,140.00",BARCHESTER HEALTHCARE HOMES LTD.
Adult and Health Services,Head of Adults,Third Party Payments,471101,Purchase of Care,20-Feb-2018,3401622-2429185,"2,280.00",BARCHESTER HEALTHCARE HOMES LTD.
Adult and Health Services,Head of Adults,Third Party Payments,474101,Purchase of Care,20-Feb-2018,3401624-2430987,"2,824.80",BARCHESTER HEALTHCARE T/A WINGFIELD CARE HOME.
Resources,Legal & Democratic Services,Premises,125009,Rents,07-Feb-2018,308959-2017/76,"3,000.00",BARNARD CASTLE & TEASDALE FMR AUC MART CO LTD.
Adult and Health Services,Public Health,Third Party Payments,460802,Contract Payments,09-Feb-2018,3397218-A83046IUCDQ3/1718,"2,298.62",BARNARD CASTLE SURGERY.
Adult and Health Services,Head of Adults,Third Party Payments,470101,Purchase of Care,23-Feb-2018,3404033-146518831,834.06,BARNARDO SERVICES LTD.
Children and Young Peoples Services,Head of Education,Third Party Payments,410037,Rendered by Other Local Authorities,26-Feb-2018,3404553-141006161,"1,449.00",BARNARDO SERVICES LTD.
Children and Young Peoples Services,Head of Early Help Assessment and Safeguarding,Supplies and Services,338045,Services,14-Feb-2018,3399239-CAS-02-2018-048,"3,300.00",BARNARDO SERVICES LTD.
Adult and Health Services,Head of Adults,Third Party Payments,425040,Rendered by Voluntary Organisations,21-Feb-2018,3402690-1780293H,"2,404.92",BARNARDOS BELIEVE IN CHILDREN.
Children and Young Peoples Services,Head of Looked After Provision Permanence and Care Leavers,Third Party Payments,425040,Rendered by Voluntary Organisations,21-Feb-2018,3402690-1781086H,"3,280.20",BARNARDOS BELIEVE IN CHILDREN.
Children and Young Peoples Services,Head of Looked After Provision Permanence and Care Leavers,Third Party Payments,425040,Rendered by Voluntary Organisations,21-Feb-2018,3402690-1781207H,"3,920.00",BARNARDOS BELIEVE IN CHILDREN.
Children and Young Peoples Services,Head of Looked After Provision Permanence and Care Leavers,Third Party Payments,425040,Rendered by Voluntary Organisations,21-Feb-2018,3402690-1781327H,"2,920.12",BARNARDOS BELIEVE IN CHILDREN.
Children and Young Peoples Services,Head of Looked After Provision Permanence and Care Leavers,Third Party Payments,425040,Rendered by Voluntary Organisations,21-Feb-2018,3402690-1781381H,"3,280.20",BARNARDOS BELIEVE IN CHILDREN.
Children and Young Peoples Services,Head of Looked After Provision Permanence and Care Leavers,Third Party Payments,425040,Rendered by Voluntary Organisations,21-Feb-2018,3402690-1781578H,"3,280.20",BARNARDOS BELIEVE IN CHILDREN.
Children and Young Peoples Services,Head of Looked After Provision Permanence and Care Leavers,Third Party Payments,425040,Rendered by Voluntary Organisations,21-Feb-2018,3402690-1781893H,"2,800.00",BARNARDOS BELIEVE IN CHILDREN.
Children and Young Peoples Services,Head of Looked After Provision Permanence and Care Leavers,Third Party Payments,425040,Rendered by Voluntary Organisations,21-Feb-2018,3402690-1781930H,"2,920.12",BARNARDOS BELIEVE IN CHILDREN.
Children and Young Peoples Services,Head of Looked After Provision Permanence and Care Leavers,Third Party Payments,425040,Rendered by Voluntary Organisations,21-Feb-2018,3402690-1782981H,"3,600.24",BARNARDOS BELIEVE IN CHILDREN.
Children and Young Peoples Services,Head of Looked After Provision Permanence and Care Leavers,Third Party Payments,425040,Rendered by Voluntary Organisations,21-Feb-2018,3402690-1783270H,"5,829.00",BARNARDOS BELIEVE IN CHILDREN.
Children and Young Peoples Services,Head of Looked After Provision Permanence and Care Leavers,Third Party Payments,425040,Rendered by Voluntary Organisations,21-Feb-2018,3402690-1783298H,"2,800.00",BARNARDOS BELIEVE IN CHILDREN.
Children and Young Peoples Services,Head of Looked After Provision Permanence and Care Leavers,Third Party Payments,425040,Rendered by Voluntary Organisations,21-Feb-2018,3402690-1783328H,"2,920.12",BARNARDOS BELIEVE IN CHILDREN.
Children and Young Peoples Services,Head of Looked After Provision Permanence and Care Leavers,Third Party Payments,425040,Rendered by Voluntary Organisations,21-Feb-2018,3402690-1783436H,"5,829.00",BARNARDOS BELIEVE IN CHILDREN.
Adult and Health Services,Head of Adults,Third Party Payments,474101,Purchase of Care,20-Feb-2018,3401625-2429088,"1,819.52",BARNES COURT NURSING HOME.
Children and Young Peoples Services,Head of Looked After Provision Permanence and Care Leavers,Supplies and Services,304259,Equipment and Materials,09-Feb-2018,3397219-7017,674.40,BARRONS CONTRACTS.
Regeneration and Local Services,Transport and Contracted Services,Supplies and Services,342053,Computers and Communications,21-Feb-2018,3401954-INV-1568963,"2,575.00",BASEMAP LTD.
Children and Young Peoples Services,Head of Looked After Provision Permanence and Care Leavers,Supplies and Services,336005,Advertising,23-Feb-2018,3404035-429064,"2,070.43",BAUER RADIO LTD.
Regeneration and Local Services,Transport and Contracted Services,Third Party Payments,440999,Other Third Party Payments,21-Feb-2018,3401955-54091,"6,514.32",BAYDALE CONTROL SYSTEMS LTD.
Regeneration and Local Services,Transport and Contracted Services,Third Party Payments,440999,Other Third Party Payments,26-Feb-2018,3404554-55147,"6,514.32",BAYDALE CONTROL SYSTEMS LTD.
Regeneration and Local Services,Transport and Contracted Services,Supplies and Services,338078,Services,21-Feb-2018,3401955-53396,"13,773.63",BAYDALE CONTROL SYSTEMS LTD.
Regeneration and Local Services,Technical Services,Third Party Payments,430100,Rendered by Private Contractors,12-Feb-2018,3397721-1762001,"3,626.46",BCE NORTHERN LTD.
Regeneration and Local Services,Technical Services,Third Party Payments,430100,Rendered by Private Contractors,12-Feb-2018,3397721-1762002,"4,962.55",BCE NORTHERN LTD.
Regeneration and Local Services,Technical Services,Third Party Payments,430100,Rendered by Private Contractors,12-Feb-2018,3397721-1762003,"3,479.48",BCE NORTHERN LTD.
Regeneration and Local Services,Technical Services,Third Party Payments,430100,Rendered by Private Contractors,19-Feb-2018,3400404-1761001,"38,413.88",BCE NORTHERN LTD.
Regeneration and Local Services,Technical Services,Third Party Payments,430100,Rendered by Private Contractors,19-Feb-2018,3400404-1762004,"26,719.95",BCE NORTHERN LTD.
Regeneration and Local Services,Direct Services,Supplies and Services,304221,Equipment and Materials,14-Feb-2018,3399241-DCC/2017053,790.60,BEACON BUILDING & ASSOCIATED SERVICES LTD.
Adult and Health Services,Head of Adults,Third Party Payments,470101,Purchase of Care,20-Feb-2018,3401626-2428412,"2,139.24",BEACONSFIELD COURT.
Adult and Health Services,Head of Adults,Third Party Payments,470101,Purchase of Care,20-Feb-2018,3401626-2428413,"2,139.24",BEACONSFIELD COURT.
Adult and Health Services,Head of Adults,Third Party Payments,470101,Purchase of Care,20-Feb-2018,3401626-2428414,"2,399.00",BEACONSFIELD COURT.
Adult and Health Services,Head of Adults,Third Party Payments,470101,Purchase of Care,20-Feb-2018,3401626-2428415,"2,139.24",BEACONSFIELD COURT.
Adult and Health Services,Head of Adults,Third Party Payments,470101,Purchase of Care,20-Feb-2018,3401626-2428416,"2,139.24",BEACONSFIELD COURT.
Adult and Health Services,Head of Adults,Third Party Payments,470101,Purchase of Care,20-Feb-2018,3401626-2428417,"2,139.24",BEACONSFIELD COURT.
Adult and Health Services,Head of Adults,Third Party Payments,470101,Purchase of Care,20-Feb-2018,3401626-2428418,"2,299.24",BEACONSFIELD COURT.
Adult and Health Services,Head of Adults,Third Party Payments,470101,Purchase of Care,20-Feb-2018,3401626-2428419,"1,833.63",BEACONSFIELD COURT.
Adult and Health Services,Head of Adults,Third Party Payments,470101,Purchase of Care,20-Feb-2018,3401626-2428420,"2,139.24",BEACONSFIELD COURT.
Adult and Health Services,Head of Adults,Third Party Payments,470101,Purchase of Care,20-Feb-2018,3401626-2428421,"2,139.24",BEACONSFIELD COURT.
Adult and Health Services,Head of Adults,Third Party Payments,470101,Purchase of Care,20-Feb-2018,3401626-2428422,"2,139.24",BEACONSFIELD COURT.
Adult and Health Services,Head of Adults,Third Party Payments,470101,Purchase of Care,20-Feb-2018,3401626-2428423,"2,139.24",BEACONSFIELD COURT.
Adult and Health Services,Head of Adults,Third Party Payments,470101,Purchase of Care,20-Feb-2018,3401626-2428424,"2,139.24",BEACONSFIELD COURT.
Adult and Health Services,Head of Adults,Third Party Payments,470101,Purchase of Care,20-Feb-2018,3401626-2428425,"2,139.24",BEACONSFIELD COURT.
Adult and Health Services,Head of Adults,Third Party Payments,470101,Purchase of Care,20-Feb-2018,3401626-2428426,"2,139.24",BEACONSFIELD COURT.
Adult and Health Services,Head of Adults,Third Party Payments,470101,Purchase of Care,20-Feb-2018,3401626-2428427,"2,139.24",BEACONSFIELD COURT.
Adult and Health Services,Head of Adults,Third Party Payments,470101,Purchase of Care,20-Feb-2018,3401626-2428428,"2,139.24",BEACONSFIELD COURT.
Adult and Health Services,Head of Adults,Third Party Payments,470101,Purchase of Care,20-Feb-2018,3401626-2431290,916.81,BEACONSFIELD COURT.
Adult and Health Services,Head of Adults,Third Party Payments,470101,Purchase of Care,20-Feb-2018,3401627-2430065,"2,024.64",BEAMISH RESIDENTIAL HOME.
Adult and Health Services,Head of Adults,Third Party Payments,470101,Purchase of Care,20-Feb-2018,3401627-2430067,"2,024.64",BEAMISH RESIDENTIAL HOME.
Adult and Health Services,Head of Adults,Third Party Payments,470101,Purchase of Care,20-Feb-2018,3401627-2430068,"2,024.64",BEAMISH RESIDENTIAL HOME.
Adult and Health Services,Head of Adults,Third Party Payments,470101,Purchase of Care,20-Feb-2018,3401627-2430071,"1,468.28",BEAMISH RESIDENTIAL HOME.
Adult and Health Services,Head of Adults,Third Party Payments,470101,Purchase of Care,20-Feb-2018,3401627-2430072,"1,012.32",BEAMISH RESIDENTIAL HOME.
Adult and Health Services,Head of Adults,Third Party Payments,470101,Purchase of Care,20-Feb-2018,3401627-2430073,"2,024.64",BEAMISH RESIDENTIAL HOME.
Adult and Health Services,Head of Adults,Third Party Payments,470101,Purchase of Care,20-Feb-2018,3401627-2430074,"2,024.64",BEAMISH RESIDENTIAL HOME.
Adult and Health Services,Head of Adults,Third Party Payments,470101,Purchase of Care,20-Feb-2018,3401627-2430075,"1,012.32",BEAMISH RESIDENTIAL HOME.
Adult and Health Services,Head of Adults,Third Party Payments,470101,Purchase of Care,20-Feb-2018,3401627-2430076,"2,024.64",BEAMISH RESIDENTIAL HOME.
Adult and Health Services,Head of Adults,Third Party Payments,470101,Purchase of Care,20-Feb-2018,3401627-2430077,"1,005.32",BEAMISH RESIDENTIAL HOME.
Adult and Health Services,Head of Adults,Third Party Payments,470101,Purchase of Care,20-Feb-2018,3401627-2430078,"1,477.52",BEAMISH RESIDENTIAL HOME.
Adult and Health Services,Head of Adults,Third Party Payments,470101,Purchase of Care,20-Feb-2018,3401627-2430079,"1,489.28",BEAMISH RESIDENTIAL HOME.
Adult and Health Services,Head of Adults,Third Party Payments,470101,Purchase of Care,20-Feb-2018,3401627-2430080,"2,024.64",BEAMISH RESIDENTIAL HOME.
Adult and Health Services,Head of Adults,Third Party Payments,471101,Purchase of Care,20-Feb-2018,3401627-2430066,"1,349.72",BEAMISH RESIDENTIAL HOME.
Adult and Health Services,Head of Adults,Third Party Payments,471101,Purchase of Care,20-Feb-2018,3401627-2430069,"1,566.96",BEAMISH RESIDENTIAL HOME.
Adult and Health Services,Head of Adults,Third Party Payments,471101,Purchase of Care,20-Feb-2018,3401627-2430070,"2,104.76",BEAMISH RESIDENTIAL HOME.
Regeneration and Local Services,Technical Services,Supplies and Services,304221,Equipment and Materials,09-Feb-2018,3397221-INV-0282,"2,400.00",BEAVER BRIDGE HIRE LTD.
Adult and Health Services,Head of Adults,Third Party Payments,470101,Purchase of Care,20-Feb-2018,3401628-2428305,"2,139.24",BEDDELL HOUSE.
Adult and Health Services,Head of Adults,Third Party Payments,470101,Purchase of Care,20-Feb-2018,3401628-2428306,"2,139.24",BEDDELL HOUSE.
Adult and Health Services,Head of Adults,Third Party Payments,470101,Purchase of Care,20-Feb-2018,3401628-2428307,"2,139.24",BEDDELL HOUSE.
Adult and Health Services,Head of Adults,Third Party Payments,470101,Purchase of Care,20-Feb-2018,3401628-2428308,"2,139.24",BEDDELL HOUSE.
Adult and Health Services,Head of Adults,Third Party Payments,470101,Purchase of Care,20-Feb-2018,3401628-2428310,"2,139.24",BEDDELL HOUSE.
Adult and Health Services,Head of Adults,Third Party Payments,470101,Purchase of Care,20-Feb-2018,3401628-2428312,"2,139.24",BEDDELL HOUSE.
Adult and Health Services,Head of Adults,Third Party Payments,470101,Purchase of Care,20-Feb-2018,3401628-2428313,"2,139.24",BEDDELL HOUSE.
Adult and Health Services,Head of Adults,Third Party Payments,470101,Purchase of Care,20-Feb-2018,3401628-2428314,"2,139.24",BEDDELL HOUSE.
Adult and Health Services,Head of Adults,Third Party Payments,470101,Purchase of Care,20-Feb-2018,3401628-2428315,"2,139.24",BEDDELL HOUSE.
Adult and Health Services,Head of Adults,Third Party Payments,470101,Purchase of Care,20-Feb-2018,3401628-2431142,"1,604.43",BEDDELL HOUSE.
Adult and Health Services,Head of Adults,Third Party Payments,470101,Purchase of Care,20-Feb-2018,3401628-2431143,534.81,BEDDELL HOUSE.
Adult and Health Services,Head of Adults,Third Party Payments,470101,Purchase of Care,20-Feb-2018,3401628-2431144,840.41,BEDDELL HOUSE.
Adult and Health Services,Head of Adults,Third Party Payments,470101,Purchase of Care,20-Feb-2018,3401628-2431216,534.81,BEDDELL HOUSE.
Children and Young Peoples Services,Head of Education,Transport,230008,Contract Hire,06-Feb-2018,3396126-741,567.63,BEELINE MINI BUSES.
Children and Young Peoples Services,Head of Education,Transport,230008,Contract Hire,06-Feb-2018,3396126-742,518.28,BEELINE MINI BUSES.
Children and Young Peoples Services,Head of Education,Transport,230008,Contract Hire,06-Feb-2018,3396126-743,586.49,BEELINE MINI BUSES.
Children and Young Peoples Services,Head of Education,Transport,230008,Contract Hire,06-Feb-2018,3396126-744,"1,273.81",BEELINE MINI BUSES.
Children and Young Peoples Services,Head of Education,Transport,230008,Contract Hire,06-Feb-2018,3396127-SMITH1/JANUARY18,"1,411.80",BEELINE PRIVATE HIRE.
Children and Young Peoples Services,Head of Education,Transport,230008,Contract Hire,13-Feb-2018,3398852-SMITH2/JANUARY18,699.90,BEELINE PRIVATE HIRE.
Regeneration and Local Services,Direct Services,Premises,125009,Rents,19-Feb-2018,3400405-Q4/17-18TURNPARK,"2,000.00",BEEMYHOME LTD.
Regeneration and Local Services,Direct Services,Third Party Payments,430100,Rendered by Private Contractors,21-Feb-2018,3401957-6106,"2,700.00",BELL CONTROL SOLUTIONS LTD.
Regeneration and Local Services,Direct Services,Transport,210057,Repair and Maintenance of Vehicles,01-Feb-2018,3394465-15124769,"3,002.91",BELL TRUCK SALES LTD T/A BELL TRUCK & VAN.
Regeneration and Local Services,Direct Services,Transport,210057,Repair and Maintenance of Vehicles,01-Feb-2018,3394465-15124880,829.01,BELL TRUCK SALES LTD T/A BELL TRUCK & VAN.
Regeneration and Local Services,Direct Services,Transport,210057,Repair and Maintenance of Vehicles,13-Feb-2018,3398854-15121792,957.00,BELL TRUCK SALES LTD T/A BELL TRUCK & VAN.
Regeneration and Local Services,Direct Services,Transport,210057,Repair and Maintenance of Vehicles,13-Feb-2018,3398854-35145109,"1,108.33",BELL TRUCK SALES LTD T/A BELL TRUCK & VAN.
Regeneration and Local Services,Direct Services,Transport,210057,Repair and Maintenance of Vehicles,27-Feb-2018,3404896-15126002,756.67,BELL TRUCK SALES LTD T/A BELL TRUCK & VAN.
Regeneration and Local Services,Direct Services,Transport,210057,Repair and Maintenance of Vehicles,27-Feb-2018,3404896-35145999,629.72,BELL TRUCK SALES LTD T/A BELL TRUCK & VAN.
Regeneration and Local Services,Direct Services,Third Party Payments,430100,Rendered by Private Contractors,13-Feb-2018,3398854-46053053,"2,615.07",BELL TRUCK SALES LTD T/A BELL TRUCK & VAN.
Adult and Health Services,Central/Other,Debtors,930024,Debtor-free nursing care,20-Feb-2018,3401629-2428051,620.20,BENFIELD HALL RESIDENTIAL CARE.
Adult and Health Services,Central/Other,Debtors,930024,Debtor-free nursing care,20-Feb-2018,3401629-2428057,620.20,BENFIELD HALL RESIDENTIAL CARE.
Adult and Health Services,Head of Adults,Third Party Payments,474101,Purchase of Care,20-Feb-2018,3401629-2428043,968.56,BENFIELD HALL RESIDENTIAL CARE.
Adult and Health Services,Head of Adults,Third Party Payments,474101,Purchase of Care,20-Feb-2018,3401629-2428046,968.56,BENFIELD HALL RESIDENTIAL CARE.
Adult and Health Services,Head of Adults,Third Party Payments,474101,Purchase of Care,20-Feb-2018,3401629-2428048,"1,112.00",BENFIELD HALL RESIDENTIAL CARE.
Adult and Health Services,Head of Adults,Third Party Payments,474101,Purchase of Care,20-Feb-2018,3401629-2428050,"1,994.88",BENFIELD HALL RESIDENTIAL CARE.
Adult and Health Services,Head of Adults,Third Party Payments,474101,Purchase of Care,20-Feb-2018,3401629-2428054,997.48,BENFIELD HALL RESIDENTIAL CARE.
Adult and Health Services,Head of Adults,Third Party Payments,474101,Purchase of Care,20-Feb-2018,3401629-2428056,"1,457.08",BENFIELD HALL RESIDENTIAL CARE.
Adult and Health Services,Head of Adults,Third Party Payments,474101,Purchase of Care,20-Feb-2018,3401629-2428058,997.44,BENFIELD HALL RESIDENTIAL CARE.
Adult and Health Services,Head of Adults,Third Party Payments,470101,Purchase of Care,20-Feb-2018,3401629-2428045,949.68,BENFIELD HALL RESIDENTIAL CARE.
Adult and Health Services,Head of Adults,Third Party Payments,470101,Purchase of Care,20-Feb-2018,3401629-2428052,949.68,BENFIELD HALL RESIDENTIAL CARE.
Adult and Health Services,Head of Adults,Third Party Payments,470101,Purchase of Care,20-Feb-2018,3401629-2428053,"1,899.32",BENFIELD HALL RESIDENTIAL CARE.
Dedicated Schools Grant,Dedicated Schools Grant,Transport,230010,Contract Hire,06-Feb-2018,3396128-4-BL008,944.00,BENNETTS TAXIS.
Adult and Health Services,Head of Adults,Third Party Payments,470101,Purchase of Care,20-Feb-2018,3401630-2428020,"1,964.56",BENTON CARE SERVICES LTD.
Adult and Health Services,Head of Adults,Third Party Payments,470101,Purchase of Care,20-Feb-2018,3401630-2428021,"3,059.04",BENTON CARE SERVICES LTD.
Adult and Health Services,Head of Adults,Third Party Payments,470101,Purchase of Care,20-Feb-2018,3401630-2428022,"3,059.04",BENTON CARE SERVICES LTD.
Adult and Health Services,Head of Adults,Third Party Payments,470101,Purchase of Care,20-Feb-2018,3401630-2428023,"3,059.04",BENTON CARE SERVICES LTD.
Adult and Health Services,Head of Adults,Third Party Payments,470101,Purchase of Care,20-Feb-2018,3401630-2428024,"3,059.04",BENTON CARE SERVICES LTD.
Adult and Health Services,Head of Adults,Third Party Payments,470101,Purchase of Care,20-Feb-2018,3401630-2428025,"3,059.04",BENTON CARE SERVICES LTD.
Adult and Health Services,Head of Adults,Third Party Payments,470101,Purchase of Care,20-Feb-2018,3401630-2428026,"3,059.04",BENTON CARE SERVICES LTD.
Adult and Health Services,Head of Adults,Third Party Payments,470101,Purchase of Care,20-Feb-2018,3401630-2430749,953.84,BENTON CARE SERVICES LTD.
Adult and Health Services,Head of Adults,Third Party Payments,470101,Purchase of Care,20-Feb-2018,3401630-2430750,"1,964.56",BENTON CARE SERVICES LTD.
Adult and Health Services,Public Health,Third Party Payments,460803,Contract Payments,23-Feb-2018,3404036-FQYW/00000106SC,946.00,BESTWAY NATIONAL CHEMIST LTD T/A WELL.
Adult and Health Services,Public Health,Third Party Payments,460803,Contract Payments,23-Feb-2018,3404041-DYPD/00000117SC,"1,062.00",BESTWAY NATIONAL CHEMIST LTD T/A WELL.
Adult and Health Services,Public Health,Premises,145009,Cleaning and Domestic Supplies,26-Feb-2018,3404559-0000028461,948.18,BETTAKLEEN LTD.
Adult and Health Services,Public Health,Supplies and Services,384199,Miscellaneous Expenses,26-Feb-2018,3404559-0000028454,678.82,BETTAKLEEN LTD.
Adult and Health Services,Public Health,Supplies and Services,384199,Miscellaneous Expenses,26-Feb-2018,3404559-0000028459,"1,133.86",BETTAKLEEN LTD.
Adult and Health Services,Public Health,Third Party Payments,460802,Contract Payments,09-Feb-2018,3397225-A83037IUCDQ3/1718,"3,948.02",BEWICK CRESCENT SURGERY.
Children and Young Peoples Services,Head of Education,Transport,230008,Contract Hire,06-Feb-2018,3396132-006,"1,122.00",BG TAXIS.
Regeneration and Local Services,Technical Services,Employees,040149,Recruitment Instruction and Training,19-Feb-2018,3400408-SI-2988,"1,885.00",BICS BUSINESS SERVICES LTD.
Adult and Health Services,Commissioning inc Supporting People,Third Party Payments,442002,Supporting People,14-Feb-2018,3399246-1967340,"16,448.04",BID SERVICES WITH DEAF PEOPLE.
Regeneration and Local Services,Direct Services,Supplies and Services,304221,Equipment and Materials,08-Feb-2018,3396900-B95110,"1,045.50",BIDDLE AIR SYSTEMS LTD.
Regeneration and Local Services,Culture & Sport,Supplies and Services,324117,Provisions,19-Feb-2018,3400409-78492465,542.93,BIDFOOD.
Children and Young Peoples Services,Head of Education,Transport,230006,Contract Hire,21-Feb-2018,3401961-F732-JAN,"1,064.00",BIG MAMA`S TAXI.
Dedicated Schools Grant,Dedicated Schools Grant,Transport,230010,Contract Hire,09-Feb-2018,3397226-B013-JAN,"1,952.00",BIG MAMA`S TAXI.
Regeneration and Local Services,Direct Services,Premises,106080,Centrally Controlled Rep and Maint,09-Feb-2018,3397228-23985,"2,165.00",BIOCHEMICA GROUP LTD.
Regeneration and Local Services,Direct Services,Premises,106082,Centrally Controlled Rep and Maint,23-Feb-2018,3404046-8270,758.00,BIOMASS BOILER SERVICES LTD.
Adult and Health Services,Head of Adults,Transport,230005,Contract Hire,06-Feb-2018,3396134-0076,504.00,BIRDS TAXIS LTD.
Adult and Health Services,Head of Adults,Transport,230005,Contract Hire,06-Feb-2018,3396134-0079,776.00,BIRDS TAXIS LTD.
Adult and Health Services,Head of Adults,Transport,230005,Contract Hire,06-Feb-2018,3396134-0080,616.00,BIRDS TAXIS LTD.
Children and Young Peoples Services,Head of Education,Transport,230006,Contract Hire,13-Feb-2018,3398857-0082,"2,572.00",BIRDS TAXIS LTD.
Dedicated Schools Grant,Dedicated Schools Grant,Third Party Payments,440080,Other Third Party Payments,01-Feb-2018,3394468-SLINV/00000134,"114,980.31",BISHOP AUCKLAND COLLEGE.
Regeneration and Local Services,Technical Services,Supplies and Services,304221,Equipment and Materials,21-Feb-2018,3401962-BMPR/125/LW,588.00,BISHOP MIDDLEHAM PLANT & RECYCLING LTD.
Regeneration and Local Services,Technical Services,Third Party Payments,430100,Rendered by Private Contractors,23-Feb-2018,3404048-BMPR/126/LW,900.00,BISHOP MIDDLEHAM PLANT & RECYCLING LTD.
Regeneration and Local Services,Technical Services,Third Party Payments,430100,Rendered by Private Contractors,26-Feb-2018,3404563-BMPR/127/LW,600.00,BISHOP MIDDLEHAM PLANT & RECYCLING LTD.
Adult and Health Services,Public Health,Third Party Payments,460802,Contract Payments,09-Feb-2018,3397229-A83052IUCDQ3/1718,"1,071.82",BISHOP`S CLOSE MEDICAL PRACTICE..
Adult and Health Services,Central/Other,Debtors,930024,Debtor-free nursing care,20-Feb-2018,3401632-2427030,620.20,BISHOPSGATE LODGE.
Adult and Health Services,Central/Other,Debtors,930024,Debtor-free nursing care,20-Feb-2018,3401632-2427032,620.20,BISHOPSGATE LODGE.
Adult and Health Services,Central/Other,Debtors,930024,Debtor-free nursing care,20-Feb-2018,3401632-2427036,620.20,BISHOPSGATE LODGE.
Adult and Health Services,Central/Other,Debtors,930024,Debtor-free nursing care,20-Feb-2018,3401632-2427038,620.20,BISHOPSGATE LODGE.
Adult and Health Services,Central/Other,Debtors,930024,Debtor-free nursing care,20-Feb-2018,3401632-2427043,620.20,BISHOPSGATE LODGE.
Adult and Health Services,Central/Other,Debtors,930024,Debtor-free nursing care,20-Feb-2018,3401632-2427047,620.20,BISHOPSGATE LODGE.
Adult and Health Services,Central/Other,Debtors,930024,Debtor-free nursing care,20-Feb-2018,3401632-2427051,620.20,BISHOPSGATE LODGE.
Adult and Health Services,Head of Adults,Third Party Payments,474101,Purchase of Care,20-Feb-2018,3401632-2427020,911.04,BISHOPSGATE LODGE.
Adult and Health Services,Head of Adults,Third Party Payments,474101,Purchase of Care,20-Feb-2018,3401632-2427029,"2,125.76",BISHOPSGATE LODGE.
Adult and Health Services,Head of Adults,Third Party Payments,474101,Purchase of Care,20-Feb-2018,3401632-2427031,"2,205.76",BISHOPSGATE LODGE.
Adult and Health Services,Head of Adults,Third Party Payments,474101,Purchase of Care,20-Feb-2018,3401632-2427035,"2,125.76",BISHOPSGATE LODGE.
Adult and Health Services,Head of Adults,Third Party Payments,474101,Purchase of Care,20-Feb-2018,3401632-2427042,"2,125.76",BISHOPSGATE LODGE.
Adult and Health Services,Head of Adults,Third Party Payments,474101,Purchase of Care,20-Feb-2018,3401632-2427046,"2,125.76",BISHOPSGATE LODGE.
Adult and Health Services,Head of Adults,Third Party Payments,474101,Purchase of Care,20-Feb-2018,3401632-2427050,"2,125.76",BISHOPSGATE LODGE.
Adult and Health Services,Head of Adults,Third Party Payments,474101,Purchase of Care,20-Feb-2018,3401632-2431229,531.44,BISHOPSGATE LODGE.
Adult and Health Services,Head of Adults,Third Party Payments,470101,Purchase of Care,20-Feb-2018,3401632-2427022,"2,024.64",BISHOPSGATE LODGE.
Adult and Health Services,Head of Adults,Third Party Payments,470101,Purchase of Care,20-Feb-2018,3401632-2427023,"2,024.64",BISHOPSGATE LODGE.
Adult and Health Services,Head of Adults,Third Party Payments,470101,Purchase of Care,20-Feb-2018,3401632-2427024,"2,024.64",BISHOPSGATE LODGE.
Adult and Health Services,Head of Adults,Third Party Payments,470101,Purchase of Care,20-Feb-2018,3401632-2427025,"2,024.64",BISHOPSGATE LODGE.
Adult and Health Services,Head of Adults,Third Party Payments,470101,Purchase of Care,20-Feb-2018,3401632-2427028,"2,024.64",BISHOPSGATE LODGE.
Adult and Health Services,Head of Adults,Third Party Payments,470101,Purchase of Care,20-Feb-2018,3401632-2427037,"2,024.64",BISHOPSGATE LODGE.
Adult and Health Services,Head of Adults,Third Party Payments,470101,Purchase of Care,20-Feb-2018,3401632-2427039,"2,024.64",BISHOPSGATE LODGE.
Adult and Health Services,Head of Adults,Third Party Payments,470101,Purchase of Care,20-Feb-2018,3401632-2427040,"2,024.64",BISHOPSGATE LODGE.
Adult and Health Services,Head of Adults,Third Party Payments,470101,Purchase of Care,20-Feb-2018,3401632-2427041,"2,024.64",BISHOPSGATE LODGE.
Adult and Health Services,Head of Adults,Third Party Payments,470101,Purchase of Care,20-Feb-2018,3401632-2427044,"2,024.64",BISHOPSGATE LODGE.
Adult and Health Services,Head of Adults,Third Party Payments,470101,Purchase of Care,20-Feb-2018,3401632-2427045,"2,024.64",BISHOPSGATE LODGE.
Adult and Health Services,Head of Adults,Third Party Payments,470101,Purchase of Care,20-Feb-2018,3401632-2427048,"2,024.64",BISHOPSGATE LODGE.
Adult and Health Services,Head of Adults,Third Party Payments,470101,Purchase of Care,20-Feb-2018,3401632-2427049,"2,024.64",BISHOPSGATE LODGE.
Adult and Health Services,Head of Adults,Third Party Payments,470101,Purchase of Care,20-Feb-2018,3401632-2427053,"2,024.64",BISHOPSGATE LODGE.
Adult and Health Services,Head of Adults,Third Party Payments,470101,Purchase of Care,20-Feb-2018,3401632-2427054,"2,024.64",BISHOPSGATE LODGE.
Adult and Health Services,Head of Adults,Third Party Payments,470101,Purchase of Care,20-Feb-2018,3401632-2427056,"2,024.64",BISHOPSGATE LODGE.
Adult and Health Services,Head of Adults,Third Party Payments,470101,Purchase of Care,20-Feb-2018,3401632-2427057,"2,024.64",BISHOPSGATE LODGE.
Adult and Health Services,Head of Adults,Third Party Payments,470101,Purchase of Care,20-Feb-2018,3401632-2427058,"2,024.64",BISHOPSGATE LODGE.
Adult and Health Services,Head of Adults,Third Party Payments,470101,Purchase of Care,20-Feb-2018,3401632-2427059,"2,024.64",BISHOPSGATE LODGE.
Adult and Health Services,Head of Adults,Third Party Payments,471101,Purchase of Care,20-Feb-2018,3401632-2427026,"2,104.76",BISHOPSGATE LODGE.
Adult and Health Services,Head of Adults,Third Party Payments,471101,Purchase of Care,20-Feb-2018,3401632-2427027,"1,052.40",BISHOPSGATE LODGE.
Adult and Health Services,Head of Adults,Third Party Payments,471101,Purchase of Care,20-Feb-2018,3401632-2427052,"2,104.76",BISHOPSGATE LODGE.
Adult and Health Services,Head of Adults,Third Party Payments,471101,Purchase of Care,20-Feb-2018,3401632-2427055,"2,104.76",BISHOPSGATE LODGE.
Children and Young Peoples Services,Head of Education,Transport,230012,Contract Hire,07-Feb-2018,3396496-02,"1,780.00",BL CARS.
Children and Young Peoples Services,Head of Education,Transport,230008,Contract Hire,08-Feb-2018,3396902-02-JAN,"1,116.00",BL CARS.
Children and Young Peoples Services,Head of Education,Transport,230007,Contract Hire,09-Feb-2018,3397230-49-31/1/18,"1,080.00",BL TAXIS.
Regeneration and Local Services,Technical Services,Supplies and Services,304221,Equipment and Materials,19-Feb-2018,3400412-36094,769.10,BLACHERE ILLUMINATION UK LTD.
Adult and Health Services,Public Health,Third Party Payments,460802,Contract Payments,09-Feb-2018,3397231-A83007IUCDQ3/1718,"6,826.57",BLACKHALL & PETERLEE PRACTICE.
Adult and Health Services,Head of Adults,Supplies and Services,308011,Furniture,08-Feb-2018,3396903-12683,"1,454.15",BLINDS ETCETERA.
Regeneration and Local Services,Transport and Contracted Services,Fees,901002,Professional fees,13-Feb-2018,3398859-8715,"96,590.15",BLOOM PROCUREMENT SERVICES LTD (FORMERLY NEPRO LTD).
Regeneration and Local Services,Economic Development and Housing,Supplies and Services,338066,Services,01-Feb-2018,3394470-8466,"23,507.12",BLOOM PROCUREMENT SERVICES LTD (FORMERLY NEPRO LTD).
Regeneration and Local Services,Technical Services,Supplies and Services,338066,Services,19-Feb-2018,3400413-8828,"165,689.62",BLOOM PROCUREMENT SERVICES LTD (FORMERLY NEPRO LTD).
Regeneration and Local Services,Technical Services,Supplies and Services,338066,Services,22-Feb-2018,3403447-8930,"16,873.98",BLOOM PROCUREMENT SERVICES LTD (FORMERLY NEPRO LTD).
Adult and Health Services,Head of Adults,Third Party Payments,472101,Purchase of Care,21-Feb-2018,3402700-1779506H,587.25,BLUE RIBBON COMMUNITY CARE.
Children and Young Peoples Services,Head of Education,Transfer Payments,510026,School Children,16-Feb-2018,3400024-0010,"1,350.00",BLUE SKY CHILDCARE.
Children and Young Peoples Services,Head of Education,Transfer Payments,510026,School Children,16-Feb-2018,3400024-0011,"1,530.00",BLUE SKY CHILDCARE.
Children and Young Peoples Services,Head of Education,Transfer Payments,510026,School Children,23-Feb-2018,3404050-0009,"1,912.50",BLUE SKY CHILDCARE.
Adult and Health Services,Head of Adults,Third Party Payments,479111,Purchase of Care,19-Feb-2018,3400414-201732,635.50,BLUE SKY TRUST.
Children and Young Peoples Services,Head of Education,Transport,230007,Contract Hire,07-Feb-2018,3396498-1954,"2,210.00",BOB SMITH COACHES.
Adult and Health Services,Head of Adults,Transport,230005,Contract Hire,06-Feb-2018,3396135-1493,"1,039.50",BOBBY DOVE.
Children and Young Peoples Services,Head of Education,Transport,230008,Contract Hire,06-Feb-2018,3396135-7003,"1,350.00",BOBBY DOVE.
Children and Young Peoples Services,Head of Education,Transport,230008,Contract Hire,06-Feb-2018,3396135-7004,"2,724.00",BOBBY DOVE.
Dedicated Schools Grant,Dedicated Schools Grant,Transport,230010,Contract Hire,08-Feb-2018,3396904-66,"1,106.00",BOBS TAXIS.
Regeneration and Local Services,Direct Services,Supplies and Services,304221,Equipment and Materials,19-Feb-2018,3400415-3045371631,857.00,BOC LTD.
Regeneration and Local Services,Culture & Sport,Supplies and Services,312013,Newspapers Books and Periodicals,19-Feb-2018,3400416-26562,"1,027.86",BOLINDA DIGITAL LTD.
Adult and Health Services,Head of Adults,Debtors,930136,Debtor Nursing Care - IC+ Nursing,20-Feb-2018,3401633-2426842,800.14,BONDCARE T/A BRANCEPETH COURT CARE HOME.
Adult and Health Services,Central/Other,Debtors,930024,Debtor-free nursing care,20-Feb-2018,3401633-2426833,620.20,BONDCARE T/A BRANCEPETH COURT CARE HOME.
Adult and Health Services,Central/Other,Debtors,930024,Debtor-free nursing care,20-Feb-2018,3401633-2426837,620.20,BONDCARE T/A BRANCEPETH COURT CARE HOME.
Adult and Health Services,Central/Other,Debtors,930024,Debtor-free nursing care,20-Feb-2018,3401633-2426846,620.20,BONDCARE T/A BRANCEPETH COURT CARE HOME.
Adult and Health Services,Central/Other,Debtors,930024,Debtor-free nursing care,20-Feb-2018,3401633-2426852,620.20,BONDCARE T/A BRANCEPETH COURT CARE HOME.
Adult and Health Services,Central/Other,Debtors,930024,Debtor-free nursing care,20-Feb-2018,3401633-2426856,620.20,BONDCARE T/A BRANCEPETH COURT CARE HOME.
Adult and Health Services,Central/Other,Debtors,930024,Debtor-free nursing care,20-Feb-2018,3401633-2426863,620.20,BONDCARE T/A BRANCEPETH COURT CARE HOME.
Adult and Health Services,Central/Other,Debtors,930024,Debtor-free nursing care,20-Feb-2018,3401633-2426866,620.20,BONDCARE T/A BRANCEPETH COURT CARE HOME.
Adult and Health Services,Central/Other,Debtors,930024,Debtor-free nursing care,20-Feb-2018,3401633-2426870,620.20,BONDCARE T/A BRANCEPETH COURT CARE HOME.
Adult and Health Services,Central/Other,Debtors,930024,Debtor-free nursing care,20-Feb-2018,3401633-2426873,620.20,BONDCARE T/A BRANCEPETH COURT CARE HOME.
Adult and Health Services,Central/Other,Debtors,930024,Debtor-free nursing care,20-Feb-2018,3401633-2426877,620.20,BONDCARE T/A BRANCEPETH COURT CARE HOME.
Adult and Health Services,Head of Adults,Third Party Payments,474101,Purchase of Care,20-Feb-2018,3401633-2426832,"6,171.90",BONDCARE T/A BRANCEPETH COURT CARE HOME.
Adult and Health Services,Head of Adults,Third Party Payments,474101,Purchase of Care,20-Feb-2018,3401633-2426836,"2,833.00",BONDCARE T/A BRANCEPETH COURT CARE HOME.
Adult and Health Services,Head of Adults,Third Party Payments,474101,Purchase of Care,20-Feb-2018,3401633-2426845,"2,240.40",BONDCARE T/A BRANCEPETH COURT CARE HOME.
Adult and Health Services,Head of Adults,Third Party Payments,474101,Purchase of Care,20-Feb-2018,3401633-2426851,"2,240.40",BONDCARE T/A BRANCEPETH COURT CARE HOME.
Adult and Health Services,Head of Adults,Third Party Payments,474101,Purchase of Care,20-Feb-2018,3401633-2426855,"2,240.40",BONDCARE T/A BRANCEPETH COURT CARE HOME.
Adult and Health Services,Head of Adults,Third Party Payments,474101,Purchase of Care,20-Feb-2018,3401633-2426862,"3,203.20",BONDCARE T/A BRANCEPETH COURT CARE HOME.
Adult and Health Services,Head of Adults,Third Party Payments,474101,Purchase of Care,20-Feb-2018,3401633-2426865,"2,250.00",BONDCARE T/A BRANCEPETH COURT CARE HOME.
Adult and Health Services,Head of Adults,Third Party Payments,474101,Purchase of Care,20-Feb-2018,3401633-2426869,"2,240.40",BONDCARE T/A BRANCEPETH COURT CARE HOME.
Adult and Health Services,Head of Adults,Third Party Payments,474101,Purchase of Care,20-Feb-2018,3401633-2426872,"2,240.40",BONDCARE T/A BRANCEPETH COURT CARE HOME.
Adult and Health Services,Head of Adults,Third Party Payments,474101,Purchase of Care,20-Feb-2018,3401633-2426876,"2,240.40",BONDCARE T/A BRANCEPETH COURT CARE HOME.
Adult and Health Services,Head of Adults,Third Party Payments,470102,Purchase of Care,20-Feb-2018,3401633-2426841,"1,222.42",BONDCARE T/A BRANCEPETH COURT CARE HOME.
Adult and Health Services,Head of Adults,Third Party Payments,470101,Purchase of Care,20-Feb-2018,3401633-2426831,"2,139.24",BONDCARE T/A BRANCEPETH COURT CARE HOME.
Adult and Health Services,Head of Adults,Third Party Payments,470101,Purchase of Care,20-Feb-2018,3401633-2426838,"2,139.24",BONDCARE T/A BRANCEPETH COURT CARE HOME.
Adult and Health Services,Head of Adults,Third Party Payments,470101,Purchase of Care,20-Feb-2018,3401633-2426839,"2,597.64",BONDCARE T/A BRANCEPETH COURT CARE HOME.
Adult and Health Services,Head of Adults,Third Party Payments,470101,Purchase of Care,20-Feb-2018,3401633-2426840,"2,206.72",BONDCARE T/A BRANCEPETH COURT CARE HOME.
Adult and Health Services,Head of Adults,Third Party Payments,470101,Purchase of Care,20-Feb-2018,3401633-2426847,"2,139.24",BONDCARE T/A BRANCEPETH COURT CARE HOME.
Adult and Health Services,Head of Adults,Third Party Payments,470101,Purchase of Care,20-Feb-2018,3401633-2426849,"2,139.24",BONDCARE T/A BRANCEPETH COURT CARE HOME.
Adult and Health Services,Head of Adults,Third Party Payments,470101,Purchase of Care,20-Feb-2018,3401633-2426850,"2,139.24",BONDCARE T/A BRANCEPETH COURT CARE HOME.
Adult and Health Services,Head of Adults,Third Party Payments,470101,Purchase of Care,20-Feb-2018,3401633-2426853,960.00,BONDCARE T/A BRANCEPETH COURT CARE HOME.
Adult and Health Services,Head of Adults,Third Party Payments,470101,Purchase of Care,20-Feb-2018,3401633-2426854,"2,808.84",BONDCARE T/A BRANCEPETH COURT CARE HOME.
Adult and Health Services,Head of Adults,Third Party Payments,470101,Purchase of Care,20-Feb-2018,3401633-2426857,"1,713.57",BONDCARE T/A BRANCEPETH COURT CARE HOME.
Adult and Health Services,Head of Adults,Third Party Payments,470101,Purchase of Care,20-Feb-2018,3401633-2426858,"2,139.24",BONDCARE T/A BRANCEPETH COURT CARE HOME.
Adult and Health Services,Head of Adults,Third Party Payments,470101,Purchase of Care,20-Feb-2018,3401633-2426859,"2,206.72",BONDCARE T/A BRANCEPETH COURT CARE HOME.
Adult and Health Services,Head of Adults,Third Party Payments,470101,Purchase of Care,20-Feb-2018,3401633-2426860,"2,399.00",BONDCARE T/A BRANCEPETH COURT CARE HOME.
Adult and Health Services,Head of Adults,Third Party Payments,470101,Purchase of Care,20-Feb-2018,3401633-2426861,"1,375.22",BONDCARE T/A BRANCEPETH COURT CARE HOME.
Adult and Health Services,Head of Adults,Third Party Payments,470101,Purchase of Care,20-Feb-2018,3401633-2426864,"2,139.24",BONDCARE T/A BRANCEPETH COURT CARE HOME.
Adult and Health Services,Head of Adults,Third Party Payments,470101,Purchase of Care,20-Feb-2018,3401633-2426867,"2,139.24",BONDCARE T/A BRANCEPETH COURT CARE HOME.
Adult and Health Services,Head of Adults,Third Party Payments,470101,Purchase of Care,20-Feb-2018,3401633-2426868,"2,206.72",BONDCARE T/A BRANCEPETH COURT CARE HOME.
Adult and Health Services,Head of Adults,Third Party Payments,470101,Purchase of Care,20-Feb-2018,3401633-2426871,"2,139.24",BONDCARE T/A BRANCEPETH COURT CARE HOME.
Adult and Health Services,Head of Adults,Third Party Payments,470101,Purchase of Care,20-Feb-2018,3401633-2426874,"2,139.24",BONDCARE T/A BRANCEPETH COURT CARE HOME.
Adult and Health Services,Head of Adults,Third Party Payments,470101,Purchase of Care,20-Feb-2018,3401633-2426875,"2,206.72",BONDCARE T/A BRANCEPETH COURT CARE HOME.
Adult and Health Services,Head of Adults,Third Party Payments,470101,Purchase of Care,20-Feb-2018,3401633-2426878,"2,206.72",BONDCARE T/A BRANCEPETH COURT CARE HOME.
Adult and Health Services,Head of Adults,Third Party Payments,470101,Purchase of Care,20-Feb-2018,3401633-2426879,"2,206.72",BONDCARE T/A BRANCEPETH COURT CARE HOME.
Adult and Health Services,Head of Adults,Third Party Payments,470101,Purchase of Care,20-Feb-2018,3401633-2426880,"2,206.72",BONDCARE T/A BRANCEPETH COURT CARE HOME.
Adult and Health Services,Head of Adults,Third Party Payments,470101,Purchase of Care,20-Feb-2018,3401633-2431087,"2,095.01",BONDCARE T/A BRANCEPETH COURT CARE HOME.
Adult and Health Services,Head of Adults,Third Party Payments,470101,Purchase of Care,20-Feb-2018,3401633-2431333,534.81,BONDCARE T/A BRANCEPETH COURT CARE HOME.
Adult and Health Services,Head of Adults,Third Party Payments,470101,Purchase of Care,20-Feb-2018,3401633-2431663,999.64,BONDCARE T/A BRANCEPETH COURT CARE HOME.
Adult and Health Services,Head of Adults,Third Party Payments,470101,Purchase of Care,20-Feb-2018,3401634-2428605,"1,103.36",BONDCARE T/A LUMLEY COURT CARE HOME.
Adult and Health Services,Head of Adults,Third Party Payments,470101,Purchase of Care,20-Feb-2018,3401634-2428606,"3,563.68",BONDCARE T/A LUMLEY COURT CARE HOME.
Adult and Health Services,Head of Adults,Third Party Payments,470101,Purchase of Care,20-Feb-2018,3401634-2428608,"2,206.72",BONDCARE T/A LUMLEY COURT CARE HOME.
Adult and Health Services,Head of Adults,Third Party Payments,470101,Purchase of Care,20-Feb-2018,3401634-2428612,"2,206.72",BONDCARE T/A LUMLEY COURT CARE HOME.
Adult and Health Services,Head of Adults,Third Party Payments,470101,Purchase of Care,20-Feb-2018,3401634-2428617,"2,206.72",BONDCARE T/A LUMLEY COURT CARE HOME.
Adult and Health Services,Head of Adults,Third Party Payments,470101,Purchase of Care,20-Feb-2018,3401634-2428618,"2,206.72",BONDCARE T/A LUMLEY COURT CARE HOME.
Adult and Health Services,Head of Adults,Third Party Payments,470101,Purchase of Care,20-Feb-2018,3401634-2428622,"2,206.72",BONDCARE T/A LUMLEY COURT CARE HOME.
Adult and Health Services,Head of Adults,Third Party Payments,470101,Purchase of Care,20-Feb-2018,3401634-2428624,"2,206.72",BONDCARE T/A LUMLEY COURT CARE HOME.
Adult and Health Services,Head of Adults,Third Party Payments,471101,Purchase of Care,20-Feb-2018,3401634-2428603,"1,346.76",BONDCARE T/A LUMLEY COURT CARE HOME.
Adult and Health Services,Head of Adults,Third Party Payments,471101,Purchase of Care,20-Feb-2018,3401634-2428604,"2,218.20",BONDCARE T/A LUMLEY COURT CARE HOME.
Adult and Health Services,Head of Adults,Third Party Payments,471101,Purchase of Care,20-Feb-2018,3401634-2428607,"2,218.20",BONDCARE T/A LUMLEY COURT CARE HOME.
Adult and Health Services,Head of Adults,Third Party Payments,471101,Purchase of Care,20-Feb-2018,3401634-2428609,"2,218.20",BONDCARE T/A LUMLEY COURT CARE HOME.
Adult and Health Services,Head of Adults,Third Party Payments,471101,Purchase of Care,20-Feb-2018,3401634-2428610,"2,218.20",BONDCARE T/A LUMLEY COURT CARE HOME.
Adult and Health Services,Head of Adults,Third Party Payments,471101,Purchase of Care,20-Feb-2018,3401634-2428614,"2,218.20",BONDCARE T/A LUMLEY COURT CARE HOME.
Adult and Health Services,Head of Adults,Third Party Payments,471101,Purchase of Care,20-Feb-2018,3401634-2428615,"1,109.12",BONDCARE T/A LUMLEY COURT CARE HOME.
Adult and Health Services,Head of Adults,Third Party Payments,471101,Purchase of Care,20-Feb-2018,3401634-2428616,"2,218.20",BONDCARE T/A LUMLEY COURT CARE HOME.
Adult and Health Services,Head of Adults,Third Party Payments,471101,Purchase of Care,20-Feb-2018,3401634-2428619,"2,218.20",BONDCARE T/A LUMLEY COURT CARE HOME.
Adult and Health Services,Head of Adults,Third Party Payments,471101,Purchase of Care,20-Feb-2018,3401634-2428620,"2,218.20",BONDCARE T/A LUMLEY COURT CARE HOME.
Adult and Health Services,Head of Adults,Third Party Payments,471101,Purchase of Care,20-Feb-2018,3401634-2428621,"2,218.20",BONDCARE T/A LUMLEY COURT CARE HOME.
Adult and Health Services,Head of Adults,Third Party Payments,471101,Purchase of Care,20-Feb-2018,3401634-2428623,"2,218.20",BONDCARE T/A LUMLEY COURT CARE HOME.
Adult and Health Services,Head of Adults,Third Party Payments,471101,Purchase of Care,20-Feb-2018,3401634-2428625,"2,218.20",BONDCARE T/A LUMLEY COURT CARE HOME.
Adult and Health Services,Head of Adults,Third Party Payments,471101,Purchase of Care,20-Feb-2018,3401634-2428626,"2,218.20",BONDCARE T/A LUMLEY COURT CARE HOME.
Adult and Health Services,Head of Adults,Third Party Payments,471101,Purchase of Care,20-Feb-2018,3401634-2428627,"2,218.20",BONDCARE T/A LUMLEY COURT CARE HOME.
Adult and Health Services,Head of Adults,Third Party Payments,471101,Purchase of Care,20-Feb-2018,3401634-2428628,"2,218.20",BONDCARE T/A LUMLEY COURT CARE HOME.
Adult and Health Services,Head of Adults,Third Party Payments,471101,Purchase of Care,20-Feb-2018,3401634-2428629,"2,218.20",BONDCARE T/A LUMLEY COURT CARE HOME.
Adult and Health Services,Head of Adults,Third Party Payments,471101,Purchase of Care,20-Feb-2018,3401634-2428630,"2,218.20",BONDCARE T/A LUMLEY COURT CARE HOME.
Adult and Health Services,Head of Adults,Third Party Payments,471101,Purchase of Care,20-Feb-2018,3401634-2431495,"2,012.22",BONDCARE T/A LUMLEY COURT CARE HOME.
Adult and Health Services,Head of Adults,Third Party Payments,471101,Purchase of Care,20-Feb-2018,3401634-2431496,"2,218.20",BONDCARE T/A LUMLEY COURT CARE HOME.
Adult and Health Services,Head of Adults,Third Party Payments,471101,Purchase of Care,20-Feb-2018,3401634-2431541,554.55,BONDCARE T/A LUMLEY COURT CARE HOME.
Adult and Health Services,Central/Other,Debtors,930024,Debtor-free nursing care,20-Feb-2018,3401635-2428438,620.20,BONDCARE T/A RICHMOND COURT CARE HOME.
Adult and Health Services,Central/Other,Debtors,930024,Debtor-free nursing care,20-Feb-2018,3401635-2428440,620.20,BONDCARE T/A RICHMOND COURT CARE HOME.
Adult and Health Services,Central/Other,Debtors,930024,Debtor-free nursing care,20-Feb-2018,3401635-2428450,620.20,BONDCARE T/A RICHMOND COURT CARE HOME.
Adult and Health Services,Central/Other,Debtors,930024,Debtor-free nursing care,20-Feb-2018,3401635-2428458,620.20,BONDCARE T/A RICHMOND COURT CARE HOME.
Adult and Health Services,Central/Other,Debtors,930024,Debtor-free nursing care,20-Feb-2018,3401635-2428460,620.20,BONDCARE T/A RICHMOND COURT CARE HOME.
Adult and Health Services,Central/Other,Debtors,930024,Debtor-free nursing care,20-Feb-2018,3401635-2428472,620.20,BONDCARE T/A RICHMOND COURT CARE HOME.
Adult and Health Services,Central/Other,Debtors,930024,Debtor-free nursing care,20-Feb-2018,3401635-2428475,620.20,BONDCARE T/A RICHMOND COURT CARE HOME.
Adult and Health Services,Head of Adults,Third Party Payments,474101,Purchase of Care,20-Feb-2018,3401635-2428431,"1,289.38",BONDCARE T/A RICHMOND COURT CARE HOME.
Adult and Health Services,Head of Adults,Third Party Payments,474101,Purchase of Care,20-Feb-2018,3401635-2428433,"1,120.20",BONDCARE T/A RICHMOND COURT CARE HOME.
Adult and Health Services,Head of Adults,Third Party Payments,474101,Purchase of Care,20-Feb-2018,3401635-2428435,"1,120.20",BONDCARE T/A RICHMOND COURT CARE HOME.
Adult and Health Services,Head of Adults,Third Party Payments,474101,Purchase of Care,20-Feb-2018,3401635-2428437,"2,240.40",BONDCARE T/A RICHMOND COURT CARE HOME.
Adult and Health Services,Head of Adults,Third Party Payments,474101,Purchase of Care,20-Feb-2018,3401635-2428439,"2,240.40",BONDCARE T/A RICHMOND COURT CARE HOME.
Adult and Health Services,Head of Adults,Third Party Payments,474101,Purchase of Care,20-Feb-2018,3401635-2428443,"1,120.20",BONDCARE T/A RICHMOND COURT CARE HOME.
Adult and Health Services,Head of Adults,Third Party Payments,474101,Purchase of Care,20-Feb-2018,3401635-2428446,"1,120.20",BONDCARE T/A RICHMOND COURT CARE HOME.
Adult and Health Services,Head of Adults,Third Party Payments,474101,Purchase of Care,20-Feb-2018,3401635-2428447,"1,050.00",BONDCARE T/A RICHMOND COURT CARE HOME.
Adult and Health Services,Head of Adults,Third Party Payments,474101,Purchase of Care,20-Feb-2018,3401635-2428449,"2,240.40",BONDCARE T/A RICHMOND COURT CARE HOME.
Adult and Health Services,Head of Adults,Third Party Payments,474101,Purchase of Care,20-Feb-2018,3401635-2428453,"1,120.20",BONDCARE T/A RICHMOND COURT CARE HOME.
Adult and Health Services,Head of Adults,Third Party Payments,474101,Purchase of Care,20-Feb-2018,3401635-2428457,"2,240.40",BONDCARE T/A RICHMOND COURT CARE HOME.
Adult and Health Services,Head of Adults,Third Party Payments,474101,Purchase of Care,20-Feb-2018,3401635-2428459,"2,240.40",BONDCARE T/A RICHMOND COURT CARE HOME.
Adult and Health Services,Head of Adults,Third Party Payments,474101,Purchase of Care,20-Feb-2018,3401635-2428463,"1,120.20",BONDCARE T/A RICHMOND COURT CARE HOME.
Adult and Health Services,Head of Adults,Third Party Payments,474101,Purchase of Care,20-Feb-2018,3401635-2428471,"2,240.40",BONDCARE T/A RICHMOND COURT CARE HOME.
Adult and Health Services,Head of Adults,Third Party Payments,474101,Purchase of Care,20-Feb-2018,3401635-2428474,"2,240.40",BONDCARE T/A RICHMOND COURT CARE HOME.
Adult and Health Services,Head of Adults,Third Party Payments,474101,Purchase of Care,20-Feb-2018,3401635-2428479,"1,120.20",BONDCARE T/A RICHMOND COURT CARE HOME.
Adult and Health Services,Head of Adults,Third Party Payments,470101,Purchase of Care,20-Feb-2018,3401635-2428429,"2,206.72",BONDCARE T/A RICHMOND COURT CARE HOME.
Adult and Health Services,Head of Adults,Third Party Payments,470101,Purchase of Care,20-Feb-2018,3401635-2428432,630.48,BONDCARE T/A RICHMOND COURT CARE HOME.
Adult and Health Services,Head of Adults,Third Party Payments,470101,Purchase of Care,20-Feb-2018,3401635-2428442,"2,206.72",BONDCARE T/A RICHMOND COURT CARE HOME.
Adult and Health Services,Head of Adults,Third Party Payments,470101,Purchase of Care,20-Feb-2018,3401635-2428445,"2,206.72",BONDCARE T/A RICHMOND COURT CARE HOME.
Adult and Health Services,Head of Adults,Third Party Payments,470101,Purchase of Care,20-Feb-2018,3401635-2428451,"2,206.72",BONDCARE T/A RICHMOND COURT CARE HOME.
Adult and Health Services,Head of Adults,Third Party Payments,470101,Purchase of Care,20-Feb-2018,3401635-2428452,"2,206.72",BONDCARE T/A RICHMOND COURT CARE HOME.
Adult and Health Services,Head of Adults,Third Party Payments,470101,Purchase of Care,20-Feb-2018,3401635-2428455,"2,206.72",BONDCARE T/A RICHMOND COURT CARE HOME.
Adult and Health Services,Head of Adults,Third Party Payments,470101,Purchase of Care,20-Feb-2018,3401635-2428456,"2,206.72",BONDCARE T/A RICHMOND COURT CARE HOME.
Adult and Health Services,Head of Adults,Third Party Payments,470101,Purchase of Care,20-Feb-2018,3401635-2428461,"2,206.72",BONDCARE T/A RICHMOND COURT CARE HOME.
Adult and Health Services,Head of Adults,Third Party Payments,470101,Purchase of Care,20-Feb-2018,3401635-2428465,"2,206.72",BONDCARE T/A RICHMOND COURT CARE HOME.
Adult and Health Services,Head of Adults,Third Party Payments,470101,Purchase of Care,20-Feb-2018,3401635-2428466,"2,206.72",BONDCARE T/A RICHMOND COURT CARE HOME.
Adult and Health Services,Head of Adults,Third Party Payments,470101,Purchase of Care,20-Feb-2018,3401635-2428467,604.80,BONDCARE T/A RICHMOND COURT CARE HOME.
Adult and Health Services,Head of Adults,Third Party Payments,470101,Purchase of Care,20-Feb-2018,3401635-2428468,"2,206.72",BONDCARE T/A RICHMOND COURT CARE HOME.
Adult and Health Services,Head of Adults,Third Party Payments,470101,Purchase of Care,20-Feb-2018,3401635-2428469,"2,206.72",BONDCARE T/A RICHMOND COURT CARE HOME.
Adult and Health Services,Head of Adults,Third Party Payments,470101,Purchase of Care,20-Feb-2018,3401635-2428470,"2,206.72",BONDCARE T/A RICHMOND COURT CARE HOME.
Adult and Health Services,Head of Adults,Third Party Payments,470101,Purchase of Care,20-Feb-2018,3401635-2428473,"2,206.72",BONDCARE T/A RICHMOND COURT CARE HOME.
Adult and Health Services,Head of Adults,Third Party Payments,470101,Purchase of Care,20-Feb-2018,3401635-2428476,"2,206.72",BONDCARE T/A RICHMOND COURT CARE HOME.
Adult and Health Services,Head of Adults,Third Party Payments,470101,Purchase of Care,20-Feb-2018,3401635-2428477,"2,206.72",BONDCARE T/A RICHMOND COURT CARE HOME.
Adult and Health Services,Head of Adults,Third Party Payments,470101,Purchase of Care,20-Feb-2018,3401635-2428478,"1,103.36",BONDCARE T/A RICHMOND COURT CARE HOME.
Adult and Health Services,Head of Adults,Third Party Payments,470101,Purchase of Care,20-Feb-2018,3401635-2431386,"4,807.50",BONDCARE T/A RICHMOND COURT CARE HOME.
Adult and Health Services,Head of Adults,Third Party Payments,470101,Purchase of Care,20-Feb-2018,3401635-2431387,"2,823.43",BONDCARE T/A RICHMOND COURT CARE HOME.
Adult and Health Services,Head of Adults,Third Party Payments,470101,Purchase of Care,20-Feb-2018,3401635-2431543,"2,088.50",BONDCARE T/A RICHMOND COURT CARE HOME.
Adult and Health Services,Head of Adults,Third Party Payments,470101,Purchase of Care,20-Feb-2018,3401635-2431544,572.40,BONDCARE T/A RICHMOND COURT CARE HOME.
Adult and Health Services,Head of Adults,Third Party Payments,471101,Purchase of Care,20-Feb-2018,3401635-2428441,"2,772.75",BONDCARE T/A RICHMOND COURT CARE HOME.
Adult and Health Services,Head of Adults,Third Party Payments,471101,Purchase of Care,20-Feb-2018,3401635-2428462,"2,218.20",BONDCARE T/A RICHMOND COURT CARE HOME.
Adult and Health Services,Public Health,Third Party Payments,460802,Contract Payments,06-Feb-2018,3396136-FKP88/DEC2017/EOHC,736.87,BOOTS THE CHEMISTS LTD.*
Adult and Health Services,Public Health,Third Party Payments,460802,Contract Payments,06-Feb-2018,3396140-FYR53/DEC2017/EOHC,"2,543.39",BOOTS THE CHEMISTS LTD.*
Adult and Health Services,Public Health,Third Party Payments,460802,Contract Payments,06-Feb-2018,3396143-FMG71/DEC2017/EOHC,594.25,BOOTS THE CHEMISTS LTD.*
Adult and Health Services,Public Health,Third Party Payments,460803,Contract Payments,23-Feb-2018,3404059-FHRN/00000123SC,914.00,BOOTS THE CHEMISTS LTD.*
Adult and Health Services,Public Health,Third Party Payments,460803,Contract Payments,23-Feb-2018,3404062-DPWT/00000130SC,506.00,BOOTS THE CHEMISTS LTD.*
Adult and Health Services,Public Health,Third Party Payments,460803,Contract Payments,23-Feb-2018,3404067-FNHN/00000066SC,572.00,BOOTS THE CHEMISTS LTD.*
Adult and Health Services,Public Health,Third Party Payments,460803,Contract Payments,23-Feb-2018,3404068-DRJY/00000103SC,896.00,BOOTS THE CHEMISTS LTD.*
Regeneration and Local Services,Transport and Contracted Services,Premises,120009,Energy Costs,16-Feb-2018,3400027-RED-02-2018-101,544.95,BOWBURN COMMUNITY ASSOCIATION.
Children and Young Peoples Services,Head of Education,Transport,230007,Contract Hire,06-Feb-2018,3396151-004,540.00,BOWBURN TAXIS.
Adult and Health Services,Central/Other,Debtors,930024,Debtor-free nursing care,20-Feb-2018,3401636-2429814,620.20,BOWES COURT CARE HOME.
Adult and Health Services,Central/Other,Debtors,930024,Debtor-free nursing care,20-Feb-2018,3401636-2429815,620.20,BOWES COURT CARE HOME.
Adult and Health Services,Central/Other,Debtors,930024,Debtor-free nursing care,20-Feb-2018,3401636-2429818,620.20,BOWES COURT CARE HOME.
Adult and Health Services,Head of Adults,Third Party Payments,474101,Purchase of Care,20-Feb-2018,3401636-2429816,"4,800.00",BOWES COURT CARE HOME.
Adult and Health Services,Head of Adults,Third Party Payments,474101,Purchase of Care,20-Feb-2018,3401636-2429817,"4,800.00",BOWES COURT CARE HOME.
Adult and Health Services,Head of Adults,Third Party Payments,470101,Purchase of Care,20-Feb-2018,3401636-2429812,"2,594.00",BOWES COURT CARE HOME.
Adult and Health Services,Head of Adults,Third Party Payments,470101,Purchase of Care,20-Feb-2018,3401636-2429813,"2,222.00",BOWES COURT CARE HOME.
Adult and Health Services,Head of Adults,Third Party Payments,470101,Purchase of Care,20-Feb-2018,3401636-2431050,705.71,BOWES COURT CARE HOME.
Adult and Health Services,Head of Adults,Third Party Payments,470101,Purchase of Care,20-Feb-2018,3401636-2431696,705.71,BOWES COURT CARE HOME.
Adult and Health Services,Head of Adults,Third Party Payments,470101,Purchase of Care,20-Feb-2018,3401636-2431699,529.28,BOWES COURT CARE HOME.
Resources,Resources Management,Supplies and Services,384197,Miscellaneous Expenses,26-Feb-2018,3404569-A0014740,518.53,BOX IT NORTH.
Resources,Legal & Democratic Services,Premises,120021,Energy Costs,14-Feb-2018,3399251-7224,936.43,BRADLEY HALL LTD.
Resources,Legal & Democratic Services,Premises,120021,Energy Costs,16-Feb-2018,3400029-7531,"1,062.90",BRADLEY HALL LTD.
Resources,Legal & Democratic Services,Premises,125009,Rents,05-Feb-2018,3395155-2258,"5,913.75",BRADLEY HALL LTD.
Resources,Legal & Democratic Services,Premises,125009,Rents,05-Feb-2018,3395155-4189,"5,913.75",BRADLEY HALL LTD.
Resources,Legal & Democratic Services,Premises,125009,Rents,05-Feb-2018,3395155-5801,"5,913.75",BRADLEY HALL LTD.
Resources,Legal & Democratic Services,Premises,125009,Rents,05-Feb-2018,3395155-7290,"5,913.75",BRADLEY HALL LTD.
Resources,Legal & Democratic Services,Premises,125009,Rents,06-Feb-2018,3396153-1820,"1,513.12",BRADLEY HALL LTD.
Regeneration and Local Services,Direct Services,Supplies and Services,304259,Equipment and Materials,20-Feb-2018,3401409-180185,"2,158.75",BRAMBLEDOWN LANDSCAPE SERVICES LTD.
Transformation and Partnerships,Partnerships & Community Engagement Div.,Cap Exp on Grants & Other Financial Assistance (REFCUS),918004,Contributions to other bodies,09-Feb-2018,3397238-VOUCHER17AB-MDUR003,"5,000.00",BRANDON COMMUNITY SPORTS CLUB.
Children and Young Peoples Services,Head of Education,Transfer Payments,510026,School Children,08-Feb-2018,3396906-DCATCHFUNDING8/5-21/7/17,750.00,BRANDON HAPPYTIMES DAYCARE.
Children and Young Peoples Services,Head of Education,Transfer Payments,510026,School Children,26-Feb-2018,3404570-DCATCHFUNDINGASMITH,825.00,BRANDON HAPPYTIMES DAYCARE.
Dedicated Schools Grant,Dedicated Schools Grant,Third Party Payments,425005,Rendered by Voluntary Organisations,02-Feb-2018,3394801-2010,"20,065.00",BRECKENBROUGH SCHOOL.
Dedicated Schools Grant,Dedicated Schools Grant,Third Party Payments,425005,Rendered by Voluntary Organisations,02-Feb-2018,3394801-2011,"16,000.00",BRECKENBROUGH SCHOOL.
Dedicated Schools Grant,Dedicated Schools Grant,Third Party Payments,425005,Rendered by Voluntary Organisations,06-Feb-2018,3396155-2006,"16,000.00",BRECKENBROUGH SCHOOL.
Dedicated Schools Grant,Dedicated Schools Grant,Third Party Payments,440080,Other Third Party Payments,02-Feb-2018,3394801-2009,"16,000.00",BRECKENBROUGH SCHOOL.
Dedicated Schools Grant,Dedicated Schools Grant,Third Party Payments,440080,Other Third Party Payments,02-Feb-2018,3394801-2012,"16,290.00",BRECKENBROUGH SCHOOL.
Dedicated Schools Grant,Dedicated Schools Grant,Third Party Payments,440080,Other Third Party Payments,05-Feb-2018,3395157-2007,"19,667.00",BRECKENBROUGH SCHOOL.
Dedicated Schools Grant,Dedicated Schools Grant,Third Party Payments,440080,Other Third Party Payments,07-Feb-2018,3396504-2008,"16,000.00",BRECKENBROUGH SCHOOL.
Regeneration and Local Services,Culture & Sport,Premises,145023,Cleaning and Domestic Supplies,08-Feb-2018,3396908-22SI2231959,902.50,BRENNTAG UK LTD.
Regeneration and Local Services,Culture & Sport,Premises,145023,Cleaning and Domestic Supplies,08-Feb-2018,3396908-22SI2232985,"1,225.00",BRENNTAG UK LTD.
Regeneration and Local Services,Culture & Sport,Premises,145023,Cleaning and Domestic Supplies,19-Feb-2018,3400419-22ST2233308,730.00,BRENNTAG UK LTD.
Adult and Health Services,Head of Adults,Transport,230005,Contract Hire,06-Feb-2018,3396156-BZ00248,616.00,BREZ`S TAXIS.
Children and Young Peoples Services,Head of Education,Transport,230008,Contract Hire,06-Feb-2018,3396156-BZ00246,882.00,BREZ`S TAXIS.
Children and Young Peoples Services,Head of Education,Transport,230008,Contract Hire,09-Feb-2018,3397242-BZ00247,"1,012.00",BREZ`S TAXIS.
Children and Young Peoples Services,Head of Education,Transport,230008,Contract Hire,08-Feb-2018,3396909-N05,"1,174.80",BRIAN PURVIS T/A BJ`S TAXIS.
Adult and Health Services,Public Health,Third Party Payments,460802,Contract Payments,09-Feb-2018,3397244-A83009IUCDQ3/1718,"3,427.22",BRIDGE END SURGERY.
Regeneration and Local Services,Technical Services,Third Party Payments,430100,Rendered by Private Contractors,23-Feb-2018,3404081-42566,"49,144.55",BRIDGEWAY CONSULTING LTD.
Regeneration and Local Services,Technical Services,Third Party Payments,430100,Rendered by Private Contractors,23-Feb-2018,3404081-42915,"3,167.65",BRIDGEWAY CONSULTING LTD.
Regeneration and Local Services,Technical Services,Third Party Payments,430100,Rendered by Private Contractors,23-Feb-2018,3404081-42916,"1,499.70",BRIDGEWAY CONSULTING LTD.
Regeneration and Local Services,Technical Services,Third Party Payments,430100,Rendered by Private Contractors,26-Feb-2018,3404572-42420,"203,838.95",BRIDGEWAY CONSULTING LTD.
Children and Young Peoples Services,Head of Education,Transfer Payments,510026,School Children,08-Feb-2018,3396910-IBROWN4/9-22/12/17,"1,320.00",BRIGHT STAR NURSERY.
Children and Young Peoples Services,Head of Education,Transfer Payments,510026,School Children,19-Feb-2018,3400420-IBROWN1/1-31/3/18,"1,072.50",BRIGHT STAR NURSERY.
Adult and Health Services,Head of Adults,Third Party Payments,470101,Purchase of Care,20-Feb-2018,3401637-2431008,"1,809.23",BRIGHTERKIND T/A AVERY HOUSE HEALTHCARE LTD.
Regeneration and Local Services,Direct Services,Third Party Payments,430100,Rendered by Private Contractors,13-Feb-2018,3398866-82585203,"2,289.62",BRISTOL STREET MOTORS.
Regeneration and Local Services,Spatial Policy Planning Assets & Environment,Premises,120021,Energy Costs,02-Feb-2018,3394805-984252461,"1,420.92",BRITISH GAS BUSINESS.
Regeneration and Local Services,Transport and Contracted Services,Supplies and Services,344033,Telephones,13-Feb-2018,3398869-NE20902556Q04021,"2,631.13",BRITISH TELECOMMUNICATIONS PLC.
Resources,Digital and Customer Services,Debtors,930167,Debtor-Telephone Holding Account,01-Feb-2018,3394476-VP71577270Q05201,"15,677.42",BRITISH TELECOMMUNICATIONS PLC.
Resources,Digital and Customer Services,Debtors,930167,Debtor-Telephone Holding Account,20-Feb-2018,3401412-VP44748670M04601,"7,134.46",BRITISH TELECOMMUNICATIONS PLC.
Transformation and Partnerships,Comms & Information Management,Supplies and Services,336005,Advertising,01-Feb-2018,3394476-000006248159,"1,100.00",BRITISH TELECOMMUNICATIONS PLC.
Adult and Health Services,Public Health,Third Party Payments,460803,Contract Payments,23-Feb-2018,3404083-DXNF/00000104SC,580.00,BRITTON & ROBSON LTD.
Adult and Health Services,Head of Adults,Third Party Payments,470101,Purchase of Care,20-Feb-2018,3401638-2427464,"1,833.63",BROOMHOUSE CARE LTD.
Adult and Health Services,Head of Adults,Third Party Payments,470101,Purchase of Care,20-Feb-2018,3401638-2427467,"2,139.24",BROOMHOUSE CARE LTD.
Adult and Health Services,Head of Adults,Third Party Payments,470101,Purchase of Care,20-Feb-2018,3401638-2427470,"2,139.24",BROOMHOUSE CARE LTD.
Adult and Health Services,Head of Adults,Third Party Payments,470101,Purchase of Care,20-Feb-2018,3401638-2427472,"2,139.24",BROOMHOUSE CARE LTD.
Adult and Health Services,Head of Adults,Third Party Payments,470101,Purchase of Care,20-Feb-2018,3401638-2427476,"2,139.24",BROOMHOUSE CARE LTD.
Adult and Health Services,Head of Adults,Third Party Payments,470101,Purchase of Care,20-Feb-2018,3401638-2427478,"2,139.24",BROOMHOUSE CARE LTD.
Adult and Health Services,Head of Adults,Third Party Payments,470101,Purchase of Care,20-Feb-2018,3401638-2427481,"2,139.24",BROOMHOUSE CARE LTD.
Adult and Health Services,Head of Adults,Third Party Payments,470101,Purchase of Care,20-Feb-2018,3401638-2427482,"2,139.24",BROOMHOUSE CARE LTD.
Adult and Health Services,Head of Adults,Third Party Payments,471101,Purchase of Care,20-Feb-2018,3401638-2427465,"2,218.20",BROOMHOUSE CARE LTD.
Adult and Health Services,Head of Adults,Third Party Payments,471101,Purchase of Care,20-Feb-2018,3401638-2427468,"2,218.20",BROOMHOUSE CARE LTD.
Adult and Health Services,Head of Adults,Third Party Payments,471101,Purchase of Care,20-Feb-2018,3401638-2427469,"1,663.65",BROOMHOUSE CARE LTD.
Adult and Health Services,Head of Adults,Third Party Payments,471101,Purchase of Care,20-Feb-2018,3401638-2427471,"2,218.20",BROOMHOUSE CARE LTD.
Adult and Health Services,Head of Adults,Third Party Payments,471101,Purchase of Care,20-Feb-2018,3401638-2427473,"2,218.20",BROOMHOUSE CARE LTD.
Adult and Health Services,Head of Adults,Third Party Payments,471101,Purchase of Care,20-Feb-2018,3401638-2427474,"2,218.20",BROOMHOUSE CARE LTD.
Adult and Health Services,Head of Adults,Third Party Payments,471101,Purchase of Care,20-Feb-2018,3401638-2427475,"2,218.20",BROOMHOUSE CARE LTD.
Adult and Health Services,Head of Adults,Third Party Payments,471101,Purchase of Care,20-Feb-2018,3401638-2427479,"2,218.20",BROOMHOUSE CARE LTD.
Adult and Health Services,Head of Adults,Third Party Payments,471101,Purchase of Care,20-Feb-2018,3401638-2427480,"2,218.20",BROOMHOUSE CARE LTD.
Adult and Health Services,Head of Adults,Third Party Payments,471101,Purchase of Care,20-Feb-2018,3401638-2427483,"2,218.20",BROOMHOUSE CARE LTD.
Adult and Health Services,Head of Adults,Third Party Payments,471101,Purchase of Care,20-Feb-2018,3401638-2427484,"1,382.00",BROOMHOUSE CARE LTD.
Adult and Health Services,Head of Adults,Third Party Payments,471101,Purchase of Care,20-Feb-2018,3401638-2431489,"1,822.09",BROOMHOUSE CARE LTD.
Regeneration and Local Services,Culture & Sport,Supplies and Services,338099,Services,19-Feb-2018,3400422-INV222815,"1,147.90",BROXAP LTD.
Regeneration and Local Services,Direct Services,Supplies and Services,304221,Equipment and Materials,09-Feb-2018,3397250-1660/0629771,"4,618.35",BSS GROUP PLC.
Regeneration and Local Services,Direct Services,Transport,210057,Repair and Maintenance of Vehicles,13-Feb-2018,3398872-SI-170205,"2,647.81",BUNCE (ASHBURY) LTD.
Regeneration and Local Services,Direct Services,Transport,210057,Repair and Maintenance of Vehicles,16-Feb-2018,3400040-SI-170099,737.67,BUNCE (ASHBURY) LTD.
Adult and Health Services,Head of Adults,Third Party Payments,474101,Purchase of Care,20-Feb-2018,3401639-2428751,"2,029.72",BURLINGTON CARE LTD T/A MAPLE LODGE CARE HOME.
Regeneration and Local Services,Technical Services,Third Party Payments,430100,Rendered by Private Contractors,19-Feb-2018,3400423-NO24683,"2,733.48",BUS SHELTERS LTD.
Regeneration and Local Services,Economic Development and Housing,Third Party Payments,460305,Contract Payments,07-Feb-2018,3396511-12216,"39,087.50",BUSINESS & ENTERPRISE COMMERCIAL LTD T/A BE GROUP.
Adult and Health Services,Head of Adults,Third Party Payments,470101,Purchase of Care,22-Feb-2018,3403467-300/18,"1,850.00",BUTTERWICK LTD..
Children and Young Peoples Services,Head of Early Help Assessment and Safeguarding,Third Party Payments,425020,Rendered by Voluntary Organisations,22-Feb-2018,3403467-299/18,"1,480.00",BUTTERWICK LTD..
Children and Young Peoples Services,Head of Early Help Assessment and Safeguarding,Third Party Payments,425020,Rendered by Voluntary Organisations,22-Feb-2018,3403467-301/18,740.00,BUTTERWICK LTD..
Children and Young Peoples Services,Head of Early Help Assessment and Safeguarding,Third Party Payments,425020,Rendered by Voluntary Organisations,22-Feb-2018,3403467-302/18,740.00,BUTTERWICK LTD..
Children and Young Peoples Services,Head of Early Help Assessment and Safeguarding,Third Party Payments,425020,Rendered by Voluntary Organisations,22-Feb-2018,3403467-303/18,"2,220.00",BUTTERWICK LTD..
Children and Young Peoples Services,Head of Early Help Assessment and Safeguarding,Third Party Payments,425020,Rendered by Voluntary Organisations,22-Feb-2018,3403467-304/18,740.00,BUTTERWICK LTD..
Resources,Digital and Customer Services,Supplies and Services,342051,Computers and Communications,13-Feb-2018,3398875-502754,"3,242.10",BYTES SOFTWARE SERVICES LTD.
Children and Young Peoples Services,Head of Education,Transport,230006,Contract Hire,09-Feb-2018,3397252-W153016,920.40,C & R TAXIS.
Children and Young Peoples Services,Head of Education,Transport,230008,Contract Hire,09-Feb-2018,3397252-W07805,"2,112.00",C & R TAXIS.
Children and Young Peoples Services,Head of Education,Transport,230008,Contract Hire,13-Feb-2018,3398876-A02805,"1,157.00",C & R TAXIS.
Children and Young Peoples Services,Head of Education,Transport,230008,Contract Hire,13-Feb-2018,3398876-S02605,"1,144.00",C & R TAXIS.
Children and Young Peoples Services,Head of Education,Transport,230008,Contract Hire,07-Feb-2018,308960-N010/05,"1,190.00",C STEWART.
Children and Young Peoples Services,Head of Education,Transport,230008,Contract Hire,08-Feb-2018,3396912-BIL0123,890.00,CA MUSGROVE.
Adult and Health Services,Head of Adults,Supplies and Services,304516,Equipment and Materials,01-Feb-2018,3394478-1805/12,959.90,CABLES TAXI CONTRACTS.
Adult and Health Services,Head of Adults,Supplies and Services,304516,Equipment and Materials,21-Feb-2018,3401970-1805/1,983.30,CABLES TAXI CONTRACTS.
Regeneration and Local Services,Spatial Policy Planning Assets & Environment,Supplies and Services,304259,Equipment and Materials,05-Feb-2018,3395161-130716,"2,232.00",CALE BRIPARC LTD.
Regeneration and Local Services,Culture & Sport,Premises,120021,Energy Costs,15-Feb-2018,3399659-29894286,863.89,CALOR GAS LTD.
Regeneration and Local Services,Culture & Sport,Premises,120021,Energy Costs,16-Feb-2018,3400043-30081077,574.99,CALOR GAS LTD.
Adult and Health Services,Head of Adults,Third Party Payments,470101,Purchase of Care,27-Feb-2018,3404914-WHI008674,"37,917.92",CAMBIAN WHINFELL SCHOOL LTD.
Dedicated Schools Grant,Dedicated Schools Grant,Third Party Payments,440080,Other Third Party Payments,15-Feb-2018,3399660-WHI008672,"34,165.79",CAMBIAN WHINFELL SCHOOL LTD.
Dedicated Schools Grant,Dedicated Schools Grant,Third Party Payments,440080,Other Third Party Payments,27-Feb-2018,3404914-WHI008673,"19,067.45",CAMBIAN WHINFELL SCHOOL LTD.
Children and Young Peoples Services,Childrens Services Operational Support,Supplies and Services,338089,Services,15-Feb-2018,3399661-5552,"1,180.00",CAPABLE PEOPLE TRAINING & CONSULTANCY LTD.
Adult and Health Services,Head of Adults,Supplies and Services,338366,Services,15-Feb-2018,3399663-47197,974.45,CARE ABILITY.
Adult and Health Services,Head of Adults,Supplies and Services,338366,Services,15-Feb-2018,3399663-47198,"1,156.35",CARE ABILITY.
Adult and Health Services,Head of Adults,Supplies and Services,338366,Services,19-Feb-2018,3400424-47328JAN18,"1,014.35",CARE ABILITY.
Adult and Health Services,Head of Adults,Supplies and Services,338366,Services,23-Feb-2018,3404087-47589,"2,834.00",CARE ABILITY.
Adult and Health Services,Head of Adults,Supplies and Services,338366,Services,23-Feb-2018,3404087-47590,887.35,CARE ABILITY.
Adult and Health Services,Head of Adults,Supplies and Services,338366,Services,23-Feb-2018,3404087-47591JAN18,790.25,CARE ABILITY.
Adult and Health Services,Head of Adults,Supplies and Services,338366,Services,23-Feb-2018,3404087-47592,"3,603.50",CARE ABILITY.
Adult and Health Services,Head of Adults,Supplies and Services,338366,Services,23-Feb-2018,3404087-47593,572.35,CARE ABILITY.
Adult and Health Services,Head of Adults,Supplies and Services,338366,Services,23-Feb-2018,3404087-47594,"1,793.30",CARE ABILITY.
Adult and Health Services,Head of Adults,Supplies and Services,338366,Services,26-Feb-2018,3404576-47595,"2,612.50",CARE ABILITY.
Adult and Health Services,Head of Adults,Third Party Payments,474101,Purchase of Care,20-Feb-2018,3401640-2426829,"1,916.00",CARE UK LTD.
Adult and Health Services,Head of Adults,Third Party Payments,470101,Purchase of Care,20-Feb-2018,3401640-2426830,"1,916.00",CARE UK LTD.
Adult and Health Services,Head of Adults,Third Party Payments,470101,Purchase of Care,20-Feb-2018,3401640-2431742,821.14,CARE UK LTD.
Adult and Health Services,Head of Adults,Third Party Payments,471101,Purchase of Care,20-Feb-2018,3401640-2426828,"1,802.17",CARE UK LTD.
Adult and Health Services,Head of Adults,Third Party Payments,472101,Purchase of Care,21-Feb-2018,3402714-1783850H,"1,104.84",CARE VISIONS AT HOME.
Adult and Health Services,Head of Adults,Third Party Payments,472101,Purchase of Care,21-Feb-2018,3402714-1783851H,513.77,CARE VISIONS AT HOME.
Adult and Health Services,Head of Adults,Third Party Payments,474101,Purchase of Care,20-Feb-2018,3401641-2430793,"4,103.40",CARELINE LIFESTYLES (UK) LTD.
Adult and Health Services,Head of Adults,Third Party Payments,474101,Purchase of Care,20-Feb-2018,3401641-2430794,"2,415.00",CARELINE LIFESTYLES (UK) LTD.
Adult and Health Services,Head of Adults,Third Party Payments,474101,Purchase of Care,20-Feb-2018,3401642-2430559,"5,055.00",CARELINE LIFESTYLES (UK) LTD.
Adult and Health Services,Head of Adults,Third Party Payments,474101,Purchase of Care,20-Feb-2018,3401642-2430560,"4,800.00",CARELINE LIFESTYLES (UK) LTD.
Adult and Health Services,Head of Adults,Third Party Payments,474101,Purchase of Care,20-Feb-2018,3401642-2430561,"2,808.00",CARELINE LIFESTYLES (UK) LTD.
Adult and Health Services,Head of Adults,Third Party Payments,470101,Purchase of Care,20-Feb-2018,3401641-2430795,740.88,CARELINE LIFESTYLES (UK) LTD.
Adult and Health Services,Head of Adults,Third Party Payments,470101,Purchase of Care,20-Feb-2018,3401643-2429457,"2,461.68",CARELINE LIFESTYLES (UK) LTD.
Adult and Health Services,Head of Adults,Third Party Payments,470101,Purchase of Care,20-Feb-2018,3401644-2429787,"2,590.00",CARELINE LIFESTYLES (UK) LTD.
Adult and Health Services,Head of Adults,Third Party Payments,470101,Purchase of Care,20-Feb-2018,3401644-2429788,"2,016.00",CARELINE LIFESTYLES (UK) LTD.
Adult and Health Services,Commissioning inc Supporting People,Third Party Payments,479111,Purchase of Care,06-Feb-2018,3396161-3276,"3,819.43",CARERS FEDERATION LTD.
Regeneration and Local Services,Economic Development and Housing,Supplies and Services,384199,Miscellaneous Expenses,15-Feb-2018,3399664-5172000027,"5,000.00",CARLISLE CITY COUNCIL.
Regeneration and Local Services,Direct Services,Supplies and Services,304221,Equipment and Materials,14-Feb-2018,3399259-851800162,"5,113.20",CARLISLE CONSTRUCTION MATERIALS LTD.
Regeneration and Local Services,Technical Services,Stock,926900,Stock in hand-Inventory system,26-Feb-2018,3404577-851800290,"2,842.00",CARLISLE CONSTRUCTION MATERIALS LTD.
Regeneration and Local Services,Culture & Sport,Supplies and Services,328041,Clothing Uniforms and Laundry,12-Feb-2018,3397735-483383,592.10,CARRS BILLINGTON AGRICULTURE.
Regeneration and Local Services,Direct Services,Supplies and Services,304221,Equipment and Materials,12-Feb-2018,3397735-482888,"1,160.00",CARRS BILLINGTON AGRICULTURE.
Regeneration and Local Services,Direct Services,Transport,210057,Repair and Maintenance of Vehicles,01-Feb-2018,3394481-483488,649.63,CARRS BILLINGTON AGRICULTURE.
Regeneration and Local Services,Direct Services,Transport,210057,Repair and Maintenance of Vehicles,13-Feb-2018,3398878-222590,635.00,CARRS BILLINGTON AGRICULTURE.
Regeneration and Local Services,Direct Services,Transport,210057,Repair and Maintenance of Vehicles,27-Feb-2018,3404917-223326,944.35,CARRS BILLINGTON AGRICULTURE.
Regeneration and Local Services,Direct Services,Transport,210057,Repair and Maintenance of Vehicles,27-Feb-2018,3404917-223329,509.88,CARRS BILLINGTON AGRICULTURE.
Regeneration and Local Services,Direct Services,Stock,926004,Stock,13-Feb-2018,3398879-222409,638.41,CARRS BILLINGTON AGRICULTURE.
Adult and Health Services,Head of Adults,Third Party Payments,472101,Purchase of Care,21-Feb-2018,3402727-1778925H,681.72,CASTLE CARE TEESDALE LTD.
Adult and Health Services,Head of Adults,Third Party Payments,472101,Purchase of Care,21-Feb-2018,3402727-1778980H,704.72,CASTLE CARE TEESDALE LTD.
Adult and Health Services,Head of Adults,Third Party Payments,472101,Purchase of Care,21-Feb-2018,3402727-1778986H,845.68,CASTLE CARE TEESDALE LTD.
Adult and Health Services,Head of Adults,Third Party Payments,472101,Purchase of Care,21-Feb-2018,3402727-1779452H,807.02,CASTLE CARE TEESDALE LTD.
Adult and Health Services,Head of Adults,Third Party Payments,472101,Purchase of Care,21-Feb-2018,3402727-1779611H,627.44,CASTLE CARE TEESDALE LTD.
Adult and Health Services,Head of Adults,Third Party Payments,472101,Purchase of Care,21-Feb-2018,3402727-1779720H,572.88,CASTLE CARE TEESDALE LTD.
Adult and Health Services,Head of Adults,Third Party Payments,472101,Purchase of Care,21-Feb-2018,3402727-1779993H,722.92,CASTLE CARE TEESDALE LTD.
Adult and Health Services,Head of Adults,Third Party Payments,472101,Purchase of Care,21-Feb-2018,3402727-1780034H,552.32,CASTLE CARE TEESDALE LTD.
Adult and Health Services,Head of Adults,Third Party Payments,472101,Purchase of Care,21-Feb-2018,3402727-1780592H,636.52,CASTLE CARE TEESDALE LTD.
Adult and Health Services,Head of Adults,Third Party Payments,472101,Purchase of Care,21-Feb-2018,3402727-1781631H,"1,254.88",CASTLE CARE TEESDALE LTD.
Adult and Health Services,Head of Adults,Third Party Payments,472101,Purchase of Care,21-Feb-2018,3402727-1782286H,"1,829.29",CASTLE CARE TEESDALE LTD.
Adult and Health Services,Head of Adults,Third Party Payments,472101,Purchase of Care,21-Feb-2018,3402727-1782652H,"1,609.52",CASTLE CARE TEESDALE LTD.
Regeneration and Local Services,Economic Development and Housing,Supplies and Services,384700,Miscellaneous Expenses,16-Feb-2018,3400045-RED-02-2018-097,500.00,CASTLE HOUSE SADDLERY.
Children and Young Peoples Services,Head of Education,Transfer Payments,510028,School Children,02-Feb-2018,3394812-CAS-01-2018-181,"10,000.00",CASTLE KINDERGARTEN LTD.
Children and Young Peoples Services,Head of Education,Transfer Payments,510026,School Children,16-Feb-2018,3400046-LHAMMOND2/10/17-1/1/18,924.00,CASTLE VIEW PRIVATE DAY NURSERY LTD.
Children and Young Peoples Services,Head of Education,Transfer Payments,510026,School Children,23-Feb-2018,3404090-LHAMMOND8/1-26/3/18,"1,663.20",CASTLE VIEW PRIVATE DAY NURSERY LTD.
